Date the Expenditure was incurred,Local authority department which incurred the expenditure,SUPPLIER_DESC,Summary of the purpose of the expenditure,Amount,Vat,"Merchant category (eg. Computers, software etc)",VOUCHER_NO,DEPART,ACCOUNT,Beneficiary,CLIENT,COST_CENTRE,COST_DESC,ANALYSIS,PERIOD
PAYMENT_DATE,DEPART_DESC,SUPPLIER_DESC,ANALYSIS_DESC,AMOUNT,Vat,ACCOUNT_DESC,VOUCHER_NO,DEPART,ACCOUNT,SUPPLIER_ID,CLIENT,COST_CENTRE,COST_DESC,ANALYSIS,PERIOD
,City Developments and Neighbourhood,ESPO,Equipment Purchase,564.80,112.96,Equipment Purchase,63627098,N,R4000,100100,LC,20298,Stock Procurement,R400001,201711
27/02/2018,City Developments and Neighbourhood,ESPO,Materials Purchase,"1,735.20",347.04,Materials Purchase,63630500,N,R4002,100100,LC,20298,Stock Procurement,R400201,201711
07/02/2018,Education & Childrens Services,Acorn Fostering Services Ltd,Independent Foster Agencies,"3,166.43",0.00,Other Agencies,63624021,C,R5800,100131,LC,32345,Independent Fostering Agencies,R580054,201711
06/02/2018,Education & Childrens Services,Acorn Fostering Services Ltd,Independent Foster Agencies,"3,310.14",0.00,Other Agencies,63624027,C,R5800,100131,LC,32345,Independent Fostering Agencies,R580054,201711
,City Developments and Neighbourhood,ATG Access Ltd,Project - Responsive,"1,442.13",288.43,Project - Transport Infrastructure,63629993,N,R3680,100137,LC,21059,PPZ Management and Maintenance,R368001,201711
,City Developments and Neighbourhood,AB Adcock,Landscaping,"3,235.00",647.00,Grounds Maintenance,63630872,N,R2750,100177,LC,20262,Landscape Services Citywide,R275003,201711
20/02/2018,City Developments and Neighbourhood,ADT Fire & Security plc,Responsive,595.00,119.00,Building Services / Repairs & Maintenance  Fixtures & Fittings,63628477,N,R2001,100178,LC,10307,Building & Service Maintenance External,R200101,201711
27/02/2018,City Developments and Neighbourhood,ADT Fire & Security plc,Servicing,890.14,178.03,Building Services / Repairs & Maintenance  Fixtures & Fittings,63630406,N,R2001,100178,LC,10080,Schools Buy Back Board,R200104,201711
23/02/2018,Adults & Housing Department,Age UK Leicester Shire & Rutland,Day Care /Community Opportunities,616.74,0.00,Day Care /Community Opportunities,41549381,A,R5707,100190,LC,40311,EAST - Commissioning - Supported Residents Care Team,R570701,201711
13/02/2018,City Developments and Neighbourhood,Aggregate Industries UK Ltd,Materials Purchase,741.89,148.38,Materials Purchase,63625932,N,R4002,100193,LC,20298,Stock Procurement,R400201,201711
13/02/2018,City Developments and Neighbourhood,Aggregate Industries UK Ltd,Materials Purchase,500.47,100.09,Materials Purchase,63625393,N,R4002,100193,LC,20298,Stock Procurement,R400201,201711
27/02/2018,City Developments and Neighbourhood,Leicester Market Traders' Publicity & Promotions,Commercial - Factory rent,"2,915.20",0.00,Rent - Non-Dwellings,63630576,N,R9453,100241,LC,20275,Retail Markets,R945301,201711
21/02/2018,Adults & Housing Department,Allsigns International Ltd,Responsive,706.85,141.37,Building Works & Repairs/Maintenance/Alterations,63624992,A,R2000,100249,LC,20183,Sports Management Overhead Account,R200001,201711
27/02/2018,City Developments and Neighbourhood,Aqua-Jet Specialist Drainage Contractors Ltd,Responsive,643.96,128.79,Building Works & Repairs/Maintenance/Alterations,63630725,N,R2000,100298,LC,10307,Building & Service Maintenance External,R200001,201711
20/02/2018,Education & Childrens Services,Argos Business Solutions,Equipment / Other - Child,673.10,134.62,Other Agencies,63621327,C,R5800,100321,LC,32438,LAC Team B 16+,R580023,201711
14/02/2018,City Developments and Neighbourhood,Ashtead Plant Hire Co Ltd,Project - Hire Equipment / Events,660.20,132.04,Project - Equipment Hire / Lease,63626941,N,R4083,100337,LC,20104,Festivals & Events,R408301,201711
16/02/2018,Education & Childrens Services,Axlr8 Rd.User Education Proj.,Education and Training Services,"1,296.00",0.00,Education & Training Services,63624053,C,R4410,100403,LC,31232,Federated Pupils Referral Unit Curriculum,R441001,201711
,City Developments and Neighbourhood,Barcham Trees PLC,Materials Purchase,"1,058.40",211.68,Materials Purchase,63626728,N,R4002,100477,LC,20249,Trees and Woodland service City Wide,R400201,201711
23/02/2018,City Developments and Neighbourhood,Biffa Waste Services Ltd,Landfill Tax,"38,881.04","7,776.21",Private Contractors,63626125,N,R5700,100546,LC,20234,Public Finance Investment Waste Management,R570041,201711
13/02/2018,City Developments and Neighbourhood,B&Q Plc,Gift certificates / vouchers / cards,"2,149.87",429.97,Printed & Electronic Media,63626078,N,R4010,100641,LC,50102,Property Lettings Team,R401013,201711
27/02/2018,,C M Builders,Building Works - Alterations,"5,160.00",0.00,Building Works - Alterations,63630359,,C2000,100801,LC,95000,Housing GF,C200001,201711
27/02/2018,,C M Builders,Building Works - Alterations,"12,099.00",0.00,Building Works - Alterations,63630543,,C2000,100801,LC,95000,Housing GF,C200001,201711
20/02/2018,City Developments and Neighbourhood,Oliveti Construction Ltd,Project - Responsive,"6,399.37","1,279.87",Project - Repairs / Maintenance / Alterations,63627506,N,R2080,101166,LC,50303,City Wide Repairs,R208001,201711
28/02/2018,Education & Childrens Services,Compass Fostering Central Ltd,Independent Foster Agencies,"2,899.96",0.00,Other Agencies,63625197,C,R5800,101171,LC,32345,Independent Fostering Agencies,R580054,201711
09/02/2018,Education & Childrens Services,Compass Fostering Central Ltd,Independent Foster Agencies,"2,989.20",0.00,Other Agencies,63625974,C,R5800,101171,LC,32345,Independent Fostering Agencies,R580054,201711
16/02/2018,,Danaher & Walsh (C E ) Ltd,External Works - Infrastructure,"45,024.84","9,004.97",Transport Infrastructure,63627099,,C3600,101268,LC,95004,City Developments and Neighbourhood,C360002,201711
09/02/2018,City Developments and Neighbourhood,Duval FM Ltd.,Security & Safety Services,"1,621.88",324.38,Public Order & Security Services,63622706,N,R4413,101440,LC,10942,York House Granby St,R441301,201711
07/02/2018,City Developments and Neighbourhood,Duval FM Ltd.,Security & Safety Services,"1,328.64",265.73,Public Order & Security Services,63624842,N,R4413,101440,LC,10950,Beaumont Leys Data Centre,R441301,201711
07/02/2018,City Developments and Neighbourhood,Duval FM Ltd.,Security & Safety Services,"1,704.92",340.98,Public Order & Security Services,63624846,N,R4413,101440,LC,10942,York House Granby St,R441301,201711
14/02/2018,City Developments and Neighbourhood,Duval FM Ltd.,Security & Safety Services,"1,328.64",265.73,Public Order & Security Services,63627046,N,R4413,101440,LC,10950,Beaumont Leys Data Centre,R441301,201711
09/02/2018,City Developments and Neighbourhood,East Berks Electrical Ltd,Responsive,744.00,148.80,Building Services / Repairs & Maintenance  Fixtures & Fittings,63624951,N,R2001,101449,LC,10070,Central Maintenance Fund Non Schools,R200101,201711
13/02/2018,Adults & Housing Department,Medpage Ltd t/a Easylink UK,Aids & Adaptations,742.50,148.50,Aids & Adaptations,63626241,A,R4009,101475,LC,40190,Adaptations and Assistive Technology,R400901,201711
20/02/2018,City Developments and Neighbourhood,Enterprise Rent-A-Car,Hire Vehicles,"1,656.00",331.20,Hire Vehicles,63627447,N,R3203,101584,LC,20302,Hire Vehicles,R320301,201711
06/02/2018,City Developments and Neighbourhood,Uk Gas Services Ltd,Sundry Project Grants,"2,409.87",481.97,Private Contractors,63623271,N,R5700,101812,LC,20916,Health Through Warmth,R570034,201711
20/02/2018,City Developments and Neighbourhood,Uk Gas Services Ltd,Sundry Project Grants,"1,698.73",339.75,Private Contractors,63628381,N,R5700,101812,LC,20916,Health Through Warmth,R570034,201711
,Adults & Housing Department,Guru Tegh Bahadur Luncheon Cl,Day Care /Community Opportunities,796.40,0.00,Day Care /Community Opportunities,41550281,A,R5707,101956,LC,40307,EAST - Comm'g - Springfield Road - East 3,R570701,201711
20/02/2018,,Arcadis LLP,Consultant Fees,"5,589.68","1,117.94",Consultant Fees,63617381,,C4417,102038,LC,95005,Education and Children's Services,C441701,201711
20/02/2018,City Developments and Neighbourhood,Arcadis LLP,Consultants Fees,"37,620.00","7,524.00",Consultant Fees,63628500,N,R4417,102038,LC,32158,11 - 19 Programme,R441701,201711
23/02/2018,,Arcadis LLP,Fixtures & Fittings,"4,753.25",950.65,Fixtures & Fittings,63628501,,C2001,102038,LC,95005,Education and Children's Services,C200101,201711
09/02/2018,Adults & Housing Department,Creative Support Ltd,Supported Living - Night Intensive,900.90,0.00,Supported Living,41546391,A,R5703,102103,LC,41152,LD Team 2 -Commissioning,R570306,201711
06/02/2018,City Developments and Neighbourhood,Leicester YMCA,Sundry Project Grants,"15,249.00",0.00,Voluntary Organisations,63624126,N,R5500,102123,LC,50214,Y Advice & Support Centre,R550015,201711
23/02/2018,Education & Childrens Services,Hopwells Ltd,Catering - Provisions,"32,860.58",0.00,Catering Provisions / Food & Drink,63622613,C,R4106,102200,LC,20702,Catering - School Meals O/H Acc,R410601,201711
,Corporate Resources & Support,Insight Direct (Uk) Ltd,Annual Maintenance - Software,"2,555.84",511.17,Repairs & Maintenance  IT Software,63628705,T,R4503,102361,LC,10325,Service Support,R450302,201711
28/02/2018,Education & Childrens Services,Jay Fostering Ltd,Independent Foster Agencies,"3,017.28",0.00,Other Agencies,63624311,C,R5800,102431,LC,32345,Independent Fostering Agencies,R580054,201711
28/02/2018,Education & Childrens Services,Jay Fostering Ltd,Independent Foster Agencies,"3,162.04",0.00,Other Agencies,63624315,C,R5800,102431,LC,32527,UASC National Rate,R580054,201711
28/02/2018,Education & Childrens Services,Jay Fostering Ltd,Independent Foster Agencies,"3,162.04",0.00,Other Agencies,63624326,C,R5800,102431,LC,32527,UASC National Rate,R580054,201711
28/02/2018,Education & Childrens Services,Jay Fostering Ltd,Independent Foster Agencies,"10,634.16",0.00,Other Agencies,63624318,C,R5800,102431,LC,32345,Independent Fostering Agencies,R580054,201711
28/02/2018,Education & Childrens Services,Jay Fostering Ltd,Independent Foster Agencies,"2,866.36",0.00,Other Agencies,63624290,C,R5800,102431,LC,32345,Independent Fostering Agencies,R580054,201711
28/02/2018,Education & Childrens Services,Jay Fostering Ltd,Parenting Assessments,"2,523.36",0.00,Other Agencies,63628018,C,R5800,102431,LC,31590,Externally Commissioned Placements,R580053,201711
06/02/2018,City Developments and Neighbourhood,Landmark Trading (Stamford) Ltd,Materials Purchase,887.64,177.53,Materials Purchase,63621245,N,R4002,102619,LC,20249,Trees and Woodland service City Wide,R400201,201711
,City Developments and Neighbourhood,Leicestershire County Council,Other Local Authorities,"5,355.00","1,071.00",Other Local Authorities,63630481,N,R5200,102667,LC,20080,Bus Information Strategy,R520002,201711
,City Developments and Neighbourhood,Leicestershire County Council,Other Local Authorities,"22,462.50","4,492.50",Other Local Authorities,63630483,N,R5200,102667,LC,20081,Travel Concessions,R520002,201711
21/02/2018,Adults & Housing Department,Leicestershire Partnership NHS Trust,Weight Management - Pregnancy,"51,359.73",0.00,Healthy Weight  - Adult,63625017,A,R5601,102721,LC,40785,"Diet,Physical Activity, Healthy Weight",R560101,201711
,City Developments and Neighbourhood,Leicester Football Club Plc (Leicester Tigers),Marketing and Advertising,"1,000.00",200.00,Marketing & Advertising,63629102,N,R4516,102729,LC,20794,DMH Overhead Account,R451601,201711
28/02/2018,Education & Childrens Services,Lewis Charlton Ltd,Independent School Fees,"19,950.00",0.00,Independent School Fees,63630848,C,R4418,102818,LC,31203,Independent and Non-Maintained Schools,R441801,201711
28/02/2018,Education & Childrens Services,Lewis Charlton Ltd,Independent School Fees,"17,196.00",0.00,Independent School Fees,63630859,C,R4418,102818,LC,31203,Independent and Non-Maintained Schools,R441801,201711
09/02/2018,City Developments and Neighbourhood,Lift & Engineering Services Ltd,Responsive,765.50,153.10,Building Services / Repairs & Maintenance  Fixtures & Fittings,63624873,N,R2001,102864,LC,50260,Contractor Repair & Maintenance projects,R200101,201711
07/02/2018,City Developments and Neighbourhood,Lowe Electrical,Electricity at Work - Works,"1,545.13",309.03,Electricity at Work,63624867,N,R2004,102910,LC,20818,Meynells Gorse Park & Ride,R200402,201711
07/02/2018,City Developments and Neighbourhood,Lowe Electrical,Responsive,"1,591.56",318.31,Building Services / Repairs & Maintenance  Fixtures & Fittings,63624877,N,R2001,102910,LC,10070,Central Maintenance Fund Non Schools,R200101,201711
09/02/2018,City Developments and Neighbourhood,Lowe Electrical,Responsive,581.55,116.31,Building Services / Repairs & Maintenance  Fixtures & Fittings,63625805,N,R2001,102910,LC,10719,General Corporate Estate,R200101,201711
09/02/2018,City Developments and Neighbourhood,Lowe Electrical,Electricity at Work - Works,"2,402.50",480.50,Electricity at Work,63625347,N,R2004,102910,LC,10080,Schools Buy Back Board,R200402,201711
14/02/2018,City Developments and Neighbourhood,Lowe Electrical,Responsive,"1,949.35",389.87,Building Services / Repairs & Maintenance  Fixtures & Fittings,63625358,N,R2001,102910,LC,10056,Linwood Workshop,R200101,201711
27/02/2018,City Developments and Neighbourhood,Lowe Electrical,Responsive,512.76,102.55,Building Services / Repairs & Maintenance  Fixtures & Fittings,63629814,N,R2001,102910,LC,10080,Schools Buy Back Board,R200101,201711
27/02/2018,City Developments and Neighbourhood,Lowe Electrical,Responsive,591.25,118.25,Building Services / Repairs & Maintenance  Fixtures & Fittings,63629928,N,R2001,102910,LC,10070,Central Maintenance Fund Non Schools,R200101,201711
23/02/2018,City Developments and Neighbourhood,Lowe Electrical,Electricity at Work - Surveys,"3,245.39",649.08,Electricity at Work,63627881,N,R2004,102910,LC,10539,Central Maintenance Fund - Schools,R200401,201711
28/02/2018,Adults & Housing Department,Macintyre Care,Residential Permanent,"1,624.00",0.00,Residential Care,41552397,A,R5701,102979,LC,41153,LD Targeted Reassessment Team-Commissioning,R570104,201711
27/02/2018,City Developments and Neighbourhood,Maun Motors,Hire Vehicles,855.00,171.00,Hire Vehicles,63629921,N,R3203,103005,LC,20302,Hire Vehicles,R320301,201711
28/02/2018,Adults & Housing Department,Royal Mencap Society,Residential Permanent,"1,766.64",0.00,Residential Care,41552509,A,R5701,103077,LC,41153,LD Targeted Reassessment Team-Commissioning,R570104,201711
,Adults & Housing Department,Royal Mencap Society,Day Care /Community Opportunities,989.60,0.00,Day Care /Community Opportunities,41547066,A,R5707,103077,LC,41152,LD Team 2 -Commissioning,R570701,201711
,Adults & Housing Department,Royal Mencap Society,Day Care /Community Opportunities,593.76,0.00,Day Care /Community Opportunities,41547068,A,R5707,103077,LC,41152,LD Team 2 -Commissioning,R570701,201711
20/02/2018,Education & Childrens Services,Bryn Melyn Care Ltd,Residential Placements,"19,516.00",0.00,Other Agencies,63623482,C,R5800,103091,LC,31590,Externally Commissioned Placements,R580051,201711
27/02/2018,Education & Childrens Services,LCC Millgate School,Special Schools Standard Fund,"2,917.00",0.00,Special Schools Standard Fund,63629880,C,R6031,103118,LC,32343,DSG Funded Activities,R603101,201711
28/02/2018,City Developments and Neighbourhood,Millennium Quest Ltd,Project - Equipment Purchase,998.00,199.60,Project - Equipment Purchase,63626484,N,R4080,103120,LC,20006,Miscellaneous Maintenance,R408001,201711
21/02/2018,City Developments and Neighbourhood,Mole Groundworks Limited,Landscaping,"4,929.00",985.80,Grounds Maintenance,63623564,N,R2750,103182,LC,20262,Landscape Services Citywide,R275003,201711
20/02/2018,City Developments and Neighbourhood,Mole Groundworks Limited,Materials Purchase,"4,690.00",938.00,Materials Purchase,63623544,N,R4002,103182,LC,20262,Landscape Services Citywide,R400201,201711
20/02/2018,City Developments and Neighbourhood,Mole Groundworks Limited,Materials Purchase,"4,800.00",960.00,Materials Purchase,63623549,N,R4002,103182,LC,20262,Landscape Services Citywide,R400201,201711
20/02/2018,City Developments and Neighbourhood,Mole Groundworks Limited,Materials Purchase,"4,960.00",992.00,Materials Purchase,63623551,N,R4002,103182,LC,20262,Landscape Services Citywide,R400201,201711
06/02/2018,Education & Childrens Services,National Fostering Agency,Independent Foster Agencies,"1,188.00",0.00,Other Agencies,63624041,C,R5800,103253,LC,32527,UASC National Rate,R580054,201711
09/02/2018,City Developments and Neighbourhood,Norman & Underwood (Glazing Systems) Ltd,Responsive,870.00,174.00,Building Works & Repairs/Maintenance/Alterations,63625779,N,R2000,103355,LC,10757,Corporate Landlord - CLABS,R200001,201711
09/02/2018,City Developments and Neighbourhood,Nottingham City Council,Equipment Purchase,907.00,181.40,Equipment Purchase,63625723,N,R4000,103362,LC,20961,Bus lane Enforcement,R400001,201711
02/02/2018,Adults & Housing Department,Nottingham Rehab Ltd t/a NRS Healthcare,ICES Collection Fees,"18,653.00","3,730.60",Voluntary Organisations,63619154,A,R5501,103401,LC,40738,Integrated community Equipment Service,R550132,201711
28/02/2018,Adults & Housing Department,Nottingham Rehab Ltd t/a NRS Healthcare,ICES Repairs,"6,208.00","1,241.60",Voluntary Organisations,63627884,A,R5501,103401,LC,40738,Integrated community Equipment Service,R550133,201711
27/02/2018,City Developments and Neighbourhood,One Stop Promotions Ltd,Editorial and Design and Graphic and Fine Art Services,542.50,108.50,Editorial & Design & Graphic & Fine Art Services,63623446,N,R4406,103446,LC,21068,Arts and Museums Projects (NS),R440601,201711
,City Developments and Neighbourhood,Oxford University Press,Libraries Book Fund,"2,856.00",571.20,Printed & Electronic Media,41550384,N,R4010,103502,LC,20140,Reader Development Services,R401007,201711
23/02/2018,Education & Childrens Services,Peterborough City Council,Other Local Authorities,"4,491.17",0.00,Other Local Authorities,63629593,C,R5200,103583,LC,32414,Special Top-Ups,R520002,201711
28/02/2018,City Developments and Neighbourhood,Premier Security Services Ltd T/a Regent Samsic,Security & Safety Services,663.00,132.60,Public Order & Security Services,63626895,N,R4413,103755,LC,10934,Collegiate House,R441301,201711
23/02/2018,City Developments and Neighbourhood,Pitney Bowes Ltd t/a Pitney Bowes Purchase Power,Postage,"2,333.60",PE,Postage,63629710,N,R4512,103777,LC,50064,Income Management Team,R451201,201711
02/02/2018,City Developments and Neighbourhood,Readings Property Group Limited,Engineering / Research / Technology / Science Services,"1,600.00",320.00,Engineering / Research / Technology / Science Services,63621722,N,R4405,103876,LC,50247,Right To Buy,R440501,201711
16/02/2018,,Rg & P Ltd,Consultant Fees,"1,928.64",385.73,Consultant Fees,63624253,,C4417,103912,LC,95001,Housing HRA,C441701,201711
20/02/2018,City Developments and Neighbourhood,Rossells Locksmiths Ltd,Vandalism,645.47,129.09,Building Works & Repairs/Maintenance/Alterations,63628502,N,R2000,103944,LC,10070,Central Maintenance Fund Non Schools,R200006,201711
,Corporate Resources & Support,Royal Society for the Prevention of Accidents (RoSPA),Training,"1,045.00",209.00,Employee Training,63627715,T,R1950,103947,LC,10140,Corporate Health & Safety,R195001,201711
14/02/2018,City Developments and Neighbourhood,Sandicliffe Of Leicester Ltd,Repairs & Maintenance Vehicles,514.92,102.98,Vehicles Repairs & Maintenance / Parts & Accessories,63626020,N,R3000,104037,LC,20331,Workshop,R300001,201711
27/02/2018,Adults & Housing Department,Sanatan Manavta Day Care Serv,Day Care /Community Opportunities,542.20,0.00,Day Care /Community Opportunities,41545075,A,R5707,104042,LC,40315,WEST - Comm'g - Belgrave - Team 1,R570701,201711
13/02/2018,,Jcl Services,Building Works - Alterations,"22,974.63","4,594.93",Building Works - Alterations,63625784,,C2000,104099,LC,95001,Housing HRA,C200001,201711
07/02/2018,City Developments and Neighbourhood,AT Services Ltd,Project - Responsive,"5,135.54","1,027.11",Project - R&M Fixtures & Fittings,63620343,N,R2081,104108,LC,50260,Contractor Repair & Maintenance projects,R208101,201711
27/02/2018,City Developments and Neighbourhood,AT Services Ltd,Responsive,561.28,112.26,Building Services / Repairs & Maintenance  Fixtures & Fittings,63630272,N,R2001,104108,LC,10080,Schools Buy Back Board,R200101,201711
14/02/2018,City Developments and Neighbourhood,Siemens PLC,R&M IT Software,810.00,162.00,Repairs & Maintenance  IT Software,63621466,N,R4503,104202,LC,20049,Signals Maintenance - Leicester City,R450301,201711
27/02/2018,City Developments and Neighbourhood,SLB Distribution & Promotion Services Ltd,Marketing and Advertising,931.50,186.30,Project - Marketing,63621157,N,R4586,104258,LC,20127,Arts & Museums Marketing,R458601,201711
20/02/2018,Education & Childrens Services,Sutherland House (Trading) Ltd,Independent School Fees,"5,400.00","1,080.00",Independent School Fees,63624692,C,R4418,104481,LC,31203,Independent and Non-Maintained Schools,R441801,201711
20/02/2018,Education & Childrens Services,Sutherland House (Trading) Ltd,Independent School Fees,"10,337.00","2,067.40",Independent School Fees,63624686,C,R4418,104481,LC,31203,Independent and Non-Maintained Schools,R441801,201711
23/02/2018,City Developments and Neighbourhood,Tarmac Ltd,Materials Purchase,624.62,124.92,Materials Purchase,63623808,N,R4002,104520,LC,20295,City Highways - Operation,R400201,201711
14/02/2018,City Developments and Neighbourhood,Terratruck Distrbution Services Ltd,Repair & Maintenance Tools / Equipment,800.40,160.08,Repairs & Maintenance - Equipment & Furniture,63619336,N,R4005,104531,LC,20249,Trees and Woodland service City Wide,R400501,201711
02/02/2018,City Developments and Neighbourhood,Thomas Cassie & Sons,Responsive,"4,031.46",806.29,Building Works & Repairs/Maintenance/Alterations,63623864,N,R2000,104596,LC,10080,Schools Buy Back Board,R200001,201711
02/02/2018,City Developments and Neighbourhood,Thomas Cassie & Sons,Responsive,"3,850.22",770.04,Building Works & Repairs/Maintenance/Alterations,63623858,N,R2000,104596,LC,10080,Schools Buy Back Board,R200001,201711
27/02/2018,City Developments and Neighbourhood,Thomas Cassie & Sons,Responsive,"3,000.00",600.00,Building Works & Repairs/Maintenance/Alterations,63630243,N,R2000,104596,LC,10070,Central Maintenance Fund Non Schools,R200001,201711
20/02/2018,City Developments and Neighbourhood,The Sparks Childrens Arts Festival,Beaumont Leys - Ward Consultative Committees,500.00,0.00,Independent Units Within The Council,63627782,N,R5000,104597,LC,10068,Ward Community Fund,R500014,201711
07/02/2018,City Developments and Neighbourhood,Total Gas & Power Ltd,Electricity Bills,"1,572.15",78.61,Electricity Utilities,41545495,N,R2100,104632,LC,50071,Flat Services,R210001,201711
07/02/2018,City Developments and Neighbourhood,Total Gas & Power Ltd,Electricity Bills,582.25,116.45,Electricity Utilities,41545243,N,R2100,104632,LC,10040,Investment Property,R210001,201711
07/02/2018,,Total Gas & Power Ltd,Electricity Utilities,"3,451.17",690.23,Gas and Electricity Utilities,41545274,,C2100,104632,LC,95004,City Developments and Neighbourhood,C210001,201711
07/02/2018,City Developments and Neighbourhood,Total Gas & Power Ltd,Electricity Bills,"1,300.28",260.06,Electricity Utilities,41545299,N,R2100,104632,LC,20811,Lighting Energy,R210001,201711
07/02/2018,City Developments and Neighbourhood,Total Gas & Power Ltd,Project - Electricity,612.06,30.60,Project - Electricity,41546206,N,R2083,104632,LC,50075,Sheltered Accommodation,R208301,201711
07/02/2018,Education & Childrens Services,Total Gas & Power Ltd,Electricity Bills,732.07,36.60,Electricity Utilities,41545219,C,R2100,104632,LC,31602,Dunblane,R210001,201711
07/02/2018,City Developments and Neighbourhood,Total Gas & Power Ltd,Electricity Bills,619.61,123.92,Electricity Utilities,41546389,N,R2100,104632,LC,50071,Flat Services,R210001,201711
07/02/2018,Education & Childrens Services,Total Gas & Power Ltd,Electricity Bills,957.07,191.41,Electricity Utilities,41545224,C,R2100,104632,LC,31587,Contact Service,R210001,201711
07/02/2018,,Total Gas & Power Ltd,Electricity Utilities,775.70,155.14,Gas and Electricity Utilities,41545280,,C2100,104632,LC,95004,City Developments and Neighbourhood,C210001,201711
07/02/2018,City Developments and Neighbourhood,Total Gas & Power Ltd,Electricity Bills,"1,155.13",231.03,Electricity Utilities,41546313,N,R2100,104632,LC,20244,Buildings,R210001,201711
,City Developments and Neighbourhood,Total Gas & Power Ltd,Electricity Bills,"2,613.73",130.69,Electricity Utilities,41548400,N,R2100,104632,LC,50436,Dawn Centre Accommodation,R210001,201711
,Adults & Housing Department,Total Gas & Power Ltd,Electricity Bills,"3,921.08",784.22,Electricity Utilities,41548411,A,R2100,104632,LC,20172,Evington Leisure Centre,R210001,201711
,Adults & Housing Department,Total Gas & Power Ltd,Electricity Bills,734.19,146.84,Electricity Utilities,41548425,A,R2100,104632,LC,20951,Aylestone Recreation Ground - Football Foundation Pavillion,R210001,201711
,Adults & Housing Department,Total Gas & Power Ltd,Electricity Bills,908.24,181.65,Electricity Utilities,41548426,A,R2100,104632,LC,20951,Aylestone Recreation Ground - Football Foundation Pavillion,R210001,201711
,Adults & Housing Department,Total Gas & Power Ltd,Electricity Bills,"1,019.77",203.95,Electricity Utilities,41548427,A,R2100,104632,LC,20951,Aylestone Recreation Ground - Football Foundation Pavillion,R210001,201711
,Adults & Housing Department,Total Gas & Power Ltd,Electricity Bills,704.16,140.83,Electricity Utilities,41548428,A,R2100,104632,LC,20951,Aylestone Recreation Ground - Football Foundation Pavillion,R210001,201711
,City Developments and Neighbourhood,Total Gas & Power Ltd,Electricity Bills,"1,426.89",285.38,Electricity Utilities,41548377,N,R2100,104632,LC,20077,Haymarket Car Park,R210001,201711
,City Developments and Neighbourhood,Total Gas & Power Ltd,Electricity Bills,"2,416.22",483.24,Electricity Utilities,41548388,N,R2100,104632,LC,20276,New Market Hall,R210001,201711
,City Developments and Neighbourhood,Total Gas & Power Ltd,Electricity Bills,765.03,153.01,Electricity Utilities,41548391,N,R2100,104632,LC,10932,Town Hall,R210001,201711
,City Developments and Neighbourhood,Total Gas & Power Ltd,Electricity Bills,"7,100.64","1,420.13",Electricity Utilities,41548392,N,R2100,104632,LC,10950,Beaumont Leys Data Centre,R210001,201711
,Adults & Housing Department,Total Gas & Power Ltd,Electricity Bills,"1,482.51",296.50,Electricity Utilities,41548430,A,R2100,104632,LC,20954,Riverside - Football Foundation Pavillion,R210001,201711
,City Developments and Neighbourhood,Total Gas & Power Ltd,Electricity Bills,"2,402.79",480.56,Electricity Utilities,41548432,N,R2100,104632,LC,20293,Leicester Creative Business Depot,R210001,201711
,Education & Childrens Services,Total Gas & Power Ltd,Electricity Bills,"2,285.79",457.16,Electricity Utilities,41548352,C,R2100,104632,LC,31037,New Parks Sure Start,R210001,201711
,City Developments and Neighbourhood,Total Gas & Power Ltd,Electricity Bills,883.78,176.76,Electricity Utilities,41548366,N,R2100,104632,LC,20839,Newarke Houses Museum,R210001,201711
,City Developments and Neighbourhood,Total Gas & Power Ltd,Electricity Bills,518.57,103.71,Electricity Utilities,41548371,N,R2100,104632,LC,20811,Lighting Energy,R210001,201711
,City Developments and Neighbourhood,Total Gas & Power Ltd,Electricity Bills,658.57,131.71,Electricity Utilities,41548373,N,R2100,104632,LC,20811,Lighting Energy,R210001,201711
,City Developments and Neighbourhood,Total Gas & Power Ltd,Gas Bills,"1,289.81",257.96,Gas Utilities,41550327,N,R2101,104632,LC,20138,Abbey Pumping Station,R210101,201711
,City Developments and Neighbourhood,Total Gas & Power Ltd,Gas Bills,"1,346.38",67.32,Gas Utilities,41547293,N,R2101,104632,LC,21021,Leicester District Energy,R210101,201711
,Adults & Housing Department,Total Gas & Power Ltd,Gas Bills,"6,542.98",327.15,Gas Utilities,41550581,A,R2101,104632,LC,20177,Braunstone Leisure Centre,R210101,201711
,City Developments and Neighbourhood,Total Gas & Power Ltd,Gas Bills,"1,008.63",201.73,Gas Utilities,41550587,N,R2101,104632,LC,21072,Beaumont Leys Library & Beaumont Way (Childrens Centre),R210101,201711
,City Developments and Neighbourhood,Total Gas & Power Ltd,Gas Bills,945.29,47.26,Project - Gas,41550535,N,R2084,104632,LC,50075,Sheltered Accommodation,R208401,201711
,Education & Childrens Services,Total Gas & Power Ltd,Gas Bills,977.62,48.88,Gas Utilities,41550508,C,R2101,104632,LC,31609,Barnes Heath,R210101,201711
,City Developments and Neighbourhood,Total Gas & Power Ltd,Gas Bills,"2,084.17",416.83,Gas Utilities,41550559,N,R2101,104632,LC,10045,Vulcan House,R210101,201711
,City Developments and Neighbourhood,Total Gas & Power Ltd,Gas Bills,953.73,190.75,Gas Utilities,41550569,N,R2101,104632,LC,20244,Buildings,R210101,201711
23/02/2018,City Developments and Neighbourhood,M Turner Services Ltd,Materials Purchase,540.00,108.00,Materials Purchase,63626223,N,R4002,104688,LC,50458,Metalwork (RM3),R400201,201711
21/02/2018,,Tyco Integrated Fire & Security,Building Works - Alterations,"46,246.51","9,249.30",Building Works - Alterations,63625151,,C2000,104700,LC,95004,City Developments and Neighbourhood,C200001,201711
27/02/2018,,Tyco Integrated Fire & Security,Equipment Purchase,"1,290.55",258.11,Equipment Purchase,63625161,,C4000,104700,LC,95004,City Developments and Neighbourhood,C400001,201711
27/02/2018,Corporate Resources & Support,Telefonica O2 UK Ltd,Telephony lease / rental,"1,163.11",232.62,Communications Equipment Lease / Rental,63629868,T,R4510,104708,LC,10160,Mobile Device Airtime,R451007,201711
,Corporate Resources & Support,University Hospitals of Leicester NHS Trust,Healthcare Services,"18,080.33",0.00,Healthcare Services,63628836,T,R4408,104740,LC,10147,Occupational Health Service Provider,R440801,201711
,Adults & Housing Department,Westcotes House Ltd,Accommodation Expenses,"1,705.00",341.00,Accommodation Expenses,63631215,A,R4604,104862,LC,41152,LD Team 2 -Commissioning,R460401,201711
,Education & Childrens Services,Westcotes House Ltd,Accommodation - Service User Flats,"1,705.00",341.00,Other Establishments,63630143,C,R5600,104862,LC,32130,LAC - Person From Abroad,R560063,201711
02/02/2018,Education & Childrens Services,A Zoom Ltd,Employee Taxi Travel Expense,"97,967.49","19,593.50",Taxi Travel Expense,63622071,C,R3303,105049,LC,20303,Operational Transport Ad Hoc,R330301,201711
23/02/2018,Education & Childrens Services,A Zoom Ltd,Employee Taxi Travel Expense,"127,818.64","25,563.73",Taxi Travel Expense,63628474,C,R3303,105049,LC,20303,Operational Transport Ad Hoc,R330301,201711
23/02/2018,Adults & Housing Department,Zoggs International Limited,Equipment Purchased for Resale,507.00,101.40,Equipment Purchase,63622596,A,R4000,105063,LC,20175,Leicester Leys Leisure Centre,R400007,201711
27/02/2018,,A Hull Electrical Ltd,Building Works - Alterations,"126,805.73","25,361.15",Building Works - Alterations,63629771,,C2000,105846,LC,95001,Housing HRA,C200001,201711
23/02/2018,City Developments and Neighbourhood,Keltic Ltd,Clothing Footwear & Laundry,"1,163.05",232.61,"Clothing, Footwear & Laundry",63624071,N,R4200,105953,LC,20777,On-Street Parking/ De-criminalised Parking Enforcement,R420001,201711
23/02/2018,City Developments and Neighbourhood,Keltic Ltd,Clothing Footwear & Laundry,"2,435.85",487.17,"Clothing, Footwear & Laundry",63624076,N,R4200,105953,LC,20777,On-Street Parking/ De-criminalised Parking Enforcement,R420001,201711
16/02/2018,Corporate Resources & Support,Straw & Pearce Solicitors,LCC Ext Solicitors Costs,716.20,143.24,Legal Fees & Charges,63627359,T,R4425,106614,LC,10202,Legal Disbursements,R442505,201711
,Corporate Resources & Support,Straw & Pearce Solicitors,LCC Ext Solicitors Costs,"1,995.10",399.02,Legal Fees & Charges,63629665,T,R4425,106614,LC,10202,Legal Disbursements,R442505,201711
,Adults & Housing Department,Enham Client Account,Direct Payments - Homecare,"7,134.02",0.00,Direct Payments,63630835,A,R5706,107299,LC,40321,West - Commissioning - Westcotes Team 4,R570602,201711
28/02/2018,Adults & Housing Department,Royal Society For The Blind,Residential Permanent,794.68,0.00,Residential Care,41552529,A,R5701,107319,LC,40311,EAST - Commissioning - Supported Residents Care Team,R570104,201711
28/02/2018,Adults & Housing Department,Royal Society For The Blind,Residential Permanent,"1,938.00",0.00,Residential Care,41552530,A,R5701,107319,LC,40311,EAST - Commissioning - Supported Residents Care Team,R570104,201711
28/02/2018,Adults & Housing Department,Royal Society For The Blind,Residential Permanent,"1,938.00",0.00,Residential Care,41552535,A,R5701,107319,LC,40311,EAST - Commissioning - Supported Residents Care Team,R570104,201711
28/02/2018,Adults & Housing Department,Craegmoor Facilities Co Ltd t/a Craegmoor Landsdowne Road,Residential Permanent,"1,766.64",0.00,Residential Care,41552354,A,R5701,107371,LC,41152,LD Team 2 -Commissioning,R570104,201711
28/02/2018,Adults & Housing Department,Craegmoor Facilities Co Ltd t/a Craegmoor Landsdowne Road,Residential Short Stay,946.41,0.00,Residential Care,41552364,A,R5701,107371,LC,41152,LD Team 2 -Commissioning,R570103,201711
28/02/2018,Adults & Housing Department,Craegmoor Facilities Co Ltd t/a Craegmoor Landsdowne Road,Residential Permanent,545.08,0.00,Residential Care,41552366,A,R5701,107371,LC,41152,LD Team 2 -Commissioning,R570104,201711
28/02/2018,Adults & Housing Department,Craegmoor Facilities Co Ltd t/a Craegmoor Landsdowne Road,Residential Permanent,"1,766.64",0.00,Residential Care,41552360,A,R5701,107371,LC,41153,LD Targeted Reassessment Team-Commissioning,R570104,201711
28/02/2018,Adults & Housing Department,Craegmoor Facilities Co Ltd t/a Craegmoor Landsdowne Road,Residential Permanent,"1,766.64",0.00,Residential Care,41552352,A,R5701,107371,LC,41152,LD Team 2 -Commissioning,R570104,201711
28/02/2018,Adults & Housing Department,Prime Life Plc,Residential Permanent,"1,558.56",0.00,Residential Care,41552864,A,R5701,107377,LC,40228,Commissioning Community - CMHT City East (Merlyn Vaz),R570104,201711
28/02/2018,Adults & Housing Department,Prime Life Plc,Residential Permanent,"1,738.08",0.00,Residential Care,41552867,A,R5701,107377,LC,40311,EAST - Commissioning - Supported Residents Care Team,R570104,201711
,Adults & Housing Department,Prime Life Plc,Residential Short Stay,682.82,0.00,Residential Care,41552869,A,R5701,107377,LC,40307,EAST - Comm'g - Springfield Road - East 3,R570103,201711
28/02/2018,Adults & Housing Department,Prime Life Plc,Residential Permanent,"1,938.00",0.00,Residential Care,41552870,A,R5701,107377,LC,40311,EAST - Commissioning - Supported Residents Care Team,R570104,201711
28/02/2018,Adults & Housing Department,Prime Life Plc,Residential Permanent,"1,564.00",0.00,Residential Care,41552848,A,R5701,107377,LC,40311,EAST - Commissioning - Supported Residents Care Team,R570104,201711
28/02/2018,Adults & Housing Department,Prime Life Plc,Residential Permanent,"1,173.00",0.00,Residential Care,41552849,A,R5701,107377,LC,40311,EAST - Commissioning - Supported Residents Care Team,R570104,201711
28/02/2018,Adults & Housing Department,Prime Life Plc,Residential Permanent,"1,938.00",0.00,Residential Care,41552856,A,R5701,107377,LC,40226,Adult Mental Health - Maidstone Road (Under 65 s) - Commissioning,R570104,201711
28/02/2018,Adults & Housing Department,Hamilton House,Residential Permanent,"1,558.56",0.00,Residential Care,41552203,A,R5701,107384,LC,40226,Adult Mental Health - Maidstone Road (Under 65 s) - Commissioning,R570104,201711
28/02/2018,Adults & Housing Department,Hamilton House,Residential Permanent,"1,938.00",0.00,Residential Care,41552205,A,R5701,107384,LC,40226,Adult Mental Health - Maidstone Road (Under 65 s) - Commissioning,R570104,201711
28/02/2018,Adults & Housing Department,Prime Life Plc,Residential Permanent,"1,938.00",0.00,Residential Care,41551966,A,R5701,107385,LC,40226,Adult Mental Health - Maidstone Road (Under 65 s) - Commissioning,R570104,201711
28/02/2018,Adults & Housing Department,Prime Life Plc,Residential Permanent,"1,938.00",0.00,Residential Care,41551954,A,R5701,107385,LC,40226,Adult Mental Health - Maidstone Road (Under 65 s) - Commissioning,R570104,201711
28/02/2018,Adults & Housing Department,Evington Home - Pilgrims' Friend Society,Residential Permanent,"1,674.00",0.00,Residential Care,41552568,A,R5701,107391,LC,40311,EAST - Commissioning - Supported Residents Care Team,R570104,201711
28/02/2018,Adults & Housing Department,Melbourne Home,Residential Permanent,"1,241.49",0.00,Residential Care,41552502,A,R5701,107393,LC,40307,EAST - Comm'g - Springfield Road - East 3,R570104,201711
28/02/2018,Adults & Housing Department,Sanctuary Care Ltd t/a Asra House,Residential Permanent,"1,938.00",0.00,Residential Care,41551811,A,R5701,107394,LC,40311,EAST - Commissioning - Supported Residents Care Team,R570104,201711
28/02/2018,Adults & Housing Department,Sanctuary Care Ltd t/a Asra House,Residential Permanent,"1,938.00",0.00,Residential Care,41551821,A,R5701,107394,LC,40303,EAST - Comm'g - Merlyn Vaz HC and St Peters - East 1,R570104,201711
28/02/2018,Adults & Housing Department,Sanctuary Care Ltd t/a Asra House,Residential Permanent,"1,738.08",0.00,Residential Care,41551823,A,R5701,107394,LC,40875,LOC WEST - Reablement - Team 2  - Sulgrave Road - Commissioning,R570104,201711
28/02/2018,Adults & Housing Department,Woodheyes Care Home,Residential Permanent,"1,021.92",0.00,Residential Care,41553044,A,R5701,107401,LC,40321,West - Commissioning - Westcotes Team 4,R570104,201711
28/02/2018,Adults & Housing Department,Woodheyes Care Home,Residential Permanent,"1,596.00",0.00,Residential Care,41553044,A,R5701,107401,LC,40321,West - Commissioning - Westcotes Team 4,R570104,201711
28/02/2018,Adults & Housing Department,Woodheyes Care Home,Residential Permanent,"1,021.92",0.00,Residential Care,41553045,A,R5701,107401,LC,40321,West - Commissioning - Westcotes Team 4,R570104,201711
28/02/2018,Adults & Housing Department,Roman Park,Residential Permanent,"1,576.00",0.00,Residential Care,41552582,A,R5701,107413,LC,41152,LD Team 2 -Commissioning,R570104,201711
28/02/2018,Adults & Housing Department,Gratia Residential Care Home Ltd,Residential Permanent,"2,675.80",0.00,Residential Care,41552146,A,R5701,107428,LC,41152,LD Team 2 -Commissioning,R570104,201711
28/02/2018,Adults & Housing Department,Westcotes Rest Home,Residential Permanent,"1,938.00",0.00,Residential Care,41552983,A,R5701,107430,LC,40311,EAST - Commissioning - Supported Residents Care Team,R570104,201711
28/02/2018,Adults & Housing Department,Westcotes Rest Home,Residential Permanent,"1,427.71",0.00,Residential Care,41552984,A,R5701,107430,LC,40311,EAST - Commissioning - Supported Residents Care Team,R570104,201711
28/02/2018,Adults & Housing Department,Venetia House,Residential Permanent,"1,187.19",0.00,Residential Care,41552933,A,R5701,107431,LC,40226,Adult Mental Health - Maidstone Road (Under 65 s) - Commissioning,R570104,201711
28/02/2018,Adults & Housing Department,Venetia House,Residential Permanent,"1,558.56",0.00,Residential Care,41552934,A,R5701,107431,LC,40226,Adult Mental Health - Maidstone Road (Under 65 s) - Commissioning,R570104,201711
28/02/2018,Adults & Housing Department,Prime Life Plc,Residential Permanent,"1,908.00",0.00,Residential Care,41551918,A,R5701,107438,LC,40311,EAST - Commissioning - Supported Residents Care Team,R570104,201711
28/02/2018,Adults & Housing Department,Eastern Care Ltd T/a Newton House,Residential Permanent,"1,938.00",0.00,Residential Care,41552549,A,R5701,107440,LC,40226,Adult Mental Health - Maidstone Road (Under 65 s) - Commissioning,R570104,201711
28/02/2018,Adults & Housing Department,Ashton Lodge,Residential Permanent,"1,938.00",0.00,Residential Care,41551800,A,R5701,107441,LC,40321,West - Commissioning - Westcotes Team 4,R570104,201711
28/02/2018,Adults & Housing Department,Ashton Lodge,Residential Short Stay,682.82,0.00,Residential Care,41551806,A,R5701,107441,LC,40307,EAST - Comm'g - Springfield Road - East 3,R570103,201711
28/02/2018,Adults & Housing Department,Ashton Lodge,Residential Permanent,692.14,0.00,Residential Care,41551810,A,R5701,107441,LC,40315,WEST - Comm'g - Belgrave - Team 1,R570104,201711
28/02/2018,Adults & Housing Department,Ashton Lodge,Residential Permanent,"1,938.00",0.00,Residential Care,41551791,A,R5701,107441,LC,40229,Commissioning - Braunstone Health & Social Care Centre - Adult Mental Health,R570104,201711
28/02/2018,Adults & Housing Department,Elliott Rest Homes,Residential Permanent,"1,558.56",0.00,Residential Care,41552068,A,R5701,107443,LC,40226,Adult Mental Health - Maidstone Road (Under 65 s) - Commissioning,R570104,201711
28/02/2018,Adults & Housing Department,Nottingham community  Housing Association (Carefirst),Residential Permanent,"1,938.00",0.00,Residential Care,41552096,A,R5701,107448,LC,40311,EAST - Commissioning - Supported Residents Care Team,R570104,201711
28/02/2018,Adults & Housing Department,Samalodge Ltd T/A Anita Jane�s Lodge,Residential Permanent,"1,558.56",0.00,Residential Care,41551747,A,R5701,107449,LC,40228,Commissioning Community - CMHT City East (Merlyn Vaz),R570104,201711
28/02/2018,Adults & Housing Department,Samalodge Ltd T/A Anita Jane�s Lodge,Residential Permanent,"1,558.56",0.00,Residential Care,41551750,A,R5701,107449,LC,40228,Commissioning Community - CMHT City East (Merlyn Vaz),R570104,201711
28/02/2018,Adults & Housing Department,Wyggeston Hospital,Residential Permanent,"1,738.08",0.00,Residential Care,41551728,A,R5701,107450,LC,40311,EAST - Commissioning - Supported Residents Care Team,R570104,201711
28/02/2018,Adults & Housing Department,Prime Life Plc,Interim Residential (Delayed Discharges),"1,624.00",0.00,Residential Care,41551905,A,R5701,107454,LC,40319,WEST - Comm'g - Paisley Road - Team 3,R570101,201711
28/02/2018,Adults & Housing Department,Prime Life Plc,Nursing Permanent,"1,889.04",0.00,Nursing Care,41551912,A,R5702,107454,LC,40311,EAST - Commissioning - Supported Residents Care Team,R570204,201711
28/02/2018,Adults & Housing Department,Prime Life Plc,Residential Permanent,"1,938.00",0.00,Residential Care,41552811,A,R5701,107466,LC,40311,EAST - Commissioning - Supported Residents Care Team,R570104,201711
28/02/2018,Adults & Housing Department,Pearlcare Glenfield Ltd (CLOSED: VAT REG),Residential Permanent,931.11,0.00,Residential Care,41552116,A,R5701,107471,LC,40317,WEST - Comm'g - Braunstone and Meridian - Team 2,R570104,201711
28/02/2018,Adults & Housing Department,Aylesham Court Nursing Home,Nursing Permanent,"1,736.00",0.00,Nursing Care,41551842,A,R5702,107472,LC,40321,West - Commissioning - Westcotes Team 4,R570204,201711
28/02/2018,Adults & Housing Department,Aylesham Court Nursing Home,Nursing Short Stay,682.00,0.00,Nursing Care,41551835,A,R5702,107472,LC,40311,EAST - Commissioning - Supported Residents Care Team,R570203,201711
28/02/2018,Adults & Housing Department,Charnwood Hall Nursing Home,Residential Permanent,"1,738.08",0.00,Residential Care,41553329,A,R5701,107491,LC,40873,LOC WEST - Reablement - Team 1  - Sulgrave Road - Commissioning,R570104,201711
28/02/2018,Adults & Housing Department,Satya Nivas Residential Home,Residential Permanent,"1,766.64",0.00,Residential Care,41552636,A,R5701,107513,LC,41152,LD Team 2 -Commissioning,R570104,201711
28/02/2018,Adults & Housing Department,Satya Nivas Residential Home,Residential Permanent,"1,738.08",0.00,Residential Care,41552642,A,R5701,107513,LC,40311,EAST - Commissioning - Supported Residents Care Team,R570104,201711
28/02/2018,Adults & Housing Department,Satya Nivas Residential Home,Residential Permanent,"1,738.08",0.00,Residential Care,41552643,A,R5701,107513,LC,40311,EAST - Commissioning - Supported Residents Care Team,R570104,201711
28/02/2018,Adults & Housing Department,Satya Nivas Residential Home,Residential Permanent,"3,476.16",0.00,Residential Care,41552644,A,R5701,107513,LC,40311,EAST - Commissioning - Supported Residents Care Team,R570104,201711
28/02/2018,Adults & Housing Department,Satya Nivas Residential Home,Residential Permanent,"1,766.64",0.00,Residential Care,41552653,A,R5701,107513,LC,41152,LD Team 2 -Commissioning,R570104,201711
28/02/2018,Adults & Housing Department,Methodist Home For The Aged- Aigburth,Residential Permanent,"1,596.00",0.00,Residential Care,41551734,A,R5701,107520,LC,40311,EAST - Commissioning - Supported Residents Care Team,R570104,201711
28/02/2018,Adults & Housing Department,Your Health Limited,Residential Permanent,"1,738.08",0.00,Residential Care,41552376,A,R5701,107525,LC,40311,EAST - Commissioning - Supported Residents Care Team,R570104,201711
28/02/2018,Adults & Housing Department,Lester Hall Apartments Ltd,Residential Permanent,840.92,0.00,Residential Care,41552384,A,R5701,107564,LC,40226,Adult Mental Health - Maidstone Road (Under 65 s) - Commissioning,R570104,201711
28/02/2018,Adults & Housing Department,Lester Hall Apartments Ltd,Residential Permanent,"1,558.56",0.00,Residential Care,41552388,A,R5701,107564,LC,40226,Adult Mental Health - Maidstone Road (Under 65 s) - Commissioning,R570104,201711
28/02/2018,Adults & Housing Department,Lester Hall Apartments Ltd,Residential Permanent,948.32,0.00,Residential Care,41552379,A,R5701,107564,LC,40311,EAST - Commissioning - Supported Residents Care Team,R570104,201711
28/02/2018,Adults & Housing Department,Autism Care (Uk) Ltd,Residential Permanent,"6,302.32",0.00,Residential Care,41552260,A,R5701,107585,LC,41152,LD Team 2 -Commissioning,R570104,201711
28/02/2018,Adults & Housing Department,Lingdale Lodge,Residential Permanent,"1,482.00",0.00,Residential Care,41552390,A,R5701,107587,LC,40319,WEST - Comm'g - Paisley Road - Team 3,R570104,201711
28/02/2018,Adults & Housing Department,Nightingale Nursing Home,Nursing Permanent,"1,889.04",0.00,Nursing Care,41552552,A,R5702,107617,LC,40873,LOC WEST - Reablement - Team 1  - Sulgrave Road - Commissioning,R570204,201711
28/02/2018,Adults & Housing Department,Hamra Associates Ltd,Residential Permanent,"1,766.64",0.00,Residential Care,41551922,A,R5701,107630,LC,41152,LD Team 2 -Commissioning,R570104,201711
28/02/2018,Adults & Housing Department,Magnum Care Ltd T/a Aberry House,Nursing Permanent,"1,889.04",0.00,Nursing Care,41551690,A,R5702,107648,LC,40329,Health Transfers - Commissioning - Discharge Team 1,R570204,201711
28/02/2018,Adults & Housing Department,Magnum Care Ltd T/a Aberry House,Nursing Permanent,"1,889.04",0.00,Nursing Care,41551701,A,R5702,107648,LC,40311,EAST - Commissioning - Supported Residents Care Team,R570204,201711
28/02/2018,Adults & Housing Department,Heartwell House Residential Care Ltd,Residential Permanent,"1,122.72",0.00,Residential Care,41552258,A,R5701,107659,LC,40311,EAST - Commissioning - Supported Residents Care Team,R570104,201711
28/02/2018,Adults & Housing Department,Heartwell House Residential Care Ltd,Residential Permanent,"2,326.72",0.00,Residential Care,41552259,A,R5701,107659,LC,40311,EAST - Commissioning - Supported Residents Care Team,R570104,201711
28/02/2018,Adults & Housing Department,The Ark Care Lodge,Residential Permanent,"1,766.64",0.00,Residential Care,41552885,A,R5701,107676,LC,41152,LD Team 2 -Commissioning,R570104,201711
28/02/2018,Adults & Housing Department,The Ark Care Lodge,Residential Permanent,"1,766.64",0.00,Residential Care,41552886,A,R5701,107676,LC,41153,LD Targeted Reassessment Team-Commissioning,R570104,201711
28/02/2018,Adults & Housing Department,The Ark Care Lodge,Residential Permanent,"1,766.64",0.00,Residential Care,41552890,A,R5701,107676,LC,41152,LD Team 2 -Commissioning,R570104,201711
28/02/2018,Adults & Housing Department,Royal Leics Rut & Wycliffe Soc,Residential Permanent,"5,658.72",0.00,Residential Care,41552973,A,R5701,107691,LC,41153,LD Targeted Reassessment Team-Commissioning,R570104,201711
28/02/2018,Adults & Housing Department,St Bennetts Care Home,Residential Permanent,"1,738.08",0.00,Residential Care,41552755,A,R5701,107693,LC,40311,EAST - Commissioning - Supported Residents Care Team,R570104,201711
28/02/2018,Adults & Housing Department,St Bennetts Care Home,Residential Permanent,"1,938.00",0.00,Residential Care,41552752,A,R5701,107693,LC,41151,LD Team 1-Commissioning,R570104,201711
28/02/2018,Adults & Housing Department,Western Park Ltd,Nursing Permanent,"1,889.04",0.00,Nursing Care,41553015,A,R5702,107721,LC,40311,EAST - Commissioning - Supported Residents Care Team,R570204,201711
28/02/2018,Adults & Housing Department,Royal Society For The Blind,Residential Permanent,"6,656.00",0.00,Residential Care,41551760,A,R5701,107737,LC,41152,LD Team 2 -Commissioning,R570104,201711
28/02/2018,Adults & Housing Department,HC-One Ltd T/a Harley Grange Care Home,Residential Permanent,"1,360.00",0.00,Residential Care,41552210,A,R5701,107744,LC,40311,EAST - Commissioning - Supported Residents Care Team,R570104,201711
28/02/2018,Adults & Housing Department,HC-One Ltd T/a Harley Grange Care Home,Nursing Permanent,"1,889.04",0.00,Nursing Care,41552211,A,R5702,107744,LC,40311,EAST - Commissioning - Supported Residents Care Team,R570204,201711
28/02/2018,Adults & Housing Department,Berrystead Nursing Home,Nursing Permanent,"1,736.00",0.00,Nursing Care,41551898,A,R5702,107752,LC,40329,Health Transfers - Commissioning - Discharge Team 1,R570204,201711
28/02/2018,Adults & Housing Department,Goodwood Orchard Resdntl Home,Residential Permanent,"1,938.00",0.00,Residential Care,41552131,A,R5701,107760,LC,40311,EAST - Commissioning - Supported Residents Care Team,R570104,201711
28/02/2018,Adults & Housing Department,Hambleton House,Residential Permanent,"1,766.64",0.00,Residential Care,41552188,A,R5701,107763,LC,41152,LD Team 2 -Commissioning,R570104,201711
28/02/2018,Adults & Housing Department,Stonesby House,Residential Permanent,"1,938.00",0.00,Residential Care,41552798,A,R5701,107775,LC,40311,EAST - Commissioning - Supported Residents Care Team,R570104,201711
28/02/2018,Adults & Housing Department,Stonesby House,Residential Short Stay,"1,766.64",0.00,Residential Care,41552803,A,R5701,107775,LC,41152,LD Team 2 -Commissioning,R570103,201711
06/02/2018,Adults & Housing Department,Help At Home,Personal Care / Generic,519.48,0.00,Home Care,41544715,A,R5705,107786,LC,40317,WEST - Comm'g - Braunstone and Meridian - Team 2,R570502,201711
20/02/2018,Adults & Housing Department,Help At Home,Personal Care / Generic,833.09,0.00,Home Care,41544992,A,R5705,107786,LC,40307,EAST - Comm'g - Springfield Road - East 3,R570502,201711
20/02/2018,Adults & Housing Department,Help At Home,Personal Care / Generic,"1,636.82",0.00,Home Care,41544874,A,R5705,107786,LC,40321,West - Commissioning - Westcotes Team 4,R570502,201711
20/02/2018,Adults & Housing Department,Help At Home,Personal Care / Generic,961.54,0.00,Home Care,41544878,A,R5705,107786,LC,40303,EAST - Comm'g - Merlyn Vaz HC and St Peters - East 1,R570502,201711
20/02/2018,Adults & Housing Department,Help At Home,Personal Care / Generic,778.04,0.00,Home Care,41545039,A,R5705,107786,LC,40329,Health Transfers - Commissioning - Discharge Team 1,R570502,201711
20/02/2018,Adults & Housing Department,Help At Home,Personal Care / Generic,884.47,0.00,Home Care,41544866,A,R5705,107786,LC,40331,Health Transfers - Commissioning - Discharge Team 2,R570502,201711
20/02/2018,Adults & Housing Department,Help At Home,Personal Care / Generic,686.29,0.00,Home Care,41544928,A,R5705,107786,LC,40873,LOC WEST - Reablement - Team 1  - Sulgrave Road - Commissioning,R570502,201711
20/02/2018,Adults & Housing Department,Help At Home,Personal Care / Generic,700.97,0.00,Home Care,41544955,A,R5705,107786,LC,40226,Adult Mental Health - Maidstone Road (Under 65 s) - Commissioning,R570502,201711
,Adults & Housing Department,Help At Home,Personal Care / Generic,"2,003.82",0.00,Home Care,41549187,A,R5705,107786,LC,40317,WEST - Comm'g - Braunstone and Meridian - Team 2,R570502,201711
,Adults & Housing Department,Help At Home,Personal Care / Generic,"1,445.98",0.00,Home Care,41549104,A,R5705,107786,LC,40307,EAST - Comm'g - Springfield Road - East 3,R570502,201711
,Adults & Housing Department,Help At Home,Personal Care / Generic,822.08,0.00,Home Care,41549078,A,R5705,107786,LC,40319,WEST - Comm'g - Paisley Road - Team 3,R570502,201711
,Adults & Housing Department,Help At Home,Personal Care / Generic,"2,073.55",0.00,Home Care,41549205,A,R5705,107786,LC,40319,WEST - Comm'g - Paisley Road - Team 3,R570502,201711
,Adults & Housing Department,Help At Home,Personal Care / Generic,722.99,0.00,Home Care,41549127,A,R5705,107786,LC,40226,Adult Mental Health - Maidstone Road (Under 65 s) - Commissioning,R570502,201711
,Adults & Housing Department,Help At Home,Personal Care / Generic,501.33,0.00,Home Care,41549014,A,R5705,107786,LC,40307,EAST - Comm'g - Springfield Road - East 3,R570502,201711
,Adults & Housing Department,Help At Home,Personal Care / Generic,932.18,0.00,Home Care,41549155,A,R5705,107786,LC,40309,EAST - Comm'g - Uppingham Road - East 4,R570502,201711
,Adults & Housing Department,Help At Home,Personal Care / Generic,837.00,0.00,Home Care,41549028,A,R5705,107786,LC,40321,West - Commissioning - Westcotes Team 4,R570502,201711
,Adults & Housing Department,Help At Home,Personal Care / Generic,923.61,0.00,Home Care,41549033,A,R5705,107786,LC,40226,Adult Mental Health - Maidstone Road (Under 65 s) - Commissioning,R570502,201711
23/02/2018,Adults & Housing Department,Danbury Gardens - Help at Home,Home Care - Extra Care,"1,306.80",0.00,Home Care,41550021,A,R5705,107789,LC,40311,EAST - Commissioning - Supported Residents Care Team,R570501,201711
23/02/2018,Adults & Housing Department,Danbury Gardens - Help at Home,Home Care - Extra Care,"3,049.20",0.00,Home Care,41550039,A,R5705,107789,LC,40309,EAST - Comm'g - Uppingham Road - East 4,R570501,201711
21/02/2018,Adults & Housing Department,Danbury Gardens - Help at Home,Home Care - Extra Care,"2,167.11",0.00,Home Care,41549616,A,R5705,107789,LC,40311,EAST - Commissioning - Supported Residents Care Team,R570501,201711
21/02/2018,Adults & Housing Department,Danbury Gardens - Help at Home,Home Care - Extra Care,"2,109.03",0.00,Home Care,41549619,A,R5705,107789,LC,40311,EAST - Commissioning - Supported Residents Care Team,R570501,201711
21/02/2018,Adults & Housing Department,Danbury Gardens - Help at Home,Home Care - Extra Care,773.19,0.00,Home Care,41549622,A,R5705,107789,LC,40311,EAST - Commissioning - Supported Residents Care Team,R570501,201711
28/02/2018,Adults & Housing Department,Direct Health UK Ltd,Personal Care / Generic,805.56,0.00,Home Care,41546728,A,R5705,107791,LC,40321,West - Commissioning - Westcotes Team 4,R570502,201711
28/02/2018,Adults & Housing Department,Direct Health UK Ltd,Personal Care / Generic,907.72,0.00,Home Care,41546707,A,R5705,107791,LC,40317,WEST - Comm'g - Braunstone and Meridian - Team 2,R570502,201711
28/02/2018,Adults & Housing Department,Direct Health UK Ltd,Personal Care / Generic,681.75,0.00,Home Care,41546712,A,R5705,107791,LC,40317,WEST - Comm'g - Braunstone and Meridian - Team 2,R570502,201711
28/02/2018,Adults & Housing Department,Direct Health UK Ltd,Personal Care / Generic,613.95,0.00,Home Care,41546727,A,R5705,107791,LC,40319,WEST - Comm'g - Paisley Road - Team 3,R570502,201711
28/02/2018,Adults & Housing Department,Direct Health UK Ltd,Personal Care / Generic,939.18,0.00,Home Care,41546730,A,R5705,107791,LC,41154,LD Short Term/Unplanned Team - Commissioning,R570502,201711
23/02/2018,Adults & Housing Department,Domiciliary Care Services UK Ltd,Personal Care / Generic,"1,729.54",0.00,Home Care,41548941,A,R5705,107792,LC,40321,West - Commissioning - Westcotes Team 4,R570502,201711
23/02/2018,Adults & Housing Department,Domiciliary Care Services UK Ltd,Personal Care / Generic,"1,561.58",0.00,Home Care,41548959,A,R5705,107792,LC,40303,EAST - Comm'g - Merlyn Vaz HC and St Peters - East 1,R570502,201711
23/02/2018,Adults & Housing Department,Domiciliary Care Services UK Ltd,Personal Care / Generic,627.48,0.00,Home Care,41548960,A,R5705,107792,LC,40303,EAST - Comm'g - Merlyn Vaz HC and St Peters - East 1,R570502,201711
23/02/2018,Adults & Housing Department,Domiciliary Care Services UK Ltd,Personal Care / Generic,627.46,0.00,Home Care,41548919,A,R5705,107792,LC,40315,WEST - Comm'g - Belgrave - Team 1,R570502,201711
23/02/2018,Adults & Housing Department,Westminster Homecare Ltd ),Personal Care / Generic,671.37,0.00,Home Care,41548677,A,R5705,107794,LC,40319,WEST - Comm'g - Paisley Road - Team 3,R570502,201711
23/02/2018,Adults & Housing Department,Westminster Homecare Ltd ),Personal Care / Generic,"1,385.44",0.00,Home Care,41548685,A,R5705,107794,LC,40303,EAST - Comm'g - Merlyn Vaz HC and St Peters - East 1,R570502,201711
23/02/2018,Adults & Housing Department,Westminster Homecare Ltd ),Personal Care / Generic,"1,879.97",0.00,Home Care,41548619,A,R5705,107794,LC,40317,WEST - Comm'g - Braunstone and Meridian - Team 2,R570502,201711
23/02/2018,Adults & Housing Department,Westminster Homecare Ltd ),Personal Care / Generic,"2,176.72",0.00,Home Care,41548645,A,R5705,107794,LC,40305,EAST - Comm'g - Rushey Mead - East 2,R570502,201711
28/02/2018,Adults & Housing Department,HC-One Ltd T/a Cedar Court,Nursing Permanent,"1,736.00",0.00,Nursing Care,41551928,A,R5702,107797,LC,40311,EAST - Commissioning - Supported Residents Care Team,R570204,201711
28/02/2018,Adults & Housing Department,G B Care Ltd,Nursing Permanent,742.12,0.00,Nursing Care,41551722,A,R5702,107800,LC,40309,EAST - Comm'g - Uppingham Road - East 4,R570204,201711
28/02/2018,Adults & Housing Department,G B Care Ltd,Nursing Permanent,"1,889.04",0.00,Nursing Care,41551726,A,R5702,107800,LC,40329,Health Transfers - Commissioning - Discharge Team 1,R570204,201711
28/02/2018,Adults & Housing Department,CLARENDON MEWS CARE LIMITED,Residential Permanent,"1,738.08",0.00,Residential Care,41551972,A,R5701,107802,LC,40311,EAST - Commissioning - Supported Residents Care Team,R570104,201711
28/02/2018,Adults & Housing Department,CLARENDON MEWS CARE LIMITED,Residential Permanent,"1,938.00",0.00,Residential Care,41551974,A,R5701,107802,LC,40311,EAST - Commissioning - Supported Residents Care Team,R570104,201711
28/02/2018,Adults & Housing Department,CLARENDON MEWS CARE LIMITED,Interim Residential (Delayed Discharges),869.04,0.00,Residential Care,41551971,A,R5701,107802,LC,40303,EAST - Comm'g - Merlyn Vaz HC and St Peters - East 1,R570101,201711
28/02/2018,Adults & Housing Department,CLARENDON MEWS CARE LIMITED,Residential Permanent,"1,938.00",0.00,Residential Care,41551982,A,R5701,107802,LC,40319,WEST - Comm'g - Paisley Road - Team 3,R570104,201711
28/02/2018,Adults & Housing Department,Wycar Leys (Bulwell) Ltd,Residential Permanent,"9,632.72",0.00,Residential Care,41553049,A,R5701,107820,LC,41152,LD Team 2 -Commissioning,R570104,201711
28/02/2018,Adults & Housing Department,Marston Court Ltd T/a Marston Court,Residential Permanent,"1,766.64",0.00,Residential Care,41552409,A,R5701,107843,LC,41152,LD Team 2 -Commissioning,R570104,201711
28/02/2018,Adults & Housing Department,Marston Court Ltd T/a Marston Court,Residential Permanent,"1,766.64",0.00,Residential Care,41552416,A,R5701,107843,LC,41152,LD Team 2 -Commissioning,R570104,201711
28/02/2018,Adults & Housing Department,Marston Court Ltd T/a Marston Court,Residential Permanent,"2,898.52",0.00,Residential Care,41552416,A,R5701,107843,LC,41152,LD Team 2 -Commissioning,R570104,201711
28/02/2018,Adults & Housing Department,Marston Court Ltd T/a Marston Court,Residential Permanent,"1,766.64",0.00,Residential Care,41552418,A,R5701,107843,LC,41152,LD Team 2 -Commissioning,R570104,201711
28/02/2018,Adults & Housing Department,Marston Court Ltd T/a Marston Court,Residential Permanent,"2,130.00",0.00,Residential Care,41552428,A,R5701,107843,LC,41152,LD Team 2 -Commissioning,R570104,201711
28/02/2018,Adults & Housing Department,Marston Court Ltd T/a Marston Court,Residential Short Stay,"1,938.00",0.00,Residential Care,41552430,A,R5701,107843,LC,40905,LOC South - Transitions Team - Commissioning,R570103,201711
28/02/2018,Adults & Housing Department,Hartington Road Care Home,Residential Permanent,969.00,0.00,Residential Care,41552220,A,R5701,107852,LC,40226,Adult Mental Health - Maidstone Road (Under 65 s) - Commissioning,R570104,201711
28/02/2018,Adults & Housing Department,Downing (Barwell) Ltd,Residential Permanent,"1,780.00",0.00,Residential Care,41552635,A,R5701,107857,LC,40311,EAST - Commissioning - Supported Residents Care Team,R570104,201711
28/02/2018,Adults & Housing Department,Craegmoor Facilities Co. Ltd t/a Craegmoor Halifax Drive,Residential Permanent,"1,938.00",0.00,Residential Care,41552161,A,R5701,107866,LC,41152,LD Team 2 -Commissioning,R570104,201711
28/02/2018,Adults & Housing Department,Craegmoor Facilities Co. Ltd t/a Craegmoor Halifax Drive,Residential Permanent,"1,766.64",0.00,Residential Care,41552162,A,R5701,107866,LC,41153,LD Targeted Reassessment Team-Commissioning,R570104,201711
28/02/2018,Adults & Housing Department,Craegmoor Facilities Co. Ltd t/a Craegmoor Halifax Drive,Residential Permanent,"1,938.00",0.00,Residential Care,41552163,A,R5701,107866,LC,40228,Commissioning Community - CMHT City East (Merlyn Vaz),R570104,201711
28/02/2018,Adults & Housing Department,Craegmoor Facilities Co. Ltd t/a Craegmoor Halifax Drive,Residential Permanent,"1,766.64",0.00,Residential Care,41552174,A,R5701,107866,LC,41152,LD Team 2 -Commissioning,R570104,201711
28/02/2018,Adults & Housing Department,Craegmoor Facilities Co. Ltd t/a Craegmoor Halifax Drive,Residential Permanent,"1,766.64",0.00,Residential Care,41552176,A,R5701,107866,LC,41153,LD Targeted Reassessment Team-Commissioning,R570104,201711
28/02/2018,Adults & Housing Department,Ark Home Healthcare Ltd,Personal Care / Generic,"1,724.38",0.00,Home Care,41547077,A,R5705,107901,LC,40321,West - Commissioning - Westcotes Team 4,R570502,201711
28/02/2018,Adults & Housing Department,Ark Home Healthcare Ltd,Personal Care / Generic,929.56,0.00,Home Care,41547140,A,R5705,107901,LC,40873,LOC WEST - Reablement - Team 1  - Sulgrave Road - Commissioning,R570502,201711
28/02/2018,Adults & Housing Department,Ark Home Healthcare Ltd,Personal Care / Generic,926.35,0.00,Home Care,41547233,A,R5705,107901,LC,40303,EAST - Comm'g - Merlyn Vaz HC and St Peters - East 1,R570502,201711
28/02/2018,Adults & Housing Department,Ark Home Healthcare Ltd,Personal Care / Generic,661.21,0.00,Home Care,41547235,A,R5705,107901,LC,40875,LOC WEST - Reablement - Team 2  - Sulgrave Road - Commissioning,R570502,201711
28/02/2018,Adults & Housing Department,Ark Home Healthcare Ltd,Personal Care / Generic,529.04,0.00,Home Care,41547194,A,R5705,107901,LC,40321,West - Commissioning - Westcotes Team 4,R570502,201711
28/02/2018,Adults & Housing Department,Ark Home Healthcare Ltd,Personal Care / Generic,553.28,0.00,Home Care,41547090,A,R5705,107901,LC,40319,WEST - Comm'g - Paisley Road - Team 3,R570502,201711
28/02/2018,Adults & Housing Department,Ark Home Healthcare Ltd,Personal Care / Generic,"1,178.97",0.00,Home Care,41547178,A,R5705,107901,LC,40321,West - Commissioning - Westcotes Team 4,R570502,201711
28/02/2018,Adults & Housing Department,Ark Home Healthcare Ltd,Personal Care / Generic,"1,565.62",0.00,Home Care,41547111,A,R5705,107901,LC,40321,West - Commissioning - Westcotes Team 4,R570502,201711
28/02/2018,Adults & Housing Department,Pine View Care Homes Ltd T/a Groby Lodge,Residential Permanent,"1,938.00",0.00,Residential Care,41552574,A,R5701,107972,LC,40311,EAST - Commissioning - Supported Residents Care Team,R570104,201711
28/02/2018,Adults & Housing Department,MHA-Foxton Grange,Residential Permanent,"1,738.08",0.00,Residential Care,41552088,A,R5701,107974,LC,40311,EAST - Commissioning - Supported Residents Care Team,R570104,201711
28/02/2018,Adults & Housing Department,MHA-Foxton Grange,Residential Permanent,"1,738.08",0.00,Residential Care,41552092,A,R5701,107974,LC,40311,EAST - Commissioning - Supported Residents Care Team,R570104,201711
28/02/2018,Adults & Housing Department,MHA-Foxton Grange,Nursing Permanent,"1,889.04",0.00,Nursing Care,41552093,A,R5702,107974,LC,40311,EAST - Commissioning - Supported Residents Care Team,R570204,201711
28/02/2018,Adults & Housing Department,Rushey Mead Manor Care Home,Nursing Permanent,"1,889.04",0.00,Nursing Care,41552605,A,R5702,107984,LC,40311,EAST - Commissioning - Supported Residents Care Team,R570204,201711
28/02/2018,Adults & Housing Department,Rushey Mead Manor Care Home,Residential Permanent,"1,661.14",0.00,Residential Care,41552623,A,R5701,107984,LC,40875,LOC WEST - Reablement - Team 2  - Sulgrave Road - Commissioning,R570104,201711
28/02/2018,Adults & Housing Department,Hicare Ltd,Residential Permanent,"1,938.00",0.00,Residential Care,41552725,A,R5701,107985,LC,40311,EAST - Commissioning - Supported Residents Care Team,R570104,201711
28/02/2018,Adults & Housing Department,Hicare Ltd,Residential Short Stay,969.00,0.00,Residential Care,41552726,A,R5701,107985,LC,40307,EAST - Comm'g - Springfield Road - East 3,R570103,201711
28/02/2018,Adults & Housing Department,Hicare Ltd,Residential Permanent,"1,738.08",0.00,Residential Care,41552730,A,R5701,107985,LC,40311,EAST - Commissioning - Supported Residents Care Team,R570104,201711
28/02/2018,Adults & Housing Department,Hicare Ltd,Residential Short Stay,969.00,0.00,Residential Care,41552713,A,R5701,107985,LC,40303,EAST - Comm'g - Merlyn Vaz HC and St Peters - East 1,R570103,201711
28/02/2018,Adults & Housing Department,Hicare Ltd,Residential Permanent,"1,738.08",0.00,Residential Care,41552720,A,R5701,107985,LC,40311,EAST - Commissioning - Supported Residents Care Team,R570104,201711
28/02/2018,Adults & Housing Department,Hicare Ltd,Residential Permanent,"1,738.08",0.00,Residential Care,41552749,A,R5701,107985,LC,40307,EAST - Comm'g - Springfield Road - East 3,R570104,201711
28/02/2018,Adults & Housing Department,Hicare Ltd,Residential Permanent,"1,738.08",0.00,Residential Care,41552456,A,R5701,107985,LC,40311,EAST - Commissioning - Supported Residents Care Team,R570104,201711
28/02/2018,Adults & Housing Department,Hicare Ltd,Residential Permanent,"1,938.00",0.00,Residential Care,41552461,A,R5701,107985,LC,40311,EAST - Commissioning - Supported Residents Care Team,R570104,201711
28/02/2018,Adults & Housing Department,Hicare Ltd,Residential Permanent,"1,738.08",0.00,Residential Care,41552481,A,R5701,107985,LC,40319,WEST - Comm'g - Paisley Road - Team 3,R570104,201711
28/02/2018,Adults & Housing Department,Hicare Ltd,Residential Permanent,"1,938.00",0.00,Residential Care,41552482,A,R5701,107985,LC,40319,WEST - Comm'g - Paisley Road - Team 3,R570104,201711
28/02/2018,Adults & Housing Department,Hicare Ltd,Residential Permanent,"1,738.08",0.00,Residential Care,41552489,A,R5701,107985,LC,40875,LOC WEST - Reablement - Team 2  - Sulgrave Road - Commissioning,R570104,201711
28/02/2018,Adults & Housing Department,Hicare Ltd,Residential Permanent,"1,738.08",0.00,Residential Care,41552492,A,R5701,107985,LC,40873,LOC WEST - Reablement - Team 1  - Sulgrave Road - Commissioning,R570104,201711
28/02/2018,Adults & Housing Department,Mere Lodge Ltd T/a Mere Lodge,Residential Permanent,"7,462.32",0.00,Residential Care,41552513,A,R5701,107993,LC,41152,LD Team 2 -Commissioning,R570104,201711
28/02/2018,Adults & Housing Department,Mere Lodge Ltd T/a Mere Lodge,Residential Permanent,"1,511.44",0.00,Residential Care,41552510,A,R5701,107993,LC,41154,LD Short Term/Unplanned Team - Commissioning,R570104,201711
28/02/2018,Adults & Housing Department,Aarons Unit,Residential Permanent,"1,780.00",0.00,Residential Care,41551669,A,R5701,108040,LC,40229,Commissioning - Braunstone Health & Social Care Centre - Adult Mental Health,R570104,201711
28/02/2018,Adults & Housing Department,A.L.A.Care Ltd,Residential Permanent,"1,596.00",0.00,Residential Care,41553037,A,R5701,108045,LC,40319,WEST - Comm'g - Paisley Road - Team 3,R570104,201711
28/02/2018,Adults & Housing Department,Mauricare Ltd,Residential Permanent,"1,738.08",0.00,Residential Care,41552442,A,R5701,108048,LC,40321,West - Commissioning - Westcotes Team 4,R570104,201711
28/02/2018,Adults & Housing Department,Mauricare Ltd,Residential Permanent,"1,738.08",0.00,Residential Care,41552449,A,R5701,108048,LC,40311,EAST - Commissioning - Supported Residents Care Team,R570104,201711
28/02/2018,Adults & Housing Department,Knighton Manor Ltd,Residential Permanent,"1,766.64",0.00,Residential Care,41552338,A,R5701,108101,LC,41152,LD Team 2 -Commissioning,R570104,201711
28/02/2018,Adults & Housing Department,Knighton Manor Ltd,Residential Permanent,"1,766.64",0.00,Residential Care,41552339,A,R5701,108101,LC,41152,LD Team 2 -Commissioning,R570104,201711
28/02/2018,Adults & Housing Department,Knighton Manor Ltd,Residential Permanent,"2,292.64",0.00,Residential Care,41552339,A,R5701,108101,LC,41152,LD Team 2 -Commissioning,R570104,201711
28/02/2018,Adults & Housing Department,Prime Life Ltd,Residential Permanent,580.00,0.00,Residential Care,41552305,A,R5701,108139,LC,41151,LD Team 1-Commissioning,R570104,201711
28/02/2018,Adults & Housing Department,Prime Life Ltd,Residential Permanent,"1,558.56",0.00,Residential Care,41552290,A,R5701,108139,LC,40229,Commissioning - Braunstone Health & Social Care Centre - Adult Mental Health,R570104,201711
28/02/2018,Adults & Housing Department,Milligan Court,Residential Permanent,"6,956.04",0.00,Residential Care,41552516,A,R5701,108170,LC,41153,LD Targeted Reassessment Team-Commissioning,R570104,201711
28/02/2018,Adults & Housing Department,Milligan Court,Residential Permanent,"1,766.64",0.00,Residential Care,41552518,A,R5701,108170,LC,41152,LD Team 2 -Commissioning,R570104,201711
28/02/2018,Adults & Housing Department,Milligan Court,Residential Permanent,"6,164.08",0.00,Residential Care,41552518,A,R5701,108170,LC,41152,LD Team 2 -Commissioning,R570104,201711
28/02/2018,Adults & Housing Department,Minster Pathways,Residential Permanent,"1,586.64",0.00,Residential Care,41552076,A,R5701,108195,LC,41152,LD Team 2 -Commissioning,R570104,201711
28/02/2018,Adults & Housing Department,Sanctuary Home Care Limited T/a Skelton Court,Residential Permanent,"1,766.64",0.00,Residential Care,41552692,A,R5701,108206,LC,41152,LD Team 2 -Commissioning,R570104,201711
28/02/2018,Adults & Housing Department,Sanctuary Home Care Limited T/a Skelton Court,Residential Permanent,"1,766.64",0.00,Residential Care,41552698,A,R5701,108206,LC,41152,LD Team 2 -Commissioning,R570104,201711
28/02/2018,Adults & Housing Department,Prime Life Ltd,Residential Permanent,"1,468.00",0.00,Residential Care,41551704,A,R5701,108358,LC,40227,Commissioning Community - Adult Mental Health District Forensic Service (Under 65's),R570104,201711
28/02/2018,Adults & Housing Department,Prime Life Ltd,Residential Permanent,834.00,0.00,Residential Care,41551706,A,R5701,108358,LC,40228,Commissioning Community - CMHT City East (Merlyn Vaz),R570104,201711
28/02/2018,Adults & Housing Department,Prime Life Ltd,Residential Permanent,"1,780.00",0.00,Residential Care,41551707,A,R5701,108358,LC,40232,Commissioning Community -Adult Mental Health Assertive Outreach,R570104,201711
28/02/2018,Adults & Housing Department,Langdale View,Nursing Permanent,"1,889.04",0.00,Nursing Care,41552346,A,R5702,108374,LC,40311,EAST - Commissioning - Supported Residents Care Team,R570204,201711
28/02/2018,Adults & Housing Department,Barkby Road Residential Home,Residential Permanent,"1,624.00",0.00,Residential Care,41551847,A,R5701,108378,LC,41151,LD Team 1-Commissioning,R570104,201711
28/02/2018,Adults & Housing Department,Mercia Care Homes Ltd,Residential Short Stay,"1,432.00",0.00,Residential Care,41552675,A,R5701,108402,LC,40903,LOC South -  Substance Misuse  - Commissioning,R570103,201711
28/02/2018,Adults & Housing Department,Pine View Care Homes Ltd T/a Silver Birches,Residential Permanent,"1,738.08",0.00,Residential Care,41552685,A,R5701,108410,LC,40311,EAST - Commissioning - Supported Residents Care Team,R570104,201711
28/02/2018,Adults & Housing Department,Prime Life Ltd,Residential Permanent,"1,738.08",0.00,Residential Care,41552769,A,R5701,108471,LC,40311,EAST - Commissioning - Supported Residents Care Team,R570104,201711
28/02/2018,Adults & Housing Department,Prime Life Ltd,Residential Permanent,"1,738.08",0.00,Residential Care,41552787,A,R5701,108471,LC,40305,EAST - Comm'g - Rushey Mead - East 2,R570104,201711
28/02/2018,Adults & Housing Department,Prime Life Ltd,Residential Permanent,"1,938.00",0.00,Residential Care,41552790,A,R5701,108471,LC,40331,Health Transfers - Commissioning - Discharge Team 2,R570104,201711
28/02/2018,Adults & Housing Department,Prime Life Ltd,Residential Short Stay,"1,738.08",0.00,Residential Care,41552794,A,R5701,108471,LC,40303,EAST - Comm'g - Merlyn Vaz HC and St Peters - East 1,R570103,201711
28/02/2018,Adults & Housing Department,Diwali Ltd,Residential Permanent,"1,938.00",0.00,Residential Care,41552055,A,R5701,108522,LC,40311,EAST - Commissioning - Supported Residents Care Team,R570104,201711
28/02/2018,Adults & Housing Department,Diwali Ltd,Residential Permanent,"1,938.00",0.00,Residential Care,41552059,A,R5701,108522,LC,40329,Health Transfers - Commissioning - Discharge Team 1,R570104,201711
28/02/2018,Adults & Housing Department,Diwali Ltd,Residential Short Stay,"1,489.78",0.00,Residential Care,41552062,A,R5701,108522,LC,40822,Contact & Response - Commissioning,R570103,201711
06/02/2018,City Developments and Neighbourhood,Leicester Young Men's Christian Association Incorporated,Room & Space Hire & Entertainment Services,"2,594.90",PE,Room & Space Hire & Entertainment Services,63621935,N,R4411,109761,LC,20124,Museums Retail,R441101,201711
06/02/2018,City Developments and Neighbourhood,Leicester Young Men's Christian Association Incorporated,Room & Space Hire & Entertainment Services,"1,647.20",PE,Room & Space Hire & Entertainment Services,63621935,N,R4411,109761,LC,20124,Museums Retail,R441101,201711
14/02/2018,Education & Childrens Services,Leicester Young Men's Christian Association Incorporated,Accommodation - Supported Accommodation,650.72,0.00,Other Establishments,63624057,C,R5600,109761,LC,32442,LAC Semi-Independent  Accommodation,R560062,201711
16/02/2018,City Developments and Neighbourhood,Enzen Global Ltd,3PP - Private Contractors,"7,200.00","1,440.00",Private Contractors,63626782,N,R5700,110080,LC,20992,FPNs - Enzen,R570033,201711
09/02/2018,City Developments and Neighbourhood,Alfred Bagnalls & Sons (East Midlands) Ltd,Responsive,"20,911.57","4,182.31",Building Works & Repairs/Maintenance/Alterations,63625773,N,R2000,110118,LC,10070,Central Maintenance Fund Non Schools,R200001,201711
28/02/2018,City Developments and Neighbourhood,Hardscape Products Ltd,Planned,"2,630.23",526.05,Building Works & Repairs/Maintenance/Alterations,63627421,N,R2000,110140,LC,20295,City Highways - Operation,R200002,201711
20/02/2018,City Developments and Neighbourhood,PATROL (Parking & Traffic Regulations Outside London),Legal Fees & Charges,"3,991.40",0.00,Legal Fees & Charges,63627403,N,R4425,110680,LC,20777,On-Street Parking/ De-criminalised Parking Enforcement,R442501,201711
,City Developments and Neighbourhood,Alcium Software Ltd,Marketing and Advertising,"11,775.00","2,355.00",Marketing & Advertising,63630440,N,R4516,110977,LC,21070,LLEP - Business Gateway,R451601,201711
23/02/2018,City Developments and Neighbourhood,H&B Specialist Supplies Ltd,Planned,"4,575.00",915.00,Building Works & Repairs/Maintenance/Alterations,63622243,N,R2000,112620,LC,20295,City Highways - Operation,R200002,201711
09/02/2018,Corporate Resources & Support,SSAFA Forces Help,SSAFA,"5,300.00",PE,Voluntary Organisations,63624991,T,R5501,112640,LC,50002,Revenues & Benefits - Operations,R550141,201711
28/02/2018,Adults & Housing Department,Brooklyn Care Home,Residential Permanent,"1,624.00",0.00,Residential Care,41551919,A,R5701,112836,LC,41151,LD Team 1-Commissioning,R570104,201711
20/02/2018,Education & Childrens Services,Leicester BSF Company 1 Ltd,BSF - Utilities,"19,181.42","3,836.28",BSF - Utilities,63627799,C,R4926,113273,LC,31938,BSF Unitary Payments,R492601,201711
28/02/2018,Adults & Housing Department,Mauricare (AS) Ltd,Residential Permanent,"1,938.00",0.00,Residential Care,41551772,A,R5701,113613,LC,40311,EAST - Commissioning - Supported Residents Care Team,R570104,201711
28/02/2018,Adults & Housing Department,Mauricare (AS) Ltd,Residential Permanent,"1,738.08",0.00,Residential Care,41551774,A,R5701,113613,LC,40873,LOC WEST - Reablement - Team 1  - Sulgrave Road - Commissioning,R570104,201711
28/02/2018,Adults & Housing Department,Harley House Care Home,Nursing Permanent,"1,889.04",0.00,Nursing Care,41552214,A,R5702,114160,LC,40311,EAST - Commissioning - Supported Residents Care Team,R570204,201711
28/02/2018,Adults & Housing Department,Wycar Leys - Church View,Residential Permanent,"1,766.64",0.00,Residential Care,41551949,A,R5701,114817,LC,41152,LD Team 2 -Commissioning,R570104,201711
27/02/2018,City Developments and Neighbourhood,Nisbets plc,Equipment Purchase,624.31,124.86,Equipment Purchase,63623326,N,R4000,115304,LC,21067,City Hall Function,R400001,201711
27/02/2018,Education & Childrens Services,Manor High School,Other Local Authorities,"5,933.00",0.00,Other Local Authorities,63627205,C,R5200,115641,LC,32413,Mainstream Top-Ups,R520002,201711
28/02/2018,Adults & Housing Department,Mymil Ltd T/a Scraptoft Court Care Home,Nursing Permanent,"1,889.04",0.00,Nursing Care,41552668,A,R5702,115662,LC,40311,EAST - Commissioning - Supported Residents Care Team,R570204,201711
16/02/2018,Education & Childrens Services,Forest Way School,Other Local Authorities,"3,032.58",0.00,Other Local Authorities,63627123,C,R5200,115714,LC,32414,Special Top-Ups,R520002,201711
28/02/2018,Education & Childrens Services,Care Today Childrens Services,Residential Placements,"1,540.00",0.00,Other Agencies,63624674,C,R5800,115891,LC,31590,Externally Commissioned Placements,R580051,201711
13/02/2018,City Developments and Neighbourhood,Pace Fuelcare,Vehicle Running Cost - Diesel,"34,182.95","6,836.59",Vehicle Running Cost - Diesel,63626458,N,R3002,116089,LC,20300,Forecourt Services,R300201,201711
27/02/2018,City Developments and Neighbourhood,Pace Fuelcare,Vehicle Running Cost - Petrol,"3,860.80",772.16,Vehicle Running Cost - Petrol,63629990,N,R3003,116089,LC,20300,Forecourt Services,R300301,201711
27/02/2018,City Developments and Neighbourhood,Pace Fuelcare,Heating Oil,"2,049.02",409.80,Heating Oil,63629588,N,R2103,116089,LC,20300,Forecourt Services,R210301,201711
02/02/2018,Corporate Resources & Support,Reed Specialist Recruitment Ltd,Agency Local Government Staff,"204,556.15","40,911.23",Agency Local Government Staff,63623485,T,R1601,116198,LC,10118,Agency Staff Provider,R160101,201711
28/02/2018,Adults & Housing Department,The Nelson Trust,Residential Short Stay,"1,432.00",0.00,Residential Care,41552525,A,R5701,116453,LC,40903,LOC South -  Substance Misuse  - Commissioning,R570103,201711
28/02/2018,Adults & Housing Department,The Nelson Trust,Residential Short Stay,"1,432.00",0.00,Residential Care,41552527,A,R5701,116453,LC,40903,LOC South -  Substance Misuse  - Commissioning,R570103,201711
,Adults & Housing Department,J P Lennard,Equipment Purchase,"1,450.00",290.00,Equipment Purchase,63627015,A,R4000,116560,LC,20181,Sports Development,R400001,201711
06/02/2018,,Portakabin Ltd,Building Works - Alterations,"30,017.01","6,003.40",Building Works - Alterations,63622360,,C2000,116587,LC,95005,Education and Children's Services,C200001,201711
20/02/2018,City Developments and Neighbourhood,Insulation & Environmental Services Ltd,Project - Responsive,"12,170.00","2,434.00",Project - Repairs / Maintenance / Alterations,63627487,N,R2080,116611,LC,50260,Contractor Repair & Maintenance projects,R208001,201711
,Adults & Housing Department,Mangar International Ltd,Equipment Purchase,598.00,119.60,Equipment Purchase,63628998,A,R4000,116952,LC,40651,Strengthening ICRS,R400001,201711
28/02/2018,Adults & Housing Department,Hayes Park Nursing Home,Nursing Permanent,"1,889.04",0.00,Nursing Care,41552225,A,R5702,117350,LC,40311,EAST - Commissioning - Supported Residents Care Team,R570204,201711
28/02/2018,Adults & Housing Department,Hayes Park Nursing Home,Nursing Permanent,"1,889.04",0.00,Nursing Care,41552239,A,R5702,117350,LC,40311,EAST - Commissioning - Supported Residents Care Team,R570204,201711
28/02/2018,Adults & Housing Department,Hayes Park Nursing Home,Nursing Permanent,"1,889.04",0.00,Nursing Care,41552242,A,R5702,117350,LC,40311,EAST - Commissioning - Supported Residents Care Team,R570204,201711
28/02/2018,Adults & Housing Department,Hayes Park Nursing Home,Nursing Short Stay,"1,889.04",0.00,Nursing Care,41552231,A,R5702,117350,LC,40331,Health Transfers - Commissioning - Discharge Team 2,R570203,201711
07/02/2018,Education & Childrens Services,People Need People Consulting Ltd,Consultants Fees,"1,925.00",0.00,Consultant Fees,63624696,C,R4417,117497,LC,31616,Leicester Safeguarding Children's Board,R441701,201711
27/02/2018,Adults & Housing Department,Affinity Trust - Shared Bungalow - Ratby,Waking Night Support Hours,996.66,0.00,Supported Living,41546590,A,R5703,117706,LC,41152,LD Team 2 -Commissioning,R570310,201711
27/02/2018,Adults & Housing Department,Affinity Trust - Shared Bungalow - Ratby,Waking Night Support Hours,"1,060.29",0.00,Supported Living,41546599,A,R5703,117706,LC,41152,LD Team 2 -Commissioning,R570310,201711
27/02/2018,Adults & Housing Department,Affinity Trust - Shared Bungalow - Ratby,Day Support Hours,"7,068.60",0.00,Supported Living,41546599,A,R5703,117706,LC,41152,LD Team 2 -Commissioning,R570309,201711
02/02/2018,Corporate Resources & Support,Virgin Media Payments Ltd t/a Virgin Media Business,Communication Equipment Lease / Rental,534.95,106.99,Communications Equipment Lease / Rental,63623431,T,R4510,117728,LC,10179,Wan/Telephony,R451001,201711
,Corporate Resources & Support,Guardian Protection Services Ltd,Security & Safety Services,"3,920.00",784.00,Public Order & Security Services,63629728,T,R4413,117867,LC,10127,Cashiers,R441301,201711
09/02/2018,Adults & Housing Department,Inclusion healthcare social enterprise CIC,Anchor Centre,"11,599.00",0.00,Drug and Alcohol Services,50301723,A,R5301,117868,LC,40934,Criminal Justice Treatment Services - Lot 2,R530125,201711
23/02/2018,Adults & Housing Department,Bluewood Healthcare,Personal Care / Generic,525.44,0.00,Home Care,41548911,A,R5705,117876,LC,40329,Health Transfers - Commissioning - Discharge Team 1,R570502,201711
23/02/2018,Adults & Housing Department,Bluewood Healthcare,Personal Care / Generic,862.04,0.00,Home Care,41548860,A,R5705,117876,LC,40309,EAST - Comm'g - Uppingham Road - East 4,R570502,201711
23/02/2018,Adults & Housing Department,Bluewood Healthcare,Personal Care / Generic,521.92,0.00,Home Care,41548871,A,R5705,117876,LC,40307,EAST - Comm'g - Springfield Road - East 3,R570502,201711
23/02/2018,Adults & Housing Department,Bluewood Healthcare,Personal Care / Generic,940.66,0.00,Home Care,41548879,A,R5705,117876,LC,40309,EAST - Comm'g - Uppingham Road - East 4,R570502,201711
28/02/2018,City Developments and Neighbourhood,Property & Landscape Developments Ltd,Landscaping,645.65,0.00,Grounds Maintenance,63630470,N,R2750,118440,LC,20248,Landscape Development,R275003,201711
28/02/2018,Adults & Housing Department,APPLEWOOD HOUSE AND APARTMENT,Residential Permanent,"1,624.00",0.00,Residential Care,41553272,A,R5701,118459,LC,41152,LD Team 2 -Commissioning,R570104,201711
28/02/2018,City Developments and Neighbourhood,Riverside Truck Rental Ltd,Hire Vehicles,"5,750.00","1,150.00",Hire Vehicles,63627477,N,R3203,118483,LC,20302,Hire Vehicles,R320301,201711
23/02/2018,Adults & Housing Department,Prism UK Medical Ltd,Equipment Purchase,858.36,171.67,Equipment Purchase,63626085,A,R4000,119238,LC,40190,Adaptations and Assistive Technology,R400001,201711
09/02/2018,,Prism UK Medical Ltd,Building Works - Alterations,"4,160.00",832.00,Building Works - Alterations,41546929,,C2000,119238,LC,95001,Housing HRA,C200001,201711
13/02/2018,,Prism UK Medical Ltd,Building Works - Alterations,"1,840.00",368.00,Building Works - Alterations,41547287,,C2000,119238,LC,95000,Housing GF,C200001,201711
,Adults & Housing Department,Prism UK Medical Ltd,Equipment Purchase,"4,113.80",822.76,Equipment Purchase,63628673,A,R4000,119238,LC,40190,Adaptations and Assistive Technology,R400001,201711
28/02/2018,Corporate Resources & Support,Health Management Limited,Healthcare Services,"17,995.40","3,599.08",Healthcare Services,63625374,T,R4408,119472,LC,10147,Occupational Health Service Provider,R440801,201711
09/02/2018,City Developments and Neighbourhood,Go Travel Solutions,3PP - Other Local Authorities,"2,887.50",0.00,Other Local Authorities,63626055,N,R5200,119979,LC,21098,LLEP Business Rates Pool,R520007,201711
28/02/2018,Adults & Housing Department,Chartwell Care Services Ltd T/A Barclay Street,Residential Permanent,"1,938.00",0.00,Residential Care,41551844,A,R5701,120170,LC,40905,LOC South - Transitions Team - Commissioning,R570104,201711
28/02/2018,Adults & Housing Department,Chartwell Care Services Ltd T/A Barclay Street,Residential Permanent,"6,317.60",0.00,Residential Care,41551844,A,R5701,120170,LC,40905,LOC South - Transitions Team - Commissioning,R570104,201711
23/02/2018,City Developments and Neighbourhood,Keltbray Environmental Solutions,Asbestos - Works,900.00,180.00,Asbestos,63625940,N,R2002,120320,LC,10080,Schools Buy Back Board,R200202,201711
28/02/2018,Adults & Housing Department,Abberdale House,Residential Permanent,"1,938.00",0.00,Residential Care,41551672,A,R5701,120657,LC,40311,EAST - Commissioning - Supported Residents Care Team,R570104,201711
28/02/2018,Adults & Housing Department,Abberdale House,Residential Permanent,"1,938.00",0.00,Residential Care,41551678,A,R5701,120657,LC,40228,Commissioning Community - CMHT City East (Merlyn Vaz),R570104,201711
28/02/2018,Adults & Housing Department,Abberdale House,Residential Permanent,"1,738.08",0.00,Residential Care,41551680,A,R5701,120657,LC,40311,EAST - Commissioning - Supported Residents Care Team,R570104,201711
28/02/2018,Adults & Housing Department,Sutton in the Elms Care Ltd t/a Sutton in the Elms Care Home,Residential Permanent,"1,938.00",0.00,Residential Care,41552871,A,R5701,120995,LC,40311,EAST - Commissioning - Supported Residents Care Team,R570104,201711
28/02/2018,Adults & Housing Department,Sutton in the Elms Care Ltd t/a Sutton in the Elms Care Home,Residential Permanent,"1,938.00",0.00,Residential Care,41552876,A,R5701,120995,LC,40311,EAST - Commissioning - Supported Residents Care Team,R570104,201711
21/02/2018,Corporate Resources & Support,Icom Works Limited,Non Contracted Non Spinal Local Government Staff,"2,100.00",420.00,Non Contracted Non Spinal Local Government Staff,63623464,T,R1301,121003,LC,10157,Payroll,R130101,201711
27/02/2018,Education & Childrens Services,Brookside Primary School,Other Local Authorities,"1,247.00",0.00,Other Local Authorities,63629944,C,R5200,121662,LC,32413,Mainstream Top-Ups,R520002,201711
14/02/2018,Education & Childrens Services,Anglia Fostering Agency Ltd,Independent Foster Agencies,"3,478.20",0.00,Other Agencies,63624133,C,R5800,121990,LC,32345,Independent Fostering Agencies,R580054,201711
16/02/2018,Education & Childrens Services,WH Training & Consultancy Ltd,Education and Training Services,"6,525.00",0.00,Education & Training Services,63624086,C,R4410,122149,LC,31350,RE & Standing Advisory Council Religious Education,R441001,201711
20/02/2018,City Developments and Neighbourhood,Balfour Beatty Living Places Ltd,Project - Hire Equipment / Events,"5,100.17","1,020.03",Project - Equipment Hire / Lease,63623174,N,R4083,122201,LC,20104,Festivals & Events,R408301,201711
09/02/2018,Education & Childrens Services,Core Assets Expert Services Ltd,Parenting Assessments,"2,680.80",536.16,Other Agencies,63625110,C,R5800,122279,LC,31597,Fostering Kinship Team,R580053,201711
28/02/2018,Adults & Housing Department,Rose Cottage Rest Home,Residential Respite,570.00,0.00,Residential Care,41552584,A,R5701,122286,LC,40315,WEST - Comm'g - Belgrave - Team 1,R570102,201711
28/02/2018,Adults & Housing Department,Abbotsford Care Ltd T/a Diamond House,Residential Permanent,"1,738.08",0.00,Residential Care,41552028,A,R5701,122371,LC,40311,EAST - Commissioning - Supported Residents Care Team,R570104,201711
,Adults & Housing Department,Accredo Support & Development Ltd FA SL&FSB,Day Support Hours,536.65,0.00,Supported Living,41555641,A,R5703,122388,LC,41153,LD Targeted Reassessment Team-Commissioning,R570309,201711
,Adults & Housing Department,Accredo Support & Development Ltd FA SL&FSB,Day Support Hours,589.26,0.00,Supported Living,41555651,A,R5703,122388,LC,41153,LD Targeted Reassessment Team-Commissioning,R570309,201711
23/02/2018,Adults & Housing Department,Accredo Support & Development Ltd FA SL&FSB,Sleeping In Night Support,"6,935.13",0.00,Supported Living,63628989,A,R5703,122388,LC,41152,LD Team 2 -Commissioning,R570311,201711
23/02/2018,Adults & Housing Department,Accredo Support & Development Ltd FA SL&FSB,Supported Living - Day Intensive,"8,771.49",0.00,Supported Living,63628989,A,R5703,122388,LC,41151,LD Team 1-Commissioning,R570301,201711
28/02/2018,Adults & Housing Department,Accredo Support & Development Ltd FA SL&FSB,WAKING NIGHT SUPPORT,933.66,0.00,LD Supported Living,41550395,A,R5710,122388,LC,41153,LD Targeted Reassessment Team-Commissioning,R571002,201711
28/02/2018,Adults & Housing Department,Accredo Support & Development Ltd FA SL&FSB,DAY SUPPORT,"4,031.05",0.00,LD Supported Living,41550416,A,R5710,122388,LC,41154,LD Short Term/Unplanned Team - Commissioning,R571001,201711
28/02/2018,Adults & Housing Department,Accredo Support & Development Ltd FA SL&FSB,SLEEP-IN SUPPORT,"1,067.07",0.00,LD Supported Living,41550398,A,R5710,122388,LC,41154,LD Short Term/Unplanned Team - Commissioning,R571003,201711
28/02/2018,Adults & Housing Department,Accredo Support & Development Ltd FA SL&FSB,DAY SUPPORT,"2,059.98",0.00,LD Supported Living,41550398,A,R5710,122388,LC,41152,LD Team 2 -Commissioning,R571001,201711
28/02/2018,Adults & Housing Department,Accredo Support & Development Ltd FA SL&FSB,DAY SUPPORT,711.36,0.00,LD Flexible Short Break,41550422,A,R5720,122388,LC,41151,LD Team 1-Commissioning,R572001,201711
28/02/2018,Adults & Housing Department,Accredo Support & Development Ltd FA SL&FSB,WAKING NIGHT SUPPORT,933.66,0.00,LD Supported Living,41550418,A,R5710,122388,LC,41153,LD Targeted Reassessment Team-Commissioning,R571002,201711
28/02/2018,Adults & Housing Department,Accredo Support & Development Ltd FA SL&FSB,DAY SUPPORT,"5,601.96",0.00,LD Supported Living,41550418,A,R5710,122388,LC,41152,LD Team 2 -Commissioning,R571001,201711
20/02/2018,Adults & Housing Department,Accredo Support & Development Ltd FA SL&FSB,DAY SUPPORT,"7,291.44",0.00,LD Supported Living,41548847,A,R5710,122388,LC,41152,LD Team 2 -Commissioning,R571001,201711
09/02/2018,Adults & Housing Department,CareTech Community Services Ltd FA SL&FSB,DAY SUPPORT,"3,039.06",0.00,LD Supported Living,41546638,A,R5710,122391,LC,41151,LD Team 1-Commissioning,R571001,201711
09/02/2018,Adults & Housing Department,Creative Support Ltd FA SL & FSB,Day Support Hours,574.40,0.00,Supported Living,41546422,A,R5703,122430,LC,40227,Commissioning Community - Adult Mental Health District Forensic Service (Under 65's),R570309,201711
09/02/2018,Adults & Housing Department,Creative Support Ltd FA SL & FSB,Waking Night Support Hours,"3,733.07",0.00,Supported Living,41546650,A,R5703,122430,LC,41152,LD Team 2 -Commissioning,R570310,201711
13/02/2018,Adults & Housing Department,Creative Support Ltd FA SL & FSB,Day Support Hours,775.44,0.00,Supported Living,41547026,A,R5703,122430,LC,40226,Adult Mental Health - Maidstone Road (Under 65 s) - Commissioning,R570309,201711
13/02/2018,Adults & Housing Department,Creative Support Ltd FA SL & FSB,Day Support Hours,545.68,0.00,Supported Living,41547011,A,R5703,122430,LC,40226,Adult Mental Health - Maidstone Road (Under 65 s) - Commissioning,R570309,201711
13/02/2018,Adults & Housing Department,Creative Support Ltd FA SL & FSB,Day Support Hours,"3,618.72",0.00,Supported Living,41547015,A,R5703,122430,LC,41152,LD Team 2 -Commissioning,R570309,201711
14/02/2018,Adults & Housing Department,Creative Support Ltd FA SL & FSB,Day Support Hours,516.96,0.00,Supported Living,41547378,A,R5703,122430,LC,40229,Commissioning - Braunstone Health & Social Care Centre - Adult Mental Health,R570309,201711
14/02/2018,Adults & Housing Department,Creative Support Ltd FA SL & FSB,Day Support Hours,574.40,0.00,Supported Living,41547380,A,R5703,122430,LC,40227,Commissioning Community - Adult Mental Health District Forensic Service (Under 65's),R570309,201711
14/02/2018,Adults & Housing Department,Creative Support Ltd FA SL & FSB,Day Support Hours,861.60,0.00,Supported Living,41547376,A,R5703,122430,LC,40226,Adult Mental Health - Maidstone Road (Under 65 s) - Commissioning,R570309,201711
23/02/2018,Adults & Housing Department,Mosaic Shaping Disability Services FA SL&FSB,DAY SUPPORT,622.44,0.00,Physical Disability Supported Living,41547263,A,R5712,122434,LC,40317,WEST - Comm'g - Braunstone and Meridian - Team 2,R571201,201711
23/02/2018,Adults & Housing Department,Mosaic Shaping Disability Services FA SL&FSB,DAY SUPPORT,"1,067.04",0.00,Physical Disability Supported Living,41547269,A,R5712,122434,LC,40305,EAST - Comm'g - Rushey Mead - East 2,R571201,201711
23/02/2018,Adults & Housing Department,Mosaic Shaping Disability Services FA SL&FSB,DAY SUPPORT,"1,081.86",0.00,Physical Disability Supported Living,41547264,A,R5712,122434,LC,40317,WEST - Comm'g - Braunstone and Meridian - Team 2,R571201,201711
,Adults & Housing Department,Sevacare (UK) Ltd,Personal Care / Generic,586.43,0.00,Home Care,41555685,A,R5705,122436,LC,40317,WEST - Comm'g - Braunstone and Meridian - Team 2,R570502,201711
,Adults & Housing Department,Sevacare (UK) Ltd,Personal Care / Generic,906.49,0.00,Home Care,41546879,A,R5705,122436,LC,40307,EAST - Comm'g - Springfield Road - East 3,R570502,201711
,Adults & Housing Department,Sevacare (UK) Ltd,Personal Care / Generic,715.65,0.00,Home Care,41546853,A,R5705,122436,LC,40319,WEST - Comm'g - Paisley Road - Team 3,R570502,201711
,Adults & Housing Department,Sevacare (UK) Ltd,Personal Care / Generic,"1,438.64",0.00,Home Care,41546875,A,R5705,122436,LC,40319,WEST - Comm'g - Paisley Road - Team 3,R570502,201711
,Adults & Housing Department,Sevacare (UK) Ltd,Personal Care / Generic,888.14,0.00,Home Care,41546894,A,R5705,122436,LC,40331,Health Transfers - Commissioning - Discharge Team 2,R570502,201711
23/02/2018,Adults & Housing Department,Community Integrated Care FA SL&FSB,DAY SUPPORT,"1,144.00",0.00,Physical Disability Supported Living,41544667,A,R5712,122449,LC,40321,West - Commissioning - Westcotes Team 4,R571201,201711
23/02/2018,Adults & Housing Department,Community Integrated Care FA SL&FSB,DAY SUPPORT,"6,006.00",0.00,LD Supported Living,41544669,A,R5710,122449,LC,41153,LD Targeted Reassessment Team-Commissioning,R571001,201711
23/02/2018,Adults & Housing Department,Community Integrated Care FA SL&FSB,DAY SUPPORT,"6,006.00",0.00,LD Supported Living,41544671,A,R5710,122449,LC,41153,LD Targeted Reassessment Team-Commissioning,R571001,201711
23/02/2018,Adults & Housing Department,Community Integrated Care FA SL&FSB,WAKING NIGHT SUPPORT,600.60,0.00,LD Supported Living,41544678,A,R5710,122449,LC,41151,LD Team 1-Commissioning,R571002,201711
23/02/2018,Adults & Housing Department,Community Integrated Care FA SL&FSB,DAY SUPPORT,"4,633.19",0.00,LD Supported Living,41544678,A,R5710,122449,LC,41152,LD Team 2 -Commissioning,R571001,201711
23/02/2018,Adults & Housing Department,Community Integrated Care FA SL&FSB,WAKING NIGHT SUPPORT,600.60,0.00,LD Supported Living,41544686,A,R5710,122449,LC,41154,LD Short Term/Unplanned Team - Commissioning,R571002,201711
23/02/2018,Adults & Housing Department,Community Integrated Care FA SL&FSB,DAY SUPPORT,"5,405.40",0.00,LD Supported Living,41544679,A,R5710,122449,LC,41152,LD Team 2 -Commissioning,R571001,201711
23/02/2018,Adults & Housing Department,Community Integrated Care FA SL&FSB,WAKING NIGHT SUPPORT,600.60,0.00,LD Supported Living,41544680,A,R5710,122449,LC,41151,LD Team 1-Commissioning,R571002,201711
28/02/2018,Adults & Housing Department,Leicestershire County Care Ltd t/a Kirby House,Residential Permanent,"1,780.00",0.00,Residential Care,41552321,A,R5701,122454,LC,40311,EAST - Commissioning - Supported Residents Care Team,R570104,201711
28/02/2018,Adults & Housing Department,Leicestershire County Care Ltd t/a Kirby House,Residential Permanent,"1,596.00",0.00,Residential Care,41552322,A,R5701,122454,LC,40311,EAST - Commissioning - Supported Residents Care Team,R570104,201711
28/02/2018,Adults & Housing Department,Leicestershire County Care Ltd t/a Kirby House,Residential Permanent,861.92,0.00,Residential Care,41552324,A,R5701,122454,LC,40317,WEST - Comm'g - Braunstone and Meridian - Team 2,R570104,201711
28/02/2018,Adults & Housing Department,Leicestershire County Care Ltd t/a Kirby House,Residential Permanent,"1,596.00",0.00,Residential Care,41552324,A,R5701,122454,LC,40317,WEST - Comm'g - Braunstone and Meridian - Team 2,R570104,201711
27/02/2018,Adults & Housing Department,Affinity Trust FA SL&FSB,DAY SUPPORT,"12,474.00",0.00,LD Supported Living,41546614,A,R5710,122463,LC,41152,LD Team 2 -Commissioning,R571001,201711
27/02/2018,Adults & Housing Department,Affinity Trust FA SL&FSB,DAY SUPPORT,"2,619.54",0.00,LD Supported Living,41546611,A,R5710,122463,LC,40309,EAST - Comm'g - Uppingham Road - East 4,R571001,201711
27/02/2018,Adults & Housing Department,Affinity Trust FA SL&FSB,WAKING NIGHT SUPPORT,"7,484.40",0.00,LD Supported Living,41546580,A,R5710,122463,LC,41152,LD Team 2 -Commissioning,R571002,201711
27/02/2018,Adults & Housing Department,Affinity Trust FA SL&FSB,DAY SUPPORT,"1,039.50",0.00,LD Supported Living,41546589,A,R5710,122463,LC,41151,LD Team 1-Commissioning,R571001,201711
27/02/2018,Adults & Housing Department,Affinity Trust FA SL&FSB,DAY SUPPORT,653.40,0.00,LD Supported Living,41546591,A,R5710,122463,LC,41154,LD Short Term/Unplanned Team - Commissioning,R571001,201711
27/02/2018,Adults & Housing Department,Affinity Trust FA SL&FSB,DAY SUPPORT,"1,039.50",0.00,LD Supported Living,41546593,A,R5710,122463,LC,41152,LD Team 2 -Commissioning,R571001,201711
27/02/2018,Adults & Housing Department,Affinity Trust FA SL&FSB,DAY SUPPORT,891.00,0.00,LD Supported Living,41546601,A,R5710,122463,LC,41153,LD Targeted Reassessment Team-Commissioning,R571001,201711
27/02/2018,Adults & Housing Department,Affinity Trust FA SL&FSB,Day Support Hours,"9,007.26",0.00,Supported Living,41547073,A,R5703,122463,LC,41154,LD Short Term/Unplanned Team - Commissioning,R570309,201711
27/02/2018,Adults & Housing Department,Affinity Trust FA SL&FSB,Waking Night Support Hours,"1,247.40",0.00,Supported Living,41547074,A,R5703,122463,LC,41152,LD Team 2 -Commissioning,R570310,201711
27/02/2018,Adults & Housing Department,Affinity Trust FA SL&FSB,Waking Night Support Hours,"1,178.52",0.00,Supported Living,41547072,A,R5703,122463,LC,41154,LD Short Term/Unplanned Team - Commissioning,R570310,201711
28/02/2018,Adults & Housing Department,Affinity Trust FA SL&FSB,DAY SUPPORT,811.80,0.00,LD Supported Living,41550234,A,R5710,122463,LC,41154,LD Short Term/Unplanned Team - Commissioning,R571001,201711
,Adults & Housing Department,Private Home Care Uk Ltd FA SL&FSB,Personal Care / Generic,"2,586.34",0.00,Home Care,41550136,A,R5705,122489,LC,40311,EAST - Commissioning - Supported Residents Care Team,R570502,201711
,Adults & Housing Department,Private Home Care Uk Ltd FA SL&FSB,Personal Care / Generic,762.44,0.00,Home Care,41550144,A,R5705,122489,LC,40305,EAST - Comm'g - Rushey Mead - East 2,R570502,201711
,Adults & Housing Department,Private Home Care Uk Ltd FA SL&FSB,Personal Care / Generic,857.91,0.00,Home Care,41550146,A,R5705,122489,LC,40305,EAST - Comm'g - Rushey Mead - East 2,R570502,201711
,Adults & Housing Department,Private Home Care Uk Ltd FA SL&FSB,Personal Care / Generic,667.24,0.00,Home Care,41550156,A,R5705,122489,LC,40305,EAST - Comm'g - Rushey Mead - East 2,R570502,201711
23/02/2018,Adults & Housing Department,Lifeways Community Care Ltd FA SL&FSB,DAY SUPPORT,"1,125.57",0.00,MH Supported Living,41548759,A,R5711,122490,LC,40228,Commissioning Community - CMHT City East (Merlyn Vaz),R571101,201711
23/02/2018,Adults & Housing Department,Lifeways Community Care Ltd FA SL&FSB,DAY SUPPORT,"1,125.57",0.00,MH Supported Living,41548761,A,R5711,122490,LC,40228,Commissioning Community - CMHT City East (Merlyn Vaz),R571101,201711
23/02/2018,Adults & Housing Department,Lifeways Community Care Ltd FA SL&FSB,DAY SUPPORT,"1,125.57",0.00,MH Supported Living,41548763,A,R5711,122490,LC,40228,Commissioning Community - CMHT City East (Merlyn Vaz),R571101,201711
21/02/2018,Adults & Housing Department,Lifeways Community Care Ltd FA SL&FSB,Day Support Hours,"1,146.40",0.00,Supported Living,41549642,A,R5703,122490,LC,40226,Adult Mental Health - Maidstone Road (Under 65 s) - Commissioning,R570309,201711
21/02/2018,Adults & Housing Department,Lifeways Community Care Ltd FA SL&FSB,Day Support Hours,"1,146.40",0.00,Supported Living,41549643,A,R5703,122490,LC,40226,Adult Mental Health - Maidstone Road (Under 65 s) - Commissioning,R570309,201711
21/02/2018,Adults & Housing Department,Lifeways Community Care Ltd FA SL&FSB,Day Support Hours,"1,146.40",0.00,Supported Living,41549647,A,R5703,122490,LC,40226,Adult Mental Health - Maidstone Road (Under 65 s) - Commissioning,R570309,201711
21/02/2018,Adults & Housing Department,Lifeways Community Care Ltd FA SL&FSB,DAY SUPPORT,819.48,0.00,MH Supported Living,41549778,A,R5711,122490,LC,40232,Commissioning Community -Adult Mental Health Assertive Outreach,R571101,201711
23/02/2018,Adults & Housing Department,Lifeways Community Care Ltd FA SL&FSB,WAKING NIGHT SUPPORT,766.38,0.00,LD Supported Living,41550106,A,R5710,122490,LC,41152,LD Team 2 -Commissioning,R571002,201711
23/02/2018,Adults & Housing Department,Lifeways Community Care Ltd FA SL&FSB,DAY SUPPORT,"6,073.20",0.00,LD Supported Living,41550081,A,R5710,122490,LC,41153,LD Targeted Reassessment Team-Commissioning,R571001,201711
23/02/2018,Adults & Housing Department,Lifeways Community Care Ltd FA SL&FSB,WAKING NIGHT SUPPORT,766.38,0.00,LD Supported Living,41550095,A,R5710,122490,LC,41153,LD Targeted Reassessment Team-Commissioning,R571002,201711
23/02/2018,Adults & Housing Department,Lifeways Community Care Ltd FA SL&FSB,WAKING NIGHT SUPPORT,766.38,0.00,LD Supported Living,41550097,A,R5710,122490,LC,41153,LD Targeted Reassessment Team-Commissioning,R571002,201711
23/02/2018,Adults & Housing Department,Lifeways Community Care Ltd FA SL&FSB,DAY SUPPORT,"6,073.20",0.00,LD Supported Living,41550097,A,R5710,122490,LC,41153,LD Targeted Reassessment Team-Commissioning,R571001,201711
23/02/2018,Adults & Housing Department,Lifeways Community Care Ltd FA SL&FSB,DAY SUPPORT,"2,140.08",0.00,LD Supported Living,41549249,A,R5710,122490,LC,41152,LD Team 2 -Commissioning,R571001,201711
23/02/2018,Adults & Housing Department,Lifeways Community Care Ltd FA SL&FSB,DAY SUPPORT,"6,940.80",0.00,LD Supported Living,41550108,A,R5710,122490,LC,41152,LD Team 2 -Commissioning,R571001,201711
21/02/2018,Adults & Housing Department,Lifeways Community Care Ltd FA SL&FSB,DAY SUPPORT,819.48,0.00,MH Supported Living,41549786,A,R5711,122490,LC,40232,Commissioning Community -Adult Mental Health Assertive Outreach,R571101,201711
23/02/2018,Adults & Housing Department,Lifeways Community Care Ltd FA SL&FSB,DAY SUPPORT,"3,210.12",0.00,LD Supported Living,41550055,A,R5710,122490,LC,41152,LD Team 2 -Commissioning,R571001,201711
23/02/2018,Adults & Housing Department,Lifeways Community Care Ltd FA SL&FSB,DAY SUPPORT,"3,210.12",0.00,LD Supported Living,41550057,A,R5710,122490,LC,41152,LD Team 2 -Commissioning,R571001,201711
23/02/2018,Adults & Housing Department,Lifeways Community Care Ltd FA SL&FSB,DAY SUPPORT,"1,156.74",0.00,LD Supported Living,41549259,A,R5710,122490,LC,41154,LD Short Term/Unplanned Team - Commissioning,R571001,201711
23/02/2018,Adults & Housing Department,Lifeways Community Care Ltd FA SL&FSB,DAY SUPPORT,"1,156.74",0.00,LD Supported Living,41549260,A,R5710,122490,LC,41154,LD Short Term/Unplanned Team - Commissioning,R571001,201711
23/02/2018,Adults & Housing Department,Lifeways Community Care Ltd FA SL&FSB,DAY SUPPORT,"2,024.40",0.00,LD Supported Living,41549260,A,R5710,122490,LC,41154,LD Short Term/Unplanned Team - Commissioning,R571001,201711
23/02/2018,Adults & Housing Department,Lifeways Community Care Ltd FA SL&FSB,WAKING NIGHT SUPPORT,751.92,0.00,LD Supported Living,41550045,A,R5710,122490,LC,41152,LD Team 2 -Commissioning,R571002,201711
23/02/2018,Adults & Housing Department,Lifeways Community Care Ltd FA SL&FSB,DAY SUPPORT,"3,210.12",0.00,LD Supported Living,41550045,A,R5710,122490,LC,41152,LD Team 2 -Commissioning,R571001,201711
23/02/2018,Adults & Housing Department,Lifeways Community Care Ltd FA SL&FSB,WAKING NIGHT SUPPORT,751.92,0.00,LD Supported Living,41550049,A,R5710,122490,LC,41152,LD Team 2 -Commissioning,R571002,201711
21/02/2018,Adults & Housing Department,Lifeways Community Care Ltd FA SL&FSB,DAY SUPPORT,867.60,0.00,MH Supported Living,41549668,A,R5711,122490,LC,40228,Commissioning Community - CMHT City East (Merlyn Vaz),R571101,201711
21/02/2018,Adults & Housing Department,Lifeways Community Care Ltd FA SL&FSB,Day Support Hours,573.77,0.00,Supported Living,41549625,A,R5703,122490,LC,41151,LD Team 1-Commissioning,R570309,201711
21/02/2018,Adults & Housing Department,Lifeways Community Care Ltd FA SL&FSB,Day Support Hours,573.77,0.00,Supported Living,41549628,A,R5703,122490,LC,41151,LD Team 1-Commissioning,R570309,201711
02/02/2018,City Developments and Neighbourhood,Local World Ltd,Marketing and Advertising,581.72,116.34,Marketing & Advertising,63623817,N,R4516,122790,LC,20269,Planning,R451601,201711
23/02/2018,City Developments and Neighbourhood,Local World Ltd,Marketing and Advertising,"1,054.38",210.88,Marketing & Advertising,63628824,N,R4516,122790,LC,20044,Temporary Traffic Regulation Orders & Special Events,R451601,201711
20/02/2018,City Developments and Neighbourhood,Local World Ltd,Marketing and Advertising,654.43,130.89,Marketing & Advertising,63628071,N,R4516,122790,LC,20269,Planning,R451601,201711
,,Stearn Electric Co Ltd,Equipment Purchase,"4,490.57",898.11,Equipment Purchase,63626495,,C4000,122838,LC,95001,Housing HRA,C400001,201711
28/02/2018,Adults & Housing Department,Ideal Care Homes Ltd T/a Beaumont Hall,Residential Permanent,"1,738.08",0.00,Residential Care,41551892,A,R5701,123021,LC,40311,EAST - Commissioning - Supported Residents Care Team,R570104,201711
28/02/2018,Adults & Housing Department,Ideal Care Homes Ltd T/a Beaumont Hall,Residential Permanent,"1,738.08",0.00,Residential Care,41551851,A,R5701,123021,LC,40311,EAST - Commissioning - Supported Residents Care Team,R570104,201711
28/02/2018,Adults & Housing Department,Ideal Care Homes Ltd T/a Beaumont Hall,Residential Permanent,"1,938.00",0.00,Residential Care,41551852,A,R5701,123021,LC,40311,EAST - Commissioning - Supported Residents Care Team,R570104,201711
28/02/2018,Adults & Housing Department,Ideal Care Homes Ltd T/a Beaumont Hall,Residential Permanent,"1,738.08",0.00,Residential Care,41551855,A,R5701,123021,LC,40321,West - Commissioning - Westcotes Team 4,R570104,201711
21/02/2018,City Developments and Neighbourhood,Concerto Support Services Ltd,IT Development,"2,550.00",510.00,IT Development,63625987,N,R4506,123323,LC,10029,Central Establishment Costs,R450601,201711
28/02/2018,Corporate Resources & Support,Stor A File,Transportation and Storage and Mail Services,570.51,114.10,Transportation & Storage Services,63624623,T,R4403,123340,LC,10325,Service Support,R440301,201711
16/02/2018,City Developments and Neighbourhood,Molson Coors,Catering - Provisions,"1,202.17",240.43,Catering Provisions / Food & Drink,63622952,N,R4106,123380,LC,20989,DMH - Bar and Catering,R410601,201711
28/02/2018,City Developments and Neighbourhood,Molson Coors,Catering - Provisions,615.95,123.19,Catering Provisions / Food & Drink,63626081,N,R4106,123380,LC,20989,DMH - Bar and Catering,R410601,201711
13/02/2018,Adults & Housing Department,Morningside Leicester Ltd,Nicotine Replacement Therapy (NRT),989.82,0.00,Public Health Initiatives,63625706,A,R5801,123512,LC,40792,Smoking Team,R580102,201711
06/02/2018,,Gap Property Services (Leicester) Ltd,Fixtures & Fittings,"34,175.31","6,835.06",Fixtures & Fittings,63624241,,C2001,123544,LC,95001,Housing HRA,C200101,201711
06/02/2018,,Gap Property Services (Leicester) Ltd,Fixtures & Fittings,"12,430.94","2,486.19",Fixtures & Fittings,63624241,,C2001,123544,LC,95001,Housing HRA,C200101,201711
28/02/2018,Adults & Housing Department,Santosh Community Centre,Day Care /Community Opportunities,602.88,0.00,Day Care /Community Opportunities,41545147,A,R5707,123698,LC,40315,WEST - Comm'g - Belgrave - Team 1,R570701,201711
06/02/2018,City Developments and Neighbourhood,Close Circuit Security Services Ltd (CCSS),Project - Responsive,"24,487.86","4,897.57",Project - R&M Fixtures & Fittings,63624262,N,R2081,124072,LC,50260,Contractor Repair & Maintenance projects,R208101,201711
23/02/2018,Education & Childrens Services,Key Transitions Ltd,Accommodation - Supported Accommodation,"8,759.99","1,752.00",Other Establishments,63623256,C,R5600,124226,LC,32442,LAC Semi-Independent  Accommodation,R560062,201711
23/02/2018,Corporate Resources & Support,Print Image Facilities LLP,Postage,789.21,157.84,Postage,63629192,T,R4512,124243,LC,10215,Electoral Services,R451201,201711
02/02/2018,Education & Childrens Services,Horizon Care & Education Group Ltd,Residential Placements,"13,285.67",0.00,Other Agencies,63623076,C,R5800,124314,LC,31590,Externally Commissioned Placements,R580051,201711
09/02/2018,City Developments and Neighbourhood,Ace Cleaning Company (Leicester) Ltd,Internal Contract Cleaning Services,804.36,160.87,Internal Contract Building Cleaning,63625142,N,R2701,124415,LC,20540,Building Cleaning Operational - Cover Team,R270101,201711
09/02/2018,City Developments and Neighbourhood,Ace Cleaning Company (Leicester) Ltd,Internal Contract Cleaning Services,"2,689.40",537.88,Internal Contract Building Cleaning,63625559,N,R2701,124415,LC,20540,Building Cleaning Operational - Cover Team,R270101,201711
14/02/2018,City Developments and Neighbourhood,Ace Cleaning Company (Leicester) Ltd,Internal Contract Cleaning Services,"1,376.75",275.35,Internal Contract Building Cleaning,63626819,N,R2701,124415,LC,20540,Building Cleaning Operational - Cover Team,R270101,201711
16/02/2018,City Developments and Neighbourhood,Ace Cleaning Company (Leicester) Ltd,Internal Contract Cleaning Services,"2,016.00",403.20,Internal Contract Building Cleaning,63627269,N,R2701,124415,LC,20540,Building Cleaning Operational - Cover Team,R270101,201711
27/02/2018,City Developments and Neighbourhood,The Dyslexia Association,Education and Training Services,"1,440.00",0.00,Education & Training Services,63623308,N,R4410,124712,LC,50123,Humberstone NHO,R441001,201711
28/02/2018,Adults & Housing Department,Universal Care Services (UK) Ltd,Personal Care / Generic,"1,536.52",0.00,Home Care,41550461,A,R5705,124729,LC,40319,WEST - Comm'g - Paisley Road - Team 3,R570502,201711
28/02/2018,Adults & Housing Department,Universal Care Services (UK) Ltd,Personal Care / Generic,883.14,0.00,Home Care,41550463,A,R5705,124729,LC,40321,West - Commissioning - Westcotes Team 4,R570502,201711
28/02/2018,Adults & Housing Department,Universal Care Services (UK) Ltd,Personal Care / Generic,843.65,0.00,Home Care,41550469,A,R5705,124729,LC,40321,West - Commissioning - Westcotes Team 4,R570502,201711
02/02/2018,City Developments and Neighbourhood,Grays Coffee Shop & Kitchen,External Catering Charges,"1,975.70",395.14,External Catering Charges,63623607,N,R4100,124731,LC,20293,Leicester Creative Business Depot,R410001,201711
23/02/2018,Adults & Housing Department,Staffs & Stoke Partnership NHS Trust,ISHS Chlamydia,"9,056.00",0.00,Sexual Health Services (ISHS),63624601,A,R5312,125287,LC,40784,Sexual Health,R531201,201711
23/02/2018,Adults & Housing Department,IBC Quality Solutions Ltd,Day Care /Community Opportunities,601.00,0.00,Day Care /Community Opportunities,41548800,A,R5707,125404,LC,41154,LD Short Term/Unplanned Team - Commissioning,R570701,201711
23/02/2018,Adults & Housing Department,IBC Quality Solutions Ltd,Day Care /Community Opportunities,"1,543.20",0.00,Day Care /Community Opportunities,41549290,A,R5707,125404,LC,41153,LD Targeted Reassessment Team-Commissioning,R570701,201711
23/02/2018,Adults & Housing Department,IBC Quality Solutions Ltd,Day Care /Community Opportunities,771.60,0.00,Day Care /Community Opportunities,41549291,A,R5707,125404,LC,41153,LD Targeted Reassessment Team-Commissioning,R570701,201711
27/02/2018,City Developments and Neighbourhood,Leicester Office Furnishers,Furniture Purchase,"10,668.00","2,133.60",Furniture Purchase,63623488,N,R4001,125785,LC,40523,PREMISES SUPPORT,R400101,201711
28/02/2018,Adults & Housing Department,Abbey Healthcare T/a Aaron Court,Nursing Permanent,628.71,0.00,Nursing Care,41553078,A,R5702,125789,LC,40329,Health Transfers - Commissioning - Discharge Team 1,R570204,201711
28/02/2018,Adults & Housing Department,Abbey Healthcare T/a Aaron Court,Residential Permanent,"1,738.08",0.00,Residential Care,41553080,A,R5701,125789,LC,40305,EAST - Comm'g - Rushey Mead - East 2,R570104,201711
28/02/2018,Adults & Housing Department,Abbey Healthcare T/a Aaron Court,Nursing Permanent,"1,889.04",0.00,Nursing Care,41553058,A,R5702,125789,LC,40311,EAST - Commissioning - Supported Residents Care Team,R570204,201711
28/02/2018,Adults & Housing Department,JJ & S (Chippenham) Ltd T/a Sandmar Residential Care Home,Residential Permanent,"1,750.57",0.00,Residential Care,41553089,A,R5701,125976,LC,40229,Commissioning - Braunstone Health & Social Care Centre - Adult Mental Health,R570104,201711
28/02/2018,Adults & Housing Department,JJ & S (Chippenham) Ltd T/a Sandmar Residential Care Home,Residential Permanent,"1,284.00",0.00,Residential Care,41553090,A,R5701,125976,LC,40229,Commissioning - Braunstone Health & Social Care Centre - Adult Mental Health,R570104,201711
28/02/2018,Adults & Housing Department,JJ & S (Chippenham) Ltd T/a Sandmar Residential Care Home,Residential Permanent,"1,432.00",0.00,Residential Care,41553084,A,R5701,125976,LC,40229,Commissioning - Braunstone Health & Social Care Centre - Adult Mental Health,R570104,201711
07/02/2018,Corporate Resources & Support,Royal Mail Group Ltd,Postage,906.96,181.39,Postage,63624472,T,R4512,127442,LC,50002,Revenues & Benefits - Operations,R451201,201711
16/02/2018,Adults & Housing Department,Euro Pools Service Ltd,Repair & Maintenance Tools / Equipment,626.50,125.30,Repairs & Maintenance - Equipment & Furniture,63620196,A,R4005,127452,LC,20177,Braunstone Leisure Centre,R400501,201711
23/02/2018,City Developments and Neighbourhood,Limelight Entertainment Ltd,Equipment Purchase,"1,768.00",353.60,Equipment Purchase,63629069,N,R4000,127541,LC,20799,DMH House Management,R400001,201711
23/02/2018,Education & Childrens Services,Capita Resourcing LTd,Agency Local Government Staff,"2,750.00",550.00,Agency Local Government Staff,63627716,C,R1601,127722,LC,32490,Raising Achievement Service,R160101,201711
28/02/2018,Education & Childrens Services,The Place Young People's Company LTD,Residential Placements,"13,800.00",0.00,Other Agencies,63627763,C,R5800,127901,LC,31590,Externally Commissioned Placements,R580051,201711
28/02/2018,Adults & Housing Department,ABBEY HOUSE,Residential Permanent,"1,938.00",0.00,Residential Care,41553144,A,R5701,127987,LC,40311,EAST - Commissioning - Supported Residents Care Team,R570104,201711
28/02/2018,Adults & Housing Department,ABBEY HOUSE,Residential Permanent,"5,376.00",0.00,Residential Care,41553126,A,R5701,127987,LC,41154,LD Short Term/Unplanned Team - Commissioning,R570104,201711
28/02/2018,Adults & Housing Department,ABBEY HOUSE,Residential Permanent,"1,938.00",0.00,Residential Care,41553140,A,R5701,127987,LC,40317,WEST - Comm'g - Braunstone and Meridian - Team 2,R570104,201711
28/02/2018,Adults & Housing Department,COOPER HOUSE,Residential Permanent,"1,738.08",0.00,Residential Care,41553157,A,R5701,127988,LC,40311,EAST - Commissioning - Supported Residents Care Team,R570104,201711
28/02/2018,Adults & Housing Department,COOPER HOUSE,Residential Permanent,"1,738.08",0.00,Residential Care,41553169,A,R5701,127988,LC,40311,EAST - Commissioning - Supported Residents Care Team,R570104,201711
28/02/2018,Adults & Housing Department,COOPER HOUSE,Residential Permanent,"1,738.08",0.00,Residential Care,41553170,A,R5701,127988,LC,40311,EAST - Commissioning - Supported Residents Care Team,R570104,201711
28/02/2018,Adults & Housing Department,COOPER HOUSE,Residential Permanent,"1,938.00",0.00,Residential Care,41553171,A,R5701,127988,LC,40311,EAST - Commissioning - Supported Residents Care Team,R570104,201711
28/02/2018,Adults & Housing Department,AYLESTONE GRANGE,Residential Permanent,"1,938.00",0.00,Residential Care,41553120,A,R5701,128050,LC,40229,Commissioning - Braunstone Health & Social Care Centre - Adult Mental Health,R570104,201711
28/02/2018,Adults & Housing Department,TRACS LIMITED T/A  LESTER COURT,Residential Permanent,"1,780.00",0.00,Residential Care,41553183,A,R5701,128396,LC,40226,Adult Mental Health - Maidstone Road (Under 65 s) - Commissioning,R570104,201711
28/02/2018,Education & Childrens Services,Unity Residential Care Services LTD,Residential Placements,"11,800.04",0.00,Other Agencies,63624144,C,R5800,128511,LC,31590,Externally Commissioned Placements,R580051,201711
16/02/2018,City Developments and Neighbourhood,Credo Reference Ltd,Libraries Book Fund,"4,016.00",803.20,Printed & Electronic Media,41548337,N,R4010,128566,LC,20140,Reader Development Services,R401007,201711
06/02/2018,Corporate Resources & Support,Leicester City Council - Legal - Her Majesty's Court Service,Legal Fees & Charges,"40,000.00",0.00,Legal Fees & Charges,63624306,T,R4425,128589,LC,10202,Legal Disbursements,R442501,201711
,Education & Childrens Services,CCS Media,IT Hardware,847.36,169.47,IT Hardware,63631278,C,R4500,128769,LC,31916,CYPS Business,R450001,201711
23/02/2018,Adults & Housing Department,Sigma Pharmaceuticals,Nicotine Replacement Therapy (NRT),"3,563.80",178.19,Public Health Initiatives,63629497,A,R5801,129183,LC,40792,Smoking Team,R580102,201711
09/02/2018,Education & Childrens Services,baca project,Accommodation - Supported Accommodation,"1,958.57",0.00,Other Establishments,63625211,C,R5600,129294,LC,32132,LAC - UASC 16/17,R560062,201711
07/02/2018,Adults & Housing Department,P A HOUSING  (Paragon Asra Housing Ltd),Sheltered Housing - ILS,"1,171.16",0.00,Sheltered Housing - ILS,63623206,A,R5729,129491,LC,40797,ILS Floating Support,R572901,201711
,City Developments and Neighbourhood,The Unloved Limited,Editorial and Design and Graphic and Fine Art Services,"1,920.00",384.00,Editorial & Design & Graphic & Fine Art Services,63627629,N,R4406,129610,LC,21075,Place Marketing Organisation,R440601,201711
14/02/2018,Adults & Housing Department,Prepaid Financial Services,Management & Business & Administrative Services,"3,037.26",607.45,Management & Business & Administrative Services,63626630,A,R4404,129658,LC,40719,Generic ASC & Safeguarding,R440401,201711
14/02/2018,Adults & Housing Department,Prepaid Financial Services,Management & Business & Administrative Services,"3,000.00",600.00,Management & Business & Administrative Services,63626632,A,R4404,129658,LC,40719,Generic ASC & Safeguarding,R440401,201711
28/02/2018,Adults & Housing Department,Arbor House,Residential Permanent,"1,738.08",0.00,Residential Care,41553195,A,R5701,129672,LC,40311,EAST - Commissioning - Supported Residents Care Team,R570104,201711
28/02/2018,Adults & Housing Department,Arbor House,Residential Permanent,"1,738.08",0.00,Residential Care,41553196,A,R5701,129672,LC,40311,EAST - Commissioning - Supported Residents Care Team,R570104,201711
28/02/2018,Adults & Housing Department,Arbor House,Residential Permanent,"1,938.00",0.00,Residential Care,41553203,A,R5701,129672,LC,40311,EAST - Commissioning - Supported Residents Care Team,R570104,201711
28/02/2018,Adults & Housing Department,Arbor House,Residential Permanent,"1,738.08",0.00,Residential Care,41553204,A,R5701,129672,LC,40311,EAST - Commissioning - Supported Residents Care Team,R570104,201711
28/02/2018,Adults & Housing Department,Arbor House,Residential Permanent,"1,738.08",0.00,Residential Care,41553205,A,R5701,129672,LC,40311,EAST - Commissioning - Supported Residents Care Team,R570104,201711
28/02/2018,Adults & Housing Department,Arbor House,Residential Permanent,"1,738.08",0.00,Residential Care,41553221,A,R5701,129672,LC,40319,WEST - Comm'g - Paisley Road - Team 3,R570104,201711
28/02/2018,Adults & Housing Department,Thurn Court Residential Care Home,Residential Permanent,"1,738.08",0.00,Residential Care,41553251,A,R5701,129674,LC,40873,LOC WEST - Reablement - Team 1  - Sulgrave Road - Commissioning,R570104,201711
28/02/2018,Adults & Housing Department,Thurn Court Residential Care Home,Residential Permanent,"1,738.08",0.00,Residential Care,41553258,A,R5701,129674,LC,40311,EAST - Commissioning - Supported Residents Care Team,R570104,201711
28/02/2018,Adults & Housing Department,Thurn Court Residential Care Home,Residential Permanent,"1,938.00",0.00,Residential Care,41553233,A,R5701,129674,LC,40311,EAST - Commissioning - Supported Residents Care Team,R570104,201711
28/02/2018,Adults & Housing Department,Thurn Court Residential Care Home,Residential Permanent,"1,938.00",0.00,Residential Care,41553244,A,R5701,129674,LC,40311,EAST - Commissioning - Supported Residents Care Team,R570104,201711
28/02/2018,Adults & Housing Department,Thurn Court Residential Care Home,Residential Permanent,"1,384.29",0.00,Residential Care,41553250,A,R5701,129674,LC,40311,EAST - Commissioning - Supported Residents Care Team,R570104,201711
28/02/2018,Education & Childrens Services,South London and Maudsley - NHS Foundation Trust,Training,650.00,0.00,Employee Training,63623999,C,R1950,130034,LC,32340,Multi-Systematic Therapy,R195001,201711
28/02/2018,Adults & Housing Department,ORCHARD MANOR VIEW,Residential Permanent,"1,938.00",0.00,Residential Care,41553278,A,R5701,130124,LC,40311,EAST - Commissioning - Supported Residents Care Team,R570104,201711
02/02/2018,Corporate Resources & Support,Rock Kitchen Harris,Editorial and Design and Graphic and Fine Art Services,560.00,112.00,Editorial & Design & Graphic & Fine Art Services,63595277,T,R4406,130191,LC,10904,City Mayor's Office,R440601,201711
21/02/2018,Corporate Resources & Support,Geldards LLP,LCC Ext Solicitors Costs,"2,772.00",554.40,Legal Fees & Charges,63628667,T,R4425,130413,LC,10202,Legal Disbursements,R442505,201711
20/02/2018,City Developments and Neighbourhood,ZEPPELIN TRADING CO LTD,Repairs & Maintenance Vehicles,792.00,158.40,Vehicles Repairs & Maintenance / Parts & Accessories,63622657,N,R3000,130506,LC,20331,Workshop,R300001,201711
28/02/2018,City Developments and Neighbourhood,ZEPPELIN TRADING CO LTD,Repairs & Maintenance Vehicles,"1,306.00",261.20,Vehicles Repairs & Maintenance / Parts & Accessories,63626057,N,R3000,130506,LC,20331,Workshop,R300001,201711
13/02/2018,City Developments and Neighbourhood,ZEPPELIN TRADING CO LTD,Repairs & Maintenance Vehicles,"1,522.00",304.40,Vehicles Repairs & Maintenance / Parts & Accessories,63622640,N,R3000,130506,LC,20331,Workshop,R300001,201711
28/02/2018,Corporate Resources & Support,Leicestershire and Rutland Reuse Network CIC,Grant Payments,"1,855.00",371.00,Grant Payments,63624551,T,R4707,130596,LC,10735,Discretionary Award (CCG) - Payments,R470701,201711
28/02/2018,Adults & Housing Department,GWENDOLEN ROAD CARE HOME,Residential Permanent,"1,938.00",0.00,Residential Care,41553294,A,R5701,130694,LC,41152,LD Team 2 -Commissioning,R570104,201711
28/02/2018,Adults & Housing Department,GWENDOLEN ROAD CARE HOME,Residential Permanent,"2,054.00",0.00,Residential Care,41553281,A,R5701,130694,LC,40226,Adult Mental Health - Maidstone Road (Under 65 s) - Commissioning,R570104,201711
28/02/2018,Adults & Housing Department,GWENDOLEN ROAD CARE HOME,Residential Permanent,"1,766.64",0.00,Residential Care,41553293,A,R5701,130694,LC,41154,LD Short Term/Unplanned Team - Commissioning,R570104,201711
28/02/2018,Corporate Resources & Support,KCOM Group PLC,Internet Charges,"2,375.00",475.00,Internet Charges,63628425,T,R4508,130847,LC,10179,Wan/Telephony,R450801,201711
28/02/2018,City Developments and Neighbourhood,Profile Security Services Limited,Security & Safety Services,"4,623.84",924.77,Public Order & Security Services,63624603,N,R4413,130871,LC,20931,Birstall Park and Ride,R441301,201711
06/02/2018,,BritcabLtd,Building Works - Alterations,"2,828.77",565.75,Building Works - Alterations,63624007,,C2000,130892,LC,95005,Education and Children's Services,C200001,201711
28/02/2018,Adults & Housing Department,Brenntag,Materials Purchase,635.96,127.19,Materials Purchase,63626097,A,R4002,130930,LC,20171,Spence Street Sports Centre,R400201,201711
,Adults & Housing Department,Bonney Care Agency Ltd FA SL&FSB,Personal Care / Generic,885.04,0.00,Home Care,41550296,A,R5705,131187,LC,40875,LOC WEST - Reablement - Team 2  - Sulgrave Road - Commissioning,R570502,201711
27/02/2018,Education & Childrens Services,Adopters for Adoption,Adoption Agency Placements,"1,667.00",0.00,Other Agencies,63627434,C,R5800,131366,LC,31595,Adoption Support Team,R580057,201711
09/02/2018,Education & Childrens Services,Woodstock Primary Academy,Primary Schools Standard Fund,500.00,0.00,Primary Schools Standard Fund,63625906,C,R6029,131369,LC,31342,Primary Curriculum Support,R602901,201711
06/02/2018,Adults & Housing Department,MiLife Homecare,Personal Care / Generic,545.29,0.00,Home Care,41545177,A,R5705,131500,LC,40875,LOC WEST - Reablement - Team 2  - Sulgrave Road - Commissioning,R570502,201711
16/02/2018,City Developments and Neighbourhood,Manpower Direct UK Ltd,Security & Safety Services,"5,794.50","1,158.90",Public Order & Security Services,63627249,N,R4413,131516,LC,50108,Goscote House,R441301,201711
16/02/2018,Education & Childrens Services,Rushey Mead Educational Trust,Education and Training Services,"23,400.00",0.00,Education & Training Services,63622118,C,R4410,131541,LC,32322,LESP DSG,R441001,201711
07/02/2018,City Developments and Neighbourhood,Hall Mark Meat Hygiene Ltd,Farming and Fishing and Forestry and Wildlife Contracting Services,"1,170.00",234.00,Farming & Fishing & Forestry & Wildlife Services,63623310,N,R4400,131675,LC,20208,Licensing Pubs Clubs & Entertainment,R440001,201711
21/02/2018,City Developments and Neighbourhood,Polygon,Responsive,"6,336.90",316.85,Building Services / Repairs & Maintenance  Fixtures & Fittings,63628016,N,R2001,131695,LC,10070,Central Maintenance Fund Non Schools,R200101,201711
,Corporate Resources & Support,Spacehive Ltd,Community Expenditure,"1,000.00",0.00,Community Expenditure,63630720,T,R4420,131707,LC,10904,City Mayor's Office,R442001,201711
28/02/2018,City Developments and Neighbourhood,BANNER PLANT LIMITED,Plant Hire/Lease,"1,375.00",275.00,Equipment Hire / Lease,63626177,N,R4003,131767,LC,20295,City Highways - Operation,R400302,201711
28/02/2018,City Developments and Neighbourhood,BANNER PLANT LIMITED,Plant Hire/Lease,592.40,118.48,Equipment Hire / Lease,63626186,N,R4003,131767,LC,20295,City Highways - Operation,R400302,201711
,City Developments and Neighbourhood,BANNER PLANT LIMITED,Plant Hire/Lease,647.50,129.50,Equipment Hire / Lease,63630122,N,R4003,131767,LC,20295,City Highways - Operation,R400302,201711
,Adults & Housing Department,Family Care Agency Ltd,Personal Care / Generic,769.33,0.00,Home Care,41546451,A,R5705,131844,LC,40319,WEST - Comm'g - Paisley Road - Team 3,R570502,201711
,Adults & Housing Department,Family Care Agency Ltd,Personal Care / Generic,905.94,0.00,Home Care,41550505,A,R5705,131844,LC,40331,Health Transfers - Commissioning - Discharge Team 2,R570502,201711
28/02/2018,Adults & Housing Department,St George's Nursing Home Ltd,Nursing Permanent,"1,889.04",0.00,Nursing Care,41553313,A,R5702,131894,LC,40305,EAST - Comm'g - Rushey Mead - East 2,R570204,201711
27/02/2018,Education & Childrens Services,Swannington C of E Primary School,Pupil Premium Looked After Children,872.10,0.00,Pupil Premium - Schools,63628951,C,R6048,131903,LC,32495,VST Pupil Premium Plus,R604803,201711
09/02/2018,Education & Childrens Services,Living with Plymouth University,Accommodation Costs,"2,156.00",0.00,Project - Higher Education,63625015,C,R5680,132033,LC,32377,LAC - Higher Education,R568002,201711
20/02/2018,City Developments and Neighbourhood,Allroads Asphalt Solutions Ltd,3PP - Private Contractors,"7,102.96","1,420.59",Private Contractors,63628530,N,R5700,132069,LC,20295,City Highways - Operation,R570033,201711
09/02/2018,Corporate Finance,PayPoint Collections Ltd,Bank Charges,755.26,151.05,Bank Charges,63623613,R,R4608,132071,LC,18006,Barclays Bank,R460801,201711
21/02/2018,Corporate Finance,PayPoint Collections Ltd,Bank Charges,520.63,104.13,Bank Charges,63627661,R,R4608,132071,LC,18006,Barclays Bank,R460801,201711
16/02/2018,,SKILLINGTON WORKSHOP LIMITED,Editorial & Design & Graphic & Art Services,"4,818.80",963.76,Editorial & Design & Graphic & Art Services,63626863,,C4406,132135,LC,95004,City Developments and Neighbourhood,C440601,201711
06/02/2018,Corporate Resources & Support,Virgin Media Business,Communication Equipment Lease / Rental,733.30,146.66,Communications Equipment Lease / Rental,63624354,T,R4510,132210,LC,10179,Wan/Telephony,R451001,201711
16/02/2018,Education & Childrens Services,Water Plus Ltd,Metered Water,935.01,0.00,Water Utilities,41548465,C,R2430,132264,LC,31609,Barnes Heath,R243002,201711
16/02/2018,City Developments and Neighbourhood,Water Plus Ltd,Metered Water,"2,538.23",0.00,Water Utilities,41548473,N,R2430,132264,LC,20074,St. Margaret's Bus Station,R243002,201711
16/02/2018,City Developments and Neighbourhood,Water Plus Ltd,Metered Water,"1,098.08",0.00,Water Utilities,41548519,N,R2430,132264,LC,31426,Vacant Premises,R243002,201711
16/02/2018,Adults & Housing Department,Water Plus Ltd,Metered Sewage,679.53,0.00,Sewage Utilities,41548509,A,R2431,132264,LC,20169,Saffron Lane Sports Centre,R243101,201711
27/02/2018,Adults & Housing Department,ALLPAY LIMITED,Direct Payments - Homecare,"5,393.85",0.00,Direct Payments,63629799,A,R5706,132391,LC,40311,EAST - Commissioning - Supported Residents Care Team,R570602,201711
16/02/2018,City Developments and Neighbourhood,Power Electrics,Heating Oil,"1,121.80",56.09,Heating Oil,63626949,N,R2103,132558,LC,21085,Corporate Event Management,R210301,201711
23/02/2018,City Developments and Neighbourhood,Sayfa Systems UK Limited,Servicing,"1,190.00",238.00,Building Works & Repairs/Maintenance/Alterations,63624557,N,R2000,132619,LC,10932,Town Hall,R200004,201711
09/02/2018,Education & Childrens Services,Forest Lodge Academy,Primary Schools Standard Fund,500.00,0.00,Primary Schools Standard Fund,63625908,C,R6029,132621,LC,31342,Primary Curriculum Support,R602901,201711
28/02/2018,Adults & Housing Department,Evington Grange,Residential Permanent,"1,938.00",0.00,Residential Care,41553326,A,R5701,132636,LC,40229,Commissioning - Braunstone Health & Social Care Centre - Adult Mental Health,R570104,201711
,Corporate Resources & Support,Intelligencia Training Ltd,Training,"3,500.00",700.00,Employee Training,63630109,T,R1950,132780,LC,10148,Corporate Counter Fraud Team,R195001,201711
,City Developments and Neighbourhood,Three Point Design ltd,Sundry Project Grants,"4,421.50",0.00,Private Contractors,63630474,N,R5700,132788,LC,22000,Green BELLE,R570034,201711
20/02/2018,City Developments and Neighbourhood,ESPO,Materials Purchase,539.40,107.88,Materials Purchase,63622334,N,R4002,100100,LC,20298,Stock Procurement,R400201,201711
,City Developments and Neighbourhood,ESPO,Materials Purchase,619.30,123.86,Materials Purchase,63627097,N,R4002,100100,LC,20298,Stock Procurement,R400201,201711
23/02/2018,Education & Childrens Services,ESPO,Materials Purchase,"3,156.54",631.31,Materials Purchase,63628965,C,R4002,100100,LC,20702,Catering - School Meals O/H Acc,R400201,201711
27/02/2018,City Developments and Neighbourhood,ESPO,Equipment Purchase,"2,594.38",518.88,Equipment Purchase,63630500,N,R4000,100100,LC,20298,Stock Procurement,R400001,201711
,City Developments and Neighbourhood,ESPO,Materials Purchase,"1,053.40",210.68,Materials Purchase,63624807,N,R4002,100100,LC,20298,Stock Procurement,R400201,201711
21/02/2018,City Developments and Neighbourhood,AB Adcock,Responsive,"4,130.00",826.00,Building Works & Repairs/Maintenance/Alterations,63624684,N,R2000,100177,LC,20260,Allotments,R200001,201711
23/02/2018,City Developments and Neighbourhood,Aggregate Industries UK Ltd,Materials Purchase,"1,122.33",224.47,Materials Purchase,63626679,N,R4002,100193,LC,20295,City Highways - Operation,R400201,201711
16/02/2018,Corporate Resources & Support,Alfred Willday & Son Ltd,Printing,"2,830.00",566.00,Printing & Copying,63625694,T,R4303,100221,LC,10297,Marketing & Brand Management Operations,R430301,201711
16/02/2018,Corporate Resources & Support,Alfred Willday & Son Ltd,Printing,"5,159.00","1,031.80",Printing & Copying,63627322,T,R4303,100221,LC,10297,Marketing & Brand Management Operations,R430301,201711
09/02/2018,Adults & Housing Department,Allsigns International Ltd,Responsive,706.85,141.37,Building Works & Repairs/Maintenance/Alterations,63624998,A,R2000,100249,LC,20183,Sports Management Overhead Account,R200001,201711
23/02/2018,Adults & Housing Department,Alzheimers Society,Paid Persons Representatives (PPR),"1,747.20",0.00,Consultant Fees,63623203,A,R4417,100250,LC,41118,DOLS,R441706,201711
20/02/2018,Adults & Housing Department,Alzheimers Society,Paid Persons Representatives (PPR),"2,020.35",0.00,Consultant Fees,63623230,A,R4417,100250,LC,41118,DOLS,R441706,201711
09/02/2018,City Developments and Neighbourhood,Maxwell Amenity Ltd,Materials Purchase,550.07,110.01,Materials Purchase,63619677,N,R4002,100262,LC,20249,Trees and Woodland service City Wide,R400201,201711
20/02/2018,City Developments and Neighbourhood,Aqua-Jet Specialist Drainage Contractors Ltd,Responsive,724.14,144.83,Building Works & Repairs/Maintenance/Alterations,63627988,N,R2000,100298,LC,10070,Central Maintenance Fund Non Schools,R200001,201711
27/02/2018,,Aqua-Jet Specialist Drainage Contractors Ltd,Building Works - Alterations,"5,485.00","1,097.00",Building Works - Alterations,63630293,,C2000,100298,LC,95004,City Developments and Neighbourhood,C200001,201711
09/02/2018,City Developments and Neighbourhood,Ashwell Maintenance Ltd,Responsive,"1,022.39",204.48,Building Services / Repairs & Maintenance  Fixtures & Fittings,63624916,N,R2001,100363,LC,10070,Central Maintenance Fund Non Schools,R200101,201711
,City Developments and Neighbourhood,Avalon Promotions Ltd,Artist's Fees,"10,000.00","2,000.00",Performance Costs,63628967,N,R4416,100395,LC,20119,De Montfort Hall,R441601,201711
28/02/2018,City Developments and Neighbourhood,Bay Media (Outdoor)Ltd,Editorial and Design and Graphic and Fine Art Services,"3,150.00",630.00,Editorial & Design & Graphic & Fine Art Services,63623445,N,R4406,100443,LC,21068,Arts and Museums Projects (NS),R440601,201711
,City Developments and Neighbourhood,Barcham Trees PLC,Materials Purchase,"1,256.00",251.20,Materials Purchase,63626733,N,R4002,100477,LC,20249,Trees and Woodland service City Wide,R400201,201711
28/02/2018,City Developments and Neighbourhood,Broadland Guarding Services Lt,Professional Fees,"14,887.71","2,977.54",Management & Business & Administrative Services,63630472,N,R4404,100712,LC,10296,CCTV,R440403,201711
09/02/2018,City Developments and Neighbourhood,Bt Payment Services Ltd,Planned,940.25,188.05,Transport Infrastructure,63625144,N,R3600,100745,LC,20062,Signals County,R360002,201711
16/02/2018,,Western Power Distribution PLC,Building Works - Alterations,"1,711.68",342.34,Building Works - Alterations,63627302,,C2000,100920,LC,95001,Housing HRA,C200001,201711
06/02/2018,,Oliveti Construction Ltd,Fixtures & Fittings,"20,206.17","4,041.23",Fixtures & Fittings,63624284,,C2001,101166,LC,95001,Housing HRA,C200101,201711
27/02/2018,,Oliveti Construction Ltd,Building Works - Alterations,"5,000.00","1,000.00",Building Works - Alterations,63630353,,C2000,101166,LC,95003,Resources and Support,C200001,201711
02/02/2018,Education & Childrens Services,Compass Fostering Central Ltd,Independent Foster Agencies,"3,050.14",0.00,Other Agencies,63622569,C,R5800,101171,LC,32345,Independent Fostering Agencies,R580054,201711
02/02/2018,Education & Childrens Services,Compass Fostering Central Ltd,Independent Foster Agencies,"3,001.42",0.00,Other Agencies,63622544,C,R5800,101171,LC,32345,Independent Fostering Agencies,R580054,201711
09/02/2018,Education & Childrens Services,Compass Fostering Central Ltd,Independent Foster Agencies,"2,989.20",0.00,Other Agencies,63625952,C,R5800,101171,LC,32345,Independent Fostering Agencies,R580054,201711
09/02/2018,City Developments and Neighbourhood,Curve,Other Local Authorities,"145,845.00",0.00,Other Establishments,63624360,N,R5600,101255,LC,20838,Curve,R560001,201711
27/02/2018,,Danaher & Walsh (C E ) Ltd,External Works - Infrastructure,"3,150.30",630.06,Transport Infrastructure,63629794,,C3600,101268,LC,95004,City Developments and Neighbourhood,C360002,201711
23/02/2018,City Developments and Neighbourhood,Dawson Rentals Sweepers,Hire Vehicles,"1,922.00",384.40,Hire Vehicles,63627358,N,R3203,101287,LC,20302,Hire Vehicles,R320301,201711
06/02/2018,Education & Childrens Services,Derbyshire County Council,Independent Foster Agencies,"2,825.38",0.00,Other Agencies,63624023,C,R5800,101322,LC,32345,Independent Fostering Agencies,R580054,201711
16/02/2018,City Developments and Neighbourhood,Duval FM Ltd.,Security & Safety Services,"1,328.64",265.73,Public Order & Security Services,63623525,N,R4413,101440,LC,10950,Beaumont Leys Data Centre,R441301,201711
23/02/2018,City Developments and Neighbourhood,Duval FM Ltd.,Security & Safety Services,"1,328.64",265.73,Public Order & Security Services,63623535,N,R4413,101440,LC,10950,Beaumont Leys Data Centre,R441301,201711
14/02/2018,City Developments and Neighbourhood,Duval FM Ltd.,Security & Safety Services,"1,686.75",337.35,Public Order & Security Services,63627045,N,R4413,101440,LC,10942,York House Granby St,R441301,201711
,,Faithful+Gould Ltd,Consultant Fees,"115,668.52","23,133.70",Consultant Fees,63626212,,C4417,101680,LC,95004,City Developments and Neighbourhood,C441701,201711
13/02/2018,Education & Childrens Services,Foster Care Associates Ltd,Independent Foster Agencies,"3,542.68",0.00,Other Agencies,63625546,C,R5800,101776,LC,32345,Independent Fostering Agencies,R580054,201711
21/02/2018,City Developments and Neighbourhood,Uk Gas Services Ltd,Sundry Project Grants,"1,740.53",348.11,Private Contractors,63628398,N,R5700,101812,LC,20916,Health Through Warmth,R570034,201711
28/02/2018,City Developments and Neighbourhood,George Walker Ltd,Non Urgent Work,907.20,181.44,Building Works & Repairs/Maintenance/Alterations,63623582,N,R2000,101845,LC,20254,Saffron Hill Cemetery,R200005,201711
27/02/2018,Adults & Housing Department,Gladstone MRM Ltd,Annual Maintenance - Software,"1,744.00",348.80,Repairs & Maintenance  IT Software,63623291,A,R4503,101871,LC,20183,Sports Management Overhead Account,R450302,201711
,City Developments and Neighbourhood,Jewson Ltd t/a Graham The Plumbers Merchant,Equipment Purchase,734.26,146.85,Equipment Purchase,63631189,N,R4000,101907,LC,50461,Management & Admin (Gas),R400001,201711
21/02/2018,,Arcadis LLP,Consultant Fees,"9,134.00","1,826.80",Consultant Fees,63624594,,C4417,102038,LC,95004,City Developments and Neighbourhood,C441701,201711
02/02/2018,Education & Childrens Services,De Montfort Housing Society Ltd,Accommodation - Supported Accommodation,"2,523.49",0.00,Other Establishments,50301711,C,R5600,102108,LC,32130,LAC - Person From Abroad,R560062,201711
21/02/2018,Adults & Housing Department,De Montfort Housing Society Ltd,Community Alarm- ILS,741.77,0.00,Community Alarm- ILS,63628558,A,R5731,102108,LC,40797,ILS Floating Support,R573101,201711
09/02/2018,Education & Childrens Services,Hits Homes Trust Ltd,Accommodation - Supported Accommodation,"1,298.97",0.00,Other Establishments,63624935,C,R5600,102115,LC,32442,LAC Semi-Independent  Accommodation,R560062,201711
23/02/2018,Adults & Housing Department,Mosaic Shaping Disability Serv,Day Care /Community Opportunities,786.72,0.00,Day Care /Community Opportunities,41546790,A,R5707,102124,LC,41152,LD Team 2 -Commissioning,R570701,201711
20/02/2018,Education & Childrens Services,Hopwells Ltd,Catering - Provisions,"34,108.32",0.00,Catering Provisions / Food & Drink,63620495,C,R4106,102200,LC,20702,Catering - School Meals O/H Acc,R410601,201711
21/02/2018,City Developments and Neighbourhood,Instarmac Group Plc,Responsive,880.88,176.18,Building Works & Repairs/Maintenance/Alterations,63622027,N,R2000,102325,LC,20298,Stock Procurement,R200001,201711
06/02/2018,Education & Childrens Services,Jay Fostering Ltd,Independent Foster Agencies,"2,961.12",0.00,Other Agencies,63622591,C,R5800,102431,LC,32345,Independent Fostering Agencies,R580054,201711
06/02/2018,Education & Childrens Services,Jay Fostering Ltd,Independent Foster Agencies,"2,961.12",0.00,Other Agencies,63622606,C,R5800,102431,LC,31599,Foster Care,R580054,201711
28/02/2018,Education & Childrens Services,Jay Fostering Ltd,Independent Foster Agencies,"3,699.92",0.00,Other Agencies,63624334,C,R5800,102431,LC,32345,Independent Fostering Agencies,R580054,201711
28/02/2018,Education & Childrens Services,Jay Fostering Ltd,Independent Foster Agencies,"3,017.28",0.00,Other Agencies,63624276,C,R5800,102431,LC,32345,Independent Fostering Agencies,R580054,201711
28/02/2018,Education & Childrens Services,Jay Fostering Ltd,Independent Foster Agencies,"3,017.28",0.00,Other Agencies,63624308,C,R5800,102431,LC,32345,Independent Fostering Agencies,R580054,201711
06/02/2018,Education & Childrens Services,Jay Fostering Ltd,Independent Foster Agencies,"3,500.83",0.00,Other Agencies,63591801,C,R5800,102431,LC,32345,Independent Fostering Agencies,R580054,201711
28/02/2018,Education & Childrens Services,Jay Fostering Ltd,Independent Foster Agencies,"2,681.84",0.00,Other Agencies,63624322,C,R5800,102431,LC,32345,Independent Fostering Agencies,R580054,201711
06/02/2018,Education & Childrens Services,Leicestershire County Council,Educational Transport Schools,"14,353.50","2,870.70",Educational Transport,63611990,C,R3207,102667,LC,31528,Mainstream Transport,R320701,201711
14/02/2018,City Developments and Neighbourhood,Leicestershire County Council,Other Local Authorities,"28,576.01","5,715.20",Other Local Authorities,63624227,N,R5200,102667,LC,20081,Travel Concessions,R520002,201711
28/02/2018,Corporate Resources & Support,Leicestershire County Council,Printing,604.00,120.80,Printing & Copying,63625746,T,R4303,102667,LC,10297,Marketing & Brand Management Operations,R430301,201711
07/02/2018,City Developments and Neighbourhood,Leicester Racecourse Co Ltd,Room & Space Hire & Entertainment Services,750.00,150.00,Room & Space Hire & Entertainment Services,63624847,N,R4411,102812,LC,20970,LLEP Core Staff & Operational,R441101,201711
09/02/2018,City Developments and Neighbourhood,Liberty Printers Ltd,Security & Safety Services,"2,050.00",410.00,Public Order & Security Services,63625608,N,R4413,102862,LC,20777,On-Street Parking/ De-criminalised Parking Enforcement,R441301,201711
07/02/2018,City Developments and Neighbourhood,Lowe Electrical,Responsive,"1,545.92",309.18,Building Services / Repairs & Maintenance  Fixtures & Fittings,63624869,N,R2001,102910,LC,10070,Central Maintenance Fund Non Schools,R200101,201711
07/02/2018,City Developments and Neighbourhood,Lowe Electrical,Responsive,"4,334.85",866.97,Building Services / Repairs & Maintenance  Fixtures & Fittings,63624878,N,R2001,102910,LC,10080,Schools Buy Back Board,R200101,201711
07/02/2018,City Developments and Neighbourhood,Lowe Electrical,Electricity at Work - Works,"6,187.18","1,237.44",Electricity at Work,63624863,N,R2004,102910,LC,10070,Central Maintenance Fund Non Schools,R200402,201711
14/02/2018,City Developments and Neighbourhood,Lowe Electrical,Responsive,"1,886.98",377.40,Building Services / Repairs & Maintenance  Fixtures & Fittings,63625367,N,R2001,102910,LC,10080,Schools Buy Back Board,R200101,201711
14/02/2018,City Developments and Neighbourhood,Lowe Electrical,Responsive,"1,657.86",331.57,Building Services / Repairs & Maintenance  Fixtures & Fittings,63625943,N,R2001,102910,LC,10757,Corporate Landlord - CLABS,R200101,201711
09/02/2018,City Developments and Neighbourhood,Lowe Electrical,Servicing,612.75,122.55,Building Services / Repairs & Maintenance  Fixtures & Fittings,63625344,N,R2001,102910,LC,22002,Corporate Landlord - CDN,R200104,201711
09/02/2018,City Developments and Neighbourhood,Lowe Electrical,Servicing,562.82,112.56,Building Services / Repairs & Maintenance  Fixtures & Fittings,63625331,N,R2001,102910,LC,22002,Corporate Landlord - CDN,R200104,201711
09/02/2018,City Developments and Neighbourhood,Lowe Electrical,Responsive,"1,957.45",391.49,Building Services / Repairs & Maintenance  Fixtures & Fittings,63625364,N,R2001,102910,LC,10080,Schools Buy Back Board,R200101,201711
27/02/2018,City Developments and Neighbourhood,Lowe Electrical,Responsive,522.55,104.51,Building Services / Repairs & Maintenance  Fixtures & Fittings,63629826,N,R2001,102910,LC,10070,Central Maintenance Fund Non Schools,R200101,201711
27/02/2018,City Developments and Neighbourhood,Lowe Electrical,Responsive,524.06,104.81,Building Services / Repairs & Maintenance  Fixtures & Fittings,63629827,N,R2001,102910,LC,22002,Corporate Landlord - CDN,R200101,201711
27/02/2018,City Developments and Neighbourhood,Lowe Electrical,Responsive,737.01,147.40,Building Services / Repairs & Maintenance  Fixtures & Fittings,63629829,N,R2001,102910,LC,22002,Corporate Landlord - CDN,R200101,201711
14/02/2018,,Lowe Electrical,Fixtures & Fittings,"2,803.64",560.73,Fixtures & Fittings,63626681,,C2001,102910,LC,95005,Education and Children's Services,C200101,201711
23/02/2018,,Lowe Electrical,Building Works - Alterations,"5,400.00","1,080.00",Building Works - Alterations,63627976,,C2000,102910,LC,95005,Education and Children's Services,C200001,201711
28/02/2018,Adults & Housing Department,Macintyre Care,Residential Permanent,"1,766.64",0.00,Residential Care,41552395,A,R5701,102979,LC,41153,LD Targeted Reassessment Team-Commissioning,R570104,201711
23/02/2018,Education & Childrens Services,Bryn Melyn Care Ltd,Residential Placements,"21,607.00",0.00,Other Agencies,63629133,C,R5800,103091,LC,31590,Externally Commissioned Placements,R580051,201711
16/02/2018,City Developments and Neighbourhood,Mole Groundworks Limited,Equipment Hire/Lease,740.00,148.00,Equipment Hire / Lease,63623567,N,R4003,103182,LC,20263,Schools Services Citywide,R400301,201711
21/02/2018,City Developments and Neighbourhood,Mole Groundworks Limited,Materials Purchase,"2,960.00",592.00,Materials Purchase,63623575,N,R4002,103182,LC,20262,Landscape Services Citywide,R400201,201711
,Adults & Housing Department,Mosaic Shaping(Dis Serv)Main,Paid Persons Representatives (PPR),869.10,0.00,Consultant Fees,63628004,A,R4417,103199,LC,41118,DOLS,R441706,201711
28/02/2018,Education & Childrens Services,National Fostering Agency,Independent Foster Agencies,"3,348.00",0.00,Other Agencies,63626543,C,R5800,103253,LC,32345,Independent Fostering Agencies,R580054,201711
21/02/2018,Education & Childrens Services,National Fostering Agency,Parenting Assessments,"3,113.33",0.00,Other Agencies,63627529,C,R5800,103253,LC,31590,Externally Commissioned Placements,R580053,201711
07/02/2018,City Developments and Neighbourhood,Neopost Ltd Credifon Rcb A/C,Postage,"3,000.00",PE,Postage,63624804,N,R4512,103289,LC,10046,Beaumont Enterprise Centre,R451201,201711
02/02/2018,Adults & Housing Department,Nottingham Rehab Ltd t/a NRS Healthcare,ICES Spare parts,"23,746.20","4,749.24",Voluntary Organisations,63619154,A,R5501,103401,LC,40738,Integrated community Equipment Service,R550138,201711
28/02/2018,Adults & Housing Department,Nottingham Rehab Ltd t/a NRS Healthcare,ICES Spare parts,"14,069.04","2,813.81",Voluntary Organisations,63627884,A,R5501,103401,LC,40738,Integrated community Equipment Service,R550138,201711
28/02/2018,Adults & Housing Department,Nottingham Rehab Ltd t/a NRS Healthcare,ICES Collection Fees,"17,742.00","3,548.40",Voluntary Organisations,63627884,A,R5501,103401,LC,40738,Integrated community Equipment Service,R550132,201711
14/02/2018,City Developments and Neighbourhood,Dynniq,Project - Responsive,550.00,110.00,Project - Transport Infrastructure,63622077,N,R3680,103570,LC,20062,Signals County,R368001,201711
14/02/2018,City Developments and Neighbourhood,Dynniq,Project - Planned,"3,456.00",691.20,Project - Transport Infrastructure,63627063,N,R3680,103570,LC,20062,Signals County,R368002,201711
14/02/2018,City Developments and Neighbourhood,Peters Ltd,Children's Stock,"1,801.80",0.00,Printed & Electronic Media,41546554,N,R4010,103587,LC,20845,NS Area 4 - CYPS,R401008,201711
06/02/2018,City Developments and Neighbourhood,St Philips Centre,Direct Payments,"29,927.40",0.00,Other Establishments,63624089,N,R5600,103625,LC,10914,Prevent Violent Extremism (PVET),R560002,201711
07/02/2018,Corporate Resources & Support,Prontaprint,Printing,878.60,175.72,Printing & Copying,63623557,T,R4303,103705,LC,10297,Marketing & Brand Management Operations,R430301,201711
28/02/2018,City Developments and Neighbourhood,Premier Security Services Ltd T/a Regent Samsic,Security & Safety Services,592.50,118.50,Public Order & Security Services,63628257,N,R4413,103755,LC,10942,York House Granby St,R441301,201711
28/02/2018,City Developments and Neighbourhood,Premier Security Services Ltd T/a Regent Samsic,Security & Safety Services,"4,787.65",957.53,Public Order & Security Services,63627762,N,R4413,103755,LC,20232,Leycroft Road Depot Management,R441301,201711
28/02/2018,City Developments and Neighbourhood,Premier Security Services Ltd T/a Regent Samsic,Security & Safety Services,664.83,132.97,Public Order & Security Services,63625530,N,R4413,103755,LC,21072,Beaumont Leys Library & Beaumont Way (Childrens Centre),R441301,201711
28/02/2018,City Developments and Neighbourhood,Premier Security Services Ltd T/a Regent Samsic,Security & Safety Services,775.62,155.12,Public Order & Security Services,63625554,N,R4413,103755,LC,10933,Phoenix House,R441301,201711
13/02/2018,,Kingkraft Ltd,Building Works - Alterations,"7,157.00",0.00,Building Works - Alterations,63625596,,C2000,103771,LC,95000,Housing GF,C200001,201711
06/02/2018,,Property Maintenance Services Ltd,Building Works - Alterations,"3,970.00",0.00,Building Works - Alterations,63624153,,C2000,103772,LC,95000,Housing GF,C200001,201711
07/02/2018,City Developments and Neighbourhood,Readings Property Group Limited,Engineering / Research / Technology / Science Services,660.00,132.00,Engineering / Research / Technology / Science Services,63622829,N,R4405,103876,LC,50247,Right To Buy,R440501,201711
,Corporate Resources & Support,Royal Society for the Prevention of Accidents (RoSPA),Training,"1,045.00",209.00,Employee Training,63627713,T,R1950,103947,LC,10140,Corporate Health & Safety,R195001,201711
27/02/2018,Adults & Housing Department,Sanatan Manavta Day Care Serv,Day Care /Community Opportunities,542.20,0.00,Day Care /Community Opportunities,41545070,A,R5707,104042,LC,40309,EAST - Comm'g - Uppingham Road - East 4,R570701,201711
16/02/2018,Adults & Housing Department,Samalodge Ltd,Supported Living - Day Intensive,"1,265.42",0.00,Supported Living,63627336,A,R5703,104064,LC,40303,EAST - Comm'g - Merlyn Vaz HC and St Peters - East 1,R570301,201711
21/02/2018,City Developments and Neighbourhood,AT Services Ltd,Responsive,"1,290.52",258.10,Building Works & Repairs/Maintenance/Alterations,63627816,N,R2000,104108,LC,22002,Corporate Landlord - CDN,R200001,201711
20/02/2018,City Developments and Neighbourhood,AT Services Ltd,Responsive,882.26,176.45,Building Services / Repairs & Maintenance  Fixtures & Fittings,63627817,N,R2001,104108,LC,10070,Central Maintenance Fund Non Schools,R200101,201711
,City Developments and Neighbourhood,Showsec International Ltd,Security & Safety Services,"8,509.71","1,701.94",Public Order & Security Services,63624261,N,R4413,104167,LC,20079,Haymarket Bus Station,R441301,201711
06/02/2018,City Developments and Neighbourhood,Sikh Community Centre,Voluntary Sector - Other,"14,500.00",0.00,Voluntary Organisations,63624065,N,R5501,104204,LC,40463,VOLUNTARY ORGANISATIONS,R550115,201711
28/02/2018,City Developments and Neighbourhood,Spandex Plc,Materials Purchase,"1,048.47",209.69,Materials Purchase,63623573,N,R4002,104331,LC,50460,Sign Works (RM3),R400201,201711
16/02/2018,Education & Childrens Services,Speedline Taxis,Employee Taxi Travel Expense,"15,860.50","3,172.10",Taxi Travel Expense,63627202,C,R3303,104340,LC,20303,Operational Transport Ad Hoc,R330301,201711
21/02/2018,Corporate Resources & Support,J Stamp & Sons Ltd,Removal Of Bodies,560.00,0.00,Funeral Services,63628683,T,R4423,104451,LC,10222,Coroners,R442304,201711
13/02/2018,City Developments and Neighbourhood,BANNER GROUP LIMITED,Stationery,"1,215.00",243.00,Stationery & Office Supplies,63617915,N,R4300,104469,LC,10109,Corporate Premises Manager,R430001,201711
28/02/2018,City Developments and Neighbourhood,BANNER GROUP LIMITED,Stationery,519.12,103.82,Stationery & Office Supplies,63623842,N,R4300,104469,LC,31426,Vacant Premises,R430001,201711
23/02/2018,City Developments and Neighbourhood,BDA Surveying Ltd,Project - Responsive,"4,555.00",911.00,Project - Repairs / Maintenance / Alterations,63629766,N,R2080,104472,LC,50260,Contractor Repair & Maintenance projects,R208001,201711
20/02/2018,Education & Childrens Services,Sutherland House (Trading) Ltd,Independent School Fees,"20,947.00","4,189.40",Independent School Fees,63624681,C,R4418,104481,LC,31203,Independent and Non-Maintained Schools,R441801,201711
,City Developments and Neighbourhood,Tarmac Ltd,Materials Purchase,777.00,155.40,Materials Purchase,63628726,N,R4002,104520,LC,20295,City Highways - Operation,R400201,201711
,City Developments and Neighbourhood,Tarmac Ltd,Materials Purchase,605.04,121.01,Materials Purchase,63627771,N,R4002,104520,LC,20295,City Highways - Operation,R400201,201711
06/02/2018,,G W Throop Ltd,Building Works - Alterations,"3,216.00",0.00,Building Works - Alterations,63623642,,C2000,104563,LC,95000,Housing GF,C200001,201711
06/02/2018,City Developments and Neighbourhood,Thomas Cassie & Sons,Vandalism,525.34,105.07,Building Works & Repairs/Maintenance/Alterations,63624121,N,R2000,104596,LC,10080,Schools Buy Back Board,R200006,201711
27/02/2018,City Developments and Neighbourhood,Thomas Cassie & Sons,Responsive,"3,082.30",616.46,Building Works & Repairs/Maintenance/Alterations,63630396,N,R2000,104596,LC,10070,Central Maintenance Fund Non Schools,R200001,201711
07/02/2018,City Developments and Neighbourhood,Total Gas & Power Ltd,Electricity Bills,873.19,174.64,Electricity Utilities,41546335,N,R2100,104632,LC,20244,Buildings,R210001,201711
07/02/2018,Education & Childrens Services,Total Gas & Power Ltd,Electricity Bills,584.38,116.88,Electricity Utilities,41545237,C,R2100,104632,LC,32424,Braunstone Children's Centre,R210001,201711
07/02/2018,City Developments and Neighbourhood,Total Gas & Power Ltd,Electricity Bills,806.40,161.28,Electricity Utilities,41545371,N,R2100,104632,LC,20277,Beaumont Leys Market,R210001,201711
07/02/2018,City Developments and Neighbourhood,Total Gas & Power Ltd,Electricity Bills,536.49,107.30,Electricity Utilities,41545258,N,R2100,104632,LC,20154,Highfields Library,R210001,201711
07/02/2018,City Developments and Neighbourhood,Total Gas & Power Ltd,Electricity Bills,"1,639.80",327.96,Electricity Utilities,41545199,N,R2100,104632,LC,10047,Melbourne Centre,R210001,201711
07/02/2018,City Developments and Neighbourhood,Total Gas & Power Ltd,Electricity Bills,"2,564.24",512.85,Electricity Utilities,41545327,N,R2100,104632,LC,20074,St. Margaret's Bus Station,R210001,201711
07/02/2018,City Developments and Neighbourhood,Total Gas & Power Ltd,Project - Electricity,792.40,39.62,Project - Electricity,41546207,N,R2083,104632,LC,50075,Sheltered Accommodation,R208301,201711
07/02/2018,City Developments and Neighbourhood,Total Gas & Power Ltd,Electricity Bills,609.25,30.46,Electricity Utilities,41546233,N,R2100,104632,LC,50094,Communal Heating - St Matthews,R210001,201711
07/02/2018,City Developments and Neighbourhood,Total Gas & Power Ltd,Electricity Bills,"2,311.59",115.58,Electricity Utilities,41546234,N,R2100,104632,LC,50094,Communal Heating - St Matthews,R210001,201711
07/02/2018,City Developments and Neighbourhood,Total Gas & Power Ltd,Project - Electricity,779.52,38.98,Project - Electricity,41546200,N,R2083,104632,LC,50075,Sheltered Accommodation,R208301,201711
07/02/2018,City Developments and Neighbourhood,Total Gas & Power Ltd,Electricity Bills,595.04,119.01,Electricity Utilities,41546383,N,R2100,104632,LC,20930,Makers Yard,R210001,201711
07/02/2018,Education & Childrens Services,Total Gas & Power Ltd,Electricity Bills,524.11,104.82,Electricity Utilities,41545225,C,R2100,104632,LC,31667,Highfields Surestart,R210001,201711
,City Developments and Neighbourhood,Total Gas & Power Ltd,Electricity Bills,"6,649.12","1,329.82",Electricity Utilities,41548407,N,R2100,104632,LC,20798,DMH Operations,R210001,201711
,Adults & Housing Department,Total Gas & Power Ltd,Electricity Bills,"2,768.06",553.61,Electricity Utilities,41548413,A,R2100,104632,LC,20176,New Parks Leisure Centre,R210001,201711
,Adults & Housing Department,Total Gas & Power Ltd,Electricity Bills,"12,834.65","2,566.93",Electricity Utilities,41548414,A,R2100,104632,LC,20177,Braunstone Leisure Centre,R210001,201711
,Adults & Housing Department,Total Gas & Power Ltd,Electricity Bills,768.82,153.76,Electricity Utilities,41548416,A,R2100,104632,LC,20955,New College - Football Foundation Pavillion,R210001,201711
,City Developments and Neighbourhood,Total Gas & Power Ltd,Electricity Bills,"1,797.63",359.53,Electricity Utilities,41548383,N,R2100,104632,LC,10935,Sovereign House,R210001,201711
,City Developments and Neighbourhood,Total Gas & Power Ltd,Electricity Bills,"2,560.36",512.07,Electricity Utilities,41548395,N,R2100,104632,LC,20232,Leycroft Road Depot Management,R210001,201711
,City Developments and Neighbourhood,Total Gas & Power Ltd,Electricity Bills,"1,607.94",321.59,Electricity Utilities,41548353,N,R2100,104632,LC,31426,Vacant Premises,R210001,201711
,City Developments and Neighbourhood,Total Gas & Power Ltd,Gas Bills,"79,196.05","3,959.80",Gas Utilities,41547288,N,R2101,104632,LC,21021,Leicester District Energy,R210101,201711
,City Developments and Neighbourhood,Total Gas & Power Ltd,Gas Bills,"1,474.14",73.71,Gas Utilities,41547289,N,R2101,104632,LC,21021,Leicester District Energy,R210101,201711
,City Developments and Neighbourhood,Total Gas & Power Ltd,Gas Bills,500.40,100.08,Gas Utilities,41548455,N,R2101,104632,LC,20139,Belgrave Hall Complex,R210101,201711
,City Developments and Neighbourhood,Total Gas & Power Ltd,Gas Bills,"2,673.92",534.78,Gas Utilities,41550591,N,R2101,104632,LC,10040,Investment Property,R210101,201711
,City Developments and Neighbourhood,Total Gas & Power Ltd,Gas Bills,"1,274.67",63.73,Project - Gas,41550536,N,R2084,104632,LC,50075,Sheltered Accommodation,R208401,201711
,City Developments and Neighbourhood,Total Gas & Power Ltd,Gas Bills,659.11,32.96,Project - Gas,41550539,N,R2084,104632,LC,50075,Sheltered Accommodation,R208401,201711
,City Developments and Neighbourhood,Total Gas & Power Ltd,Gas Bills,"1,701.32",340.26,Gas Utilities,41550551,N,R2101,104632,LC,50226,Blackbird Road Site (RM1),R210101,201711
,City Developments and Neighbourhood,Total Gas & Power Ltd,Gas Bills,"1,002.14",50.11,Project - Gas,41550544,N,R2084,104632,LC,50075,Sheltered Accommodation,R208401,201711
27/02/2018,,Total Hygiene Ltd,Building Works - Alterations,"3,218.50",0.00,Building Works - Alterations,63630392,,C2000,104633,LC,95000,Housing GF,C200001,201711
16/02/2018,Corporate Resources & Support,University Hospitals of Leicester NHS Trust,Mortuary Toxicology costs,"2,192.58",438.52,Funeral Services,63622483,T,R4423,104740,LC,10222,Coroners,R442312,201711
09/02/2018,Adults & Housing Department,Westcotes House Ltd,Accommodation Expenses,"1,705.00",341.00,Accommodation Expenses,63625538,A,R4604,104862,LC,41156,LD Transitions - Commissioning,R460401,201711
,Corporate Resources & Support,Wilks Head & Eve LLP,Management & Business & Administrative Services,"4,000.00",800.00,Management & Business & Administrative Services,63631260,T,R4404,104908,LC,50002,Revenues & Benefits - Operations,R440401,201711
09/02/2018,City Developments and Neighbourhood,William Freer Ltd,Servicing,"1,298.06",259.61,Building Services / Repairs & Maintenance  Fixtures & Fittings,63625014,N,R2001,104909,LC,10307,Building & Service Maintenance External,R200104,201711
20/02/2018,Education & Childrens Services,A Zoom Ltd,Employee Taxi Travel Expense,"42,998.53","8,599.71",Taxi Travel Expense,63628465,C,R3303,105049,LC,20303,Operational Transport Ad Hoc,R330301,201711
,Corporate Resources & Support,Straw & Pearce Solicitors,LCC Ext Solicitors Costs,"1,767.90",353.58,Legal Fees & Charges,63629657,T,R4425,106614,LC,10202,Legal Disbursements,R442505,201711
28/02/2018,Adults & Housing Department,Royal Society For The Blind,Residential Permanent,"1,191.88",0.00,Residential Care,41552531,A,R5701,107319,LC,41152,LD Team 2 -Commissioning,R570104,201711
28/02/2018,Adults & Housing Department,Craegmoor Facilities Co Ltd t/a Craegmoor Landsdowne Road,Residential Permanent,"1,766.64",0.00,Residential Care,41552349,A,R5701,107371,LC,41152,LD Team 2 -Commissioning,R570104,201711
28/02/2018,Adults & Housing Department,Craegmoor Facilities Co Ltd t/a Craegmoor Landsdowne Road,Residential Permanent,"1,766.64",0.00,Residential Care,41552355,A,R5701,107371,LC,41153,LD Targeted Reassessment Team-Commissioning,R570104,201711
28/02/2018,Adults & Housing Department,Craegmoor Facilities Co Ltd t/a Craegmoor Landsdowne Road,Residential Permanent,"1,766.64",0.00,Residential Care,41552368,A,R5701,107371,LC,41151,LD Team 1-Commissioning,R570104,201711
28/02/2018,Adults & Housing Department,Craegmoor Facilities Co Ltd t/a Craegmoor Landsdowne Road,Residential Short Stay,504.75,0.00,Residential Care,41552370,A,R5701,107371,LC,41153,LD Targeted Reassessment Team-Commissioning,R570103,201711
28/02/2018,Adults & Housing Department,Prime Life Plc,Residential Permanent,"1,558.56",0.00,Residential Care,41551659,A,R5701,107376,LC,40226,Adult Mental Health - Maidstone Road (Under 65 s) - Commissioning,R570104,201711
28/02/2018,Adults & Housing Department,Prime Life Plc,Residential Permanent,"1,218.00",0.00,Residential Care,41551659,A,R5701,107376,LC,40226,Adult Mental Health - Maidstone Road (Under 65 s) - Commissioning,R570104,201711
28/02/2018,Adults & Housing Department,Prime Life Plc,Residential Permanent,"1,558.56",0.00,Residential Care,41551666,A,R5701,107376,LC,40228,Commissioning Community - CMHT City East (Merlyn Vaz),R570104,201711
28/02/2018,Adults & Housing Department,Prime Life Plc,Residential Permanent,"1,738.08",0.00,Residential Care,41552863,A,R5701,107377,LC,40311,EAST - Commissioning - Supported Residents Care Team,R570104,201711
28/02/2018,Adults & Housing Department,Prime Life Plc,Residential Permanent,"1,558.56",0.00,Residential Care,41552854,A,R5701,107377,LC,40311,EAST - Commissioning - Supported Residents Care Team,R570104,201711
28/02/2018,Adults & Housing Department,Prime Life Plc,Residential Permanent,"1,558.56",0.00,Residential Care,41552838,A,R5701,107377,LC,40226,Adult Mental Health - Maidstone Road (Under 65 s) - Commissioning,R570104,201711
28/02/2018,Adults & Housing Department,Prime Life Plc,Residential Permanent,"1,001.93",0.00,Residential Care,41552839,A,R5701,107377,LC,40226,Adult Mental Health - Maidstone Road (Under 65 s) - Commissioning,R570104,201711
28/02/2018,Adults & Housing Department,Welford Court Ltd,Residential Permanent,"1,938.00",0.00,Residential Care,41552980,A,R5701,107378,LC,40311,EAST - Commissioning - Supported Residents Care Team,R570104,201711
28/02/2018,Adults & Housing Department,Welford Court Ltd,Residential Permanent,"1,938.00",0.00,Residential Care,41552979,A,R5701,107378,LC,40311,EAST - Commissioning - Supported Residents Care Team,R570104,201711
28/02/2018,Adults & Housing Department,Ashleigh Nursing Home,Residential Permanent,"1,910.60",0.00,Residential Care,41551778,A,R5701,107381,LC,40311,EAST - Commissioning - Supported Residents Care Team,R570104,201711
28/02/2018,Adults & Housing Department,Ashleigh Nursing Home,Nursing Permanent,"1,889.04",0.00,Nursing Care,41551783,A,R5702,107381,LC,40311,EAST - Commissioning - Supported Residents Care Team,R570204,201711
28/02/2018,Adults & Housing Department,Baron Park Nursing Home,Residential Permanent,"1,780.00",0.00,Residential Care,41553187,A,R5701,107382,LC,40311,EAST - Commissioning - Supported Residents Care Team,R570104,201711
28/02/2018,Adults & Housing Department,Prime Life Plc,Residential Permanent,"1,558.56",0.00,Residential Care,41551958,A,R5701,107385,LC,40226,Adult Mental Health - Maidstone Road (Under 65 s) - Commissioning,R570104,201711
28/02/2018,Adults & Housing Department,Evington Home - Pilgrims' Friend Society,Residential Permanent,"1,938.00",0.00,Residential Care,41552565,A,R5701,107391,LC,40321,West - Commissioning - Westcotes Team 4,R570104,201711
28/02/2018,Adults & Housing Department,Melbourne Home,Residential Permanent,846.00,0.00,Residential Care,41552500,A,R5701,107393,LC,40311,EAST - Commissioning - Supported Residents Care Team,R570104,201711
28/02/2018,Adults & Housing Department,Sanctuary Care Ltd t/a Asra House,Residential Permanent,"1,738.08",0.00,Residential Care,41551812,A,R5701,107394,LC,40311,EAST - Commissioning - Supported Residents Care Team,R570104,201711
28/02/2018,Adults & Housing Department,Sanctuary Care Ltd t/a Asra House,Residential Permanent,"1,738.08",0.00,Residential Care,41551818,A,R5701,107394,LC,40311,EAST - Commissioning - Supported Residents Care Team,R570104,201711
28/02/2018,Adults & Housing Department,Sanctuary Care Ltd t/a Asra House,Residential Permanent,"1,938.00",0.00,Residential Care,41551820,A,R5701,107394,LC,40311,EAST - Commissioning - Supported Residents Care Team,R570104,201711
28/02/2018,Adults & Housing Department,Woodheyes Care Home,Residential Permanent,"1,021.92",0.00,Residential Care,41553043,A,R5701,107401,LC,40321,West - Commissioning - Westcotes Team 4,R570104,201711
28/02/2018,Adults & Housing Department,Cherrytree,Residential Permanent,"1,780.00",0.00,Residential Care,41551947,A,R5701,107407,LC,40311,EAST - Commissioning - Supported Residents Care Team,R570104,201711
28/02/2018,Adults & Housing Department,Stonesby Lodge,Residential Permanent,"1,558.56",0.00,Residential Care,41552808,A,R5701,107421,LC,40229,Commissioning - Braunstone Health & Social Care Centre - Adult Mental Health,R570104,201711
28/02/2018,Adults & Housing Department,Stonesby Lodge,Residential Permanent,"1,558.56",0.00,Residential Care,41552809,A,R5701,107421,LC,40226,Adult Mental Health - Maidstone Road (Under 65 s) - Commissioning,R570104,201711
28/02/2018,Adults & Housing Department,Gratia Residential Care Home Ltd,Residential Permanent,"2,430.00",0.00,Residential Care,41552141,A,R5701,107428,LC,41153,LD Targeted Reassessment Team-Commissioning,R570104,201711
28/02/2018,Adults & Housing Department,Gratia Residential Care Home Ltd,Residential Permanent,"1,938.00",0.00,Residential Care,41552143,A,R5701,107428,LC,41152,LD Team 2 -Commissioning,R570104,201711
28/02/2018,Adults & Housing Department,Gratia Residential Care Home Ltd,Residential Permanent,"1,766.64",0.00,Residential Care,41552144,A,R5701,107428,LC,41152,LD Team 2 -Commissioning,R570104,201711
28/02/2018,Adults & Housing Department,Westcotes Rest Home,Residential Permanent,"1,938.00",0.00,Residential Care,41552988,A,R5701,107430,LC,40873,LOC WEST - Reablement - Team 1  - Sulgrave Road - Commissioning,R570104,201711
28/02/2018,Adults & Housing Department,Westcotes Rest Home,Residential Permanent,"1,738.08",0.00,Residential Care,41552981,A,R5701,107430,LC,40311,EAST - Commissioning - Supported Residents Care Team,R570104,201711
28/02/2018,Adults & Housing Department,Venetia House,Residential Permanent,"1,558.56",0.00,Residential Care,41552927,A,R5701,107431,LC,40226,Adult Mental Health - Maidstone Road (Under 65 s) - Commissioning,R570104,201711
28/02/2018,Adults & Housing Department,Venetia House,Residential Permanent,"1,558.56",0.00,Residential Care,41552931,A,R5701,107431,LC,40226,Adult Mental Health - Maidstone Road (Under 65 s) - Commissioning,R570104,201711
28/02/2018,Adults & Housing Department,Eastern Care Ltd T/a Newton House,Residential Permanent,"1,766.64",0.00,Residential Care,41552547,A,R5701,107440,LC,41153,LD Targeted Reassessment Team-Commissioning,R570104,201711
28/02/2018,Adults & Housing Department,Ashton Lodge,Residential Permanent,"1,938.00",0.00,Residential Care,41551795,A,R5701,107441,LC,40311,EAST - Commissioning - Supported Residents Care Team,R570104,201711
28/02/2018,Adults & Housing Department,Ashton Lodge,Residential Permanent,"1,738.08",0.00,Residential Care,41551799,A,R5701,107441,LC,40311,EAST - Commissioning - Supported Residents Care Team,R570104,201711
28/02/2018,Adults & Housing Department,Ashton Lodge,Residential Permanent,"1,179.41",0.00,Residential Care,41551804,A,R5701,107441,LC,40331,Health Transfers - Commissioning - Discharge Team 2,R570104,201711
28/02/2018,Adults & Housing Department,Ashton Lodge,Residential Short Stay,869.04,0.00,Residential Care,41551807,A,R5701,107441,LC,40307,EAST - Comm'g - Springfield Road - East 3,R570103,201711
28/02/2018,Adults & Housing Department,Elliott Rest Homes,Residential Permanent,"1,558.56",0.00,Residential Care,41552065,A,R5701,107443,LC,40226,Adult Mental Health - Maidstone Road (Under 65 s) - Commissioning,R570104,201711
28/02/2018,Adults & Housing Department,Elliott Rest Homes,Residential Permanent,"1,938.00",0.00,Residential Care,41552066,A,R5701,107443,LC,40226,Adult Mental Health - Maidstone Road (Under 65 s) - Commissioning,R570104,201711
28/02/2018,Adults & Housing Department,Nottingham community  Housing Association (Carefirst),Residential Permanent,"1,738.08",0.00,Residential Care,41552106,A,R5701,107448,LC,40317,WEST - Comm'g - Braunstone and Meridian - Team 2,R570104,201711
28/02/2018,Adults & Housing Department,Nottingham community  Housing Association (Carefirst),Residential Permanent,"1,938.00",0.00,Residential Care,41552094,A,R5701,107448,LC,40311,EAST - Commissioning - Supported Residents Care Team,R570104,201711
28/02/2018,Adults & Housing Department,Samalodge Ltd T/A Anita Jane�s Lodge,Residential Permanent,718.48,0.00,Residential Care,41551745,A,R5701,107449,LC,40228,Commissioning Community - CMHT City East (Merlyn Vaz),R570104,201711
28/02/2018,Adults & Housing Department,Prime Life Plc,Nursing Permanent,"1,889.04",0.00,Nursing Care,41551913,A,R5702,107454,LC,40873,LOC WEST - Reablement - Team 1  - Sulgrave Road - Commissioning,R570204,201711
28/02/2018,Adults & Housing Department,Prime Life Plc,Nursing Permanent,"1,889.04",0.00,Nursing Care,41551915,A,R5702,107454,LC,40329,Health Transfers - Commissioning - Discharge Team 1,R570204,201711
28/02/2018,Adults & Housing Department,Prime Life Plc,Residential Permanent,"1,938.00",0.00,Residential Care,41552818,A,R5701,107466,LC,40309,EAST - Comm'g - Uppingham Road - East 4,R570104,201711
28/02/2018,Adults & Housing Department,Prime Life Plc,Residential Permanent,"1,140.00",0.00,Residential Care,41552819,A,R5701,107466,LC,40311,EAST - Commissioning - Supported Residents Care Team,R570104,201711
28/02/2018,Adults & Housing Department,Prime Life Plc,Residential Permanent,"1,938.00",0.00,Residential Care,41552832,A,R5701,107466,LC,40311,EAST - Commissioning - Supported Residents Care Team,R570104,201711
28/02/2018,Adults & Housing Department,Community Living Project,Residential Permanent,"1,624.00",0.00,Residential Care,41552000,A,R5701,107468,LC,41153,LD Targeted Reassessment Team-Commissioning,R570104,201711
28/02/2018,Adults & Housing Department,Satya Nivas Residential Home,Residential Permanent,"1,771.12",0.00,Residential Care,41552655,A,R5701,107513,LC,40228,Commissioning Community - CMHT City East (Merlyn Vaz),R570104,201711
28/02/2018,Adults & Housing Department,Satya Nivas Residential Home,Residential Permanent,"1,558.56",0.00,Residential Care,41552659,A,R5701,107513,LC,40228,Commissioning Community - CMHT City East (Merlyn Vaz),R570104,201711
28/02/2018,Adults & Housing Department,Satya Nivas Residential Home,Residential Permanent,"1,766.64",0.00,Residential Care,41552651,A,R5701,107513,LC,41152,LD Team 2 -Commissioning,R570104,201711
28/02/2018,Adults & Housing Department,Lester Hall Apartments Ltd,Residential Permanent,912.52,0.00,Residential Care,41552382,A,R5701,107564,LC,40226,Adult Mental Health - Maidstone Road (Under 65 s) - Commissioning,R570104,201711
28/02/2018,Adults & Housing Department,Lester Hall Apartments Ltd,Residential Permanent,"1,558.56",0.00,Residential Care,41552387,A,R5701,107564,LC,40311,EAST - Commissioning - Supported Residents Care Team,R570104,201711
28/02/2018,Adults & Housing Department,Lester Hall Apartments Ltd,Residential Permanent,"3,590.20",0.00,Residential Care,41552380,A,R5701,107564,LC,40228,Commissioning Community - CMHT City East (Merlyn Vaz),R570104,201711
28/02/2018,Adults & Housing Department,Lester Hall Apartments Ltd,Residential Permanent,"2,739.68",0.00,Residential Care,41552384,A,R5701,107564,LC,40226,Adult Mental Health - Maidstone Road (Under 65 s) - Commissioning,R570104,201711
28/02/2018,Adults & Housing Department,Magnum Care Ltd T/a Alston House,Residential Permanent,"1,738.08",0.00,Residential Care,41551736,A,R5701,107631,LC,40311,EAST - Commissioning - Supported Residents Care Team,R570104,201711
28/02/2018,Adults & Housing Department,Magnum Care Ltd T/a Alston House,Residential Permanent,"1,938.00",0.00,Residential Care,41551739,A,R5701,107631,LC,40875,LOC WEST - Reablement - Team 2  - Sulgrave Road - Commissioning,R570104,201711
28/02/2018,Adults & Housing Department,Magnum Care Ltd T/a Aberry House,Residential Permanent,"1,938.00",0.00,Residential Care,41551697,A,R5701,107648,LC,40311,EAST - Commissioning - Supported Residents Care Team,R570104,201711
28/02/2018,Adults & Housing Department,Moat House Retirement Home Ltd,Residential Permanent,700.84,0.00,Residential Care,41552521,A,R5701,107649,LC,40311,EAST - Commissioning - Supported Residents Care Team,R570104,201711
28/02/2018,Adults & Housing Department,Heartwell House Residential Care Ltd,Residential Permanent,"1,558.56",0.00,Residential Care,41552258,A,R5701,107659,LC,40311,EAST - Commissioning - Supported Residents Care Team,R570104,201711
28/02/2018,Adults & Housing Department,Royal Leics Rut & Wycliffe Soc,Residential Permanent,"1,766.64",0.00,Residential Care,41552972,A,R5701,107691,LC,41152,LD Team 2 -Commissioning,R570104,201711
28/02/2018,Adults & Housing Department,St Bennetts Care Home,Residential Short Stay,"1,730.36",0.00,Residential Care,41552765,A,R5701,107693,LC,40307,EAST - Comm'g - Springfield Road - East 3,R570103,201711
28/02/2018,Adults & Housing Department,St Bennetts Care Home,Residential Permanent,"1,938.00",0.00,Residential Care,41552756,A,R5701,107693,LC,40311,EAST - Commissioning - Supported Residents Care Team,R570104,201711
28/02/2018,Adults & Housing Department,St Bennetts Care Home,Residential Permanent,"1,738.08",0.00,Residential Care,41552760,A,R5701,107693,LC,40315,WEST - Comm'g - Belgrave - Team 1,R570104,201711
28/02/2018,Adults & Housing Department,St Bennetts Care Home,Residential Short Stay,"1,938.00",0.00,Residential Care,41552763,A,R5701,107693,LC,40307,EAST - Comm'g - Springfield Road - East 3,R570103,201711
28/02/2018,Adults & Housing Department,HOLLYWELL COURT RESIDENTIAL HOME,Residential Permanent,"1,738.08",0.00,Residential Care,41552268,A,R5701,107702,LC,40311,EAST - Commissioning - Supported Residents Care Team,R570104,201711
28/02/2018,Adults & Housing Department,NAS SERVICES LTD,Residential Permanent,"7,814.52","1,562.90",Residential Care,41551657,A,R5701,107716,LC,41152,LD Team 2 -Commissioning,R570104,201711
28/02/2018,Adults & Housing Department,Western Park Ltd,Residential Permanent,"1,938.00",0.00,Residential Care,41553008,A,R5701,107721,LC,40311,EAST - Commissioning - Supported Residents Care Team,R570104,201711
28/02/2018,Adults & Housing Department,Western Park Ltd,Residential Permanent,"1,938.00",0.00,Residential Care,41553009,A,R5701,107721,LC,40311,EAST - Commissioning - Supported Residents Care Team,R570104,201711
28/02/2018,Adults & Housing Department,Western Park Ltd,Residential Permanent,"1,738.08",0.00,Residential Care,41553022,A,R5701,107721,LC,40321,West - Commissioning - Westcotes Team 4,R570104,201711
28/02/2018,Adults & Housing Department,Western Park Ltd,Nursing Permanent,877.05,0.00,Nursing Care,41553024,A,R5702,107721,LC,40311,EAST - Commissioning - Supported Residents Care Team,R570204,201711
28/02/2018,Adults & Housing Department,Western Park Ltd,Residential Short Stay,620.74,0.00,Residential Care,41553031,A,R5701,107721,LC,40873,LOC WEST - Reablement - Team 1  - Sulgrave Road - Commissioning,R570103,201711
28/02/2018,Adults & Housing Department,Western Park Ltd,Residential Permanent,682.82,0.00,Residential Care,41553035,A,R5701,107721,LC,40873,LOC WEST - Reablement - Team 1  - Sulgrave Road - Commissioning,R570104,201711
28/02/2018,Adults & Housing Department,Cherre Residential Care,Residential Permanent,"1,766.64",0.00,Residential Care,41551942,A,R5701,107730,LC,41152,LD Team 2 -Commissioning,R570104,201711
28/02/2018,Adults & Housing Department,Cherre Residential Care,Residential Permanent,"2,442.04",0.00,Residential Care,41551943,A,R5701,107730,LC,41153,LD Targeted Reassessment Team-Commissioning,R570104,201711
28/02/2018,Adults & Housing Department,Cherre Residential Care,Residential Permanent,"1,766.64",0.00,Residential Care,41551944,A,R5701,107730,LC,41152,LD Team 2 -Commissioning,R570104,201711
28/02/2018,Adults & Housing Department,Royal Society For The Blind,Residential Permanent,896.00,0.00,Residential Care,41552311,A,R5701,107737,LC,40875,LOC WEST - Reablement - Team 2  - Sulgrave Road - Commissioning,R570104,201711
28/02/2018,Adults & Housing Department,HC-One Ltd T/a Harley Grange Care Home,Nursing Permanent,"1,889.04",0.00,Nursing Care,41552207,A,R5702,107744,LC,40303,EAST - Comm'g - Merlyn Vaz HC and St Peters - East 1,R570204,201711
28/02/2018,Adults & Housing Department,Rushcliffe Care Group,Nursing Permanent,"2,268.00",0.00,Nursing Care,41552438,A,R5702,107756,LC,40311,EAST - Commissioning - Supported Residents Care Team,R570204,201711
28/02/2018,Adults & Housing Department,Rushcliffe Care Group,Nursing Permanent,"5,448.00",0.00,Nursing Care,41552440,A,R5702,107756,LC,40311,EAST - Commissioning - Supported Residents Care Team,R570204,201711
28/02/2018,Adults & Housing Department,Hambleton House,Residential Permanent,"1,558.56",0.00,Residential Care,41552184,A,R5701,107763,LC,40228,Commissioning Community - CMHT City East (Merlyn Vaz),R570104,201711
28/02/2018,Adults & Housing Department,Stonesby House,Residential Permanent,"1,558.56",0.00,Residential Care,41552799,A,R5701,107775,LC,40226,Adult Mental Health - Maidstone Road (Under 65 s) - Commissioning,R570104,201711
28/02/2018,Adults & Housing Department,Stonesby House,Residential Short Stay,"1,640.45",0.00,Residential Care,41552804,A,R5701,107775,LC,41152,LD Team 2 -Commissioning,R570103,201711
20/02/2018,Adults & Housing Department,Help At Home,Personal Care / Generic,626.35,0.00,Home Care,41544827,A,R5705,107786,LC,41153,LD Targeted Reassessment Team-Commissioning,R570502,201711
20/02/2018,Adults & Housing Department,Help At Home,Personal Care / Generic,"1,981.80",0.00,Home Care,41545018,A,R5705,107786,LC,40317,WEST - Comm'g - Braunstone and Meridian - Team 2,R570502,201711
20/02/2018,Adults & Housing Department,Help At Home,Personal Care / Generic,774.37,0.00,Home Care,41544871,A,R5705,107786,LC,40319,WEST - Comm'g - Paisley Road - Team 3,R570502,201711
20/02/2018,Adults & Housing Department,Help At Home,Personal Care / Generic,822.81,0.00,Home Care,41544865,A,R5705,107786,LC,40321,West - Commissioning - Westcotes Team 4,R570502,201711
20/02/2018,Adults & Housing Department,Help At Home,Personal Care / Generic,"1,812.98",0.00,Home Care,41544847,A,R5705,107786,LC,40329,Health Transfers - Commissioning - Discharge Team 1,R570502,201711
20/02/2018,Adults & Housing Department,Help At Home,Personal Care / Generic,"2,055.20",0.00,Home Care,41544902,A,R5705,107786,LC,40317,WEST - Comm'g - Braunstone and Meridian - Team 2,R570502,201711
20/02/2018,Adults & Housing Department,Help At Home,Personal Care / Generic,812.29,0.00,Home Care,41544916,A,R5705,107786,LC,41152,LD Team 2 -Commissioning,R570502,201711
20/02/2018,Adults & Housing Department,Help At Home,Personal Care / Generic,616.56,0.00,Home Care,41544917,A,R5705,107786,LC,40317,WEST - Comm'g - Braunstone and Meridian - Team 2,R570502,201711
,Adults & Housing Department,Help At Home,Personal Care / Generic,722.99,0.00,Home Care,41549048,A,R5705,107786,LC,40321,West - Commissioning - Westcotes Team 4,R570502,201711
,Adults & Housing Department,Help At Home,Personal Care / Generic,528.48,0.00,Home Care,41549177,A,R5705,107786,LC,40317,WEST - Comm'g - Braunstone and Meridian - Team 2,R570502,201711
,Adults & Housing Department,Help At Home,Personal Care / Generic,"1,849.68",0.00,Home Care,41549062,A,R5705,107786,LC,40307,EAST - Comm'g - Springfield Road - East 3,R570502,201711
,Adults & Housing Department,Help At Home,Personal Care / Generic,711.98,0.00,Home Care,41549102,A,R5705,107786,LC,40873,LOC WEST - Reablement - Team 1  - Sulgrave Road - Commissioning,R570502,201711
,Adults & Housing Department,Help At Home,Personal Care / Generic,688.49,0.00,Home Care,41549180,A,R5705,107786,LC,40309,EAST - Comm'g - Uppingham Road - East 4,R570502,201711
,Adults & Housing Department,Help At Home,Personal Care / Generic,939.52,0.00,Home Care,41549203,A,R5705,107786,LC,40307,EAST - Comm'g - Springfield Road - East 3,R570502,201711
,Adults & Housing Department,Help At Home,Personal Care / Generic,"3,534.22",0.00,Home Care,41549117,A,R5705,107786,LC,40317,WEST - Comm'g - Braunstone and Meridian - Team 2,R570502,201711
,Adults & Housing Department,Help At Home,Personal Care / Generic,822.32,0.00,Home Care,41549130,A,R5705,107786,LC,40321,West - Commissioning - Westcotes Team 4,R570502,201711
,Adults & Housing Department,Help At Home,Personal Care / Generic,565.18,0.00,Home Care,41549156,A,R5705,107786,LC,40873,LOC WEST - Reablement - Team 1  - Sulgrave Road - Commissioning,R570502,201711
,Adults & Housing Department,Help At Home,Personal Care / Generic,748.68,0.00,Home Care,41549159,A,R5705,107786,LC,40307,EAST - Comm'g - Springfield Road - East 3,R570502,201711
,Adults & Housing Department,Help At Home,Personal Care / Generic,693.63,0.00,Home Care,41549196,A,R5705,107786,LC,40319,WEST - Comm'g - Paisley Road - Team 3,R570502,201711
,Adults & Housing Department,Help At Home,Personal Care / Generic,"1,853.35",0.00,Home Care,41549170,A,R5705,107786,LC,40321,West - Commissioning - Westcotes Team 4,R570502,201711
23/02/2018,Adults & Housing Department,Danbury Gardens - Help at Home,Home Care - Extra Care,624.36,0.00,Home Care,41550037,A,R5705,107789,LC,40311,EAST - Commissioning - Supported Residents Care Team,R570501,201711
23/02/2018,Adults & Housing Department,Danbury Gardens - Help at Home,Home Care - Extra Care,"1,473.78",0.00,Home Care,41550001,A,R5705,107789,LC,40311,EAST - Commissioning - Supported Residents Care Team,R570501,201711
,Adults & Housing Department,Danbury Gardens - Help at Home,Home Care - Extra Care,"1,009.14",0.00,Home Care,41548914,A,R5705,107789,LC,40311,EAST - Commissioning - Supported Residents Care Team,R570501,201711
21/02/2018,Adults & Housing Department,Danbury Gardens - Help at Home,Home Care - Extra Care,"2,090.88",0.00,Home Care,41549618,A,R5705,107789,LC,40311,EAST - Commissioning - Supported Residents Care Team,R570501,201711
21/02/2018,Adults & Housing Department,Danbury Gardens - Help at Home,Home Care - Extra Care,"2,123.55",0.00,Home Care,41549621,A,R5705,107789,LC,40311,EAST - Commissioning - Supported Residents Care Team,R570501,201711
,Adults & Housing Department,Aspire UK,Home Care - Specialist,"5,327.04",0.00,Home Care,41547320,A,R5705,107790,LC,41154,LD Short Term/Unplanned Team - Commissioning,R570503,201711
28/02/2018,Adults & Housing Department,Direct Health UK Ltd,Personal Care / Generic,943.95,0.00,Home Care,41546713,A,R5705,107791,LC,40317,WEST - Comm'g - Braunstone and Meridian - Team 2,R570502,201711
28/02/2018,Adults & Housing Department,Direct Health UK Ltd,Personal Care / Generic,"1,611.10",0.00,Home Care,41546725,A,R5705,107791,LC,40303,EAST - Comm'g - Merlyn Vaz HC and St Peters - East 1,R570502,201711
28/02/2018,Adults & Housing Department,Direct Health UK Ltd,Personal Care / Generic,707.28,0.00,Home Care,41546711,A,R5705,107791,LC,40321,West - Commissioning - Westcotes Team 4,R570502,201711
28/02/2018,Adults & Housing Department,Direct Health UK Ltd,Personal Care / Generic,736.39,0.00,Home Care,41546717,A,R5705,107791,LC,40303,EAST - Comm'g - Merlyn Vaz HC and St Peters - East 1,R570502,201711
23/02/2018,Adults & Housing Department,Domiciliary Care Services UK Ltd,Personal Care / Generic,"1,986.91",0.00,Home Care,41548931,A,R5705,107792,LC,40321,West - Commissioning - Westcotes Team 4,R570502,201711
23/02/2018,Adults & Housing Department,Domiciliary Care Services UK Ltd,Personal Care / Generic,"1,860.94",0.00,Home Care,41548948,A,R5705,107792,LC,40303,EAST - Comm'g - Merlyn Vaz HC and St Peters - East 1,R570502,201711
23/02/2018,Adults & Housing Department,Domiciliary Care Services UK Ltd,Personal Care / Generic,"1,955.78",0.00,Home Care,41548978,A,R5705,107792,LC,40303,EAST - Comm'g - Merlyn Vaz HC and St Peters - East 1,R570502,201711
23/02/2018,Adults & Housing Department,Domiciliary Care Services UK Ltd,Personal Care / Generic,"1,831.74",0.00,Home Care,41548984,A,R5705,107792,LC,40303,EAST - Comm'g - Merlyn Vaz HC and St Peters - East 1,R570502,201711
23/02/2018,Adults & Housing Department,Westminster Homecare Ltd ),Personal Care / Generic,"1,781.36",0.00,Home Care,41548720,A,R5705,107794,LC,40305,EAST - Comm'g - Rushey Mead - East 2,R570502,201711
23/02/2018,Adults & Housing Department,Westminster Homecare Ltd ),Personal Care / Generic,802.24,0.00,Home Care,41548566,A,R5705,107794,LC,40303,EAST - Comm'g - Merlyn Vaz HC and St Peters - East 1,R570502,201711
23/02/2018,Adults & Housing Department,Westminster Homecare Ltd ),Personal Care / Generic,593.67,0.00,Home Care,41548575,A,R5705,107794,LC,40303,EAST - Comm'g - Merlyn Vaz HC and St Peters - East 1,R570502,201711
23/02/2018,Adults & Housing Department,Westminster Homecare Ltd ),Personal Care / Generic,"1,773.32",0.00,Home Care,41548588,A,R5705,107794,LC,40331,Health Transfers - Commissioning - Discharge Team 2,R570502,201711
23/02/2018,Adults & Housing Department,Westminster Homecare Ltd ),Personal Care / Generic,"1,979.04",0.00,Home Care,41548617,A,R5705,107794,LC,40307,EAST - Comm'g - Springfield Road - East 3,R570502,201711
23/02/2018,Adults & Housing Department,Westminster Homecare Ltd ),Personal Care / Generic,"1,752.56",0.00,Home Care,41548630,A,R5705,107794,LC,40319,WEST - Comm'g - Paisley Road - Team 3,R570502,201711
23/02/2018,Adults & Housing Department,Westminster Homecare Ltd ),Personal Care / Generic,"1,745.92",0.00,Home Care,41548688,A,R5705,107794,LC,40317,WEST - Comm'g - Braunstone and Meridian - Team 2,R570502,201711
28/02/2018,Adults & Housing Department,HC-One Ltd T/a Cedar Court,Nursing Permanent,"1,736.00",0.00,Nursing Care,41551929,A,R5702,107797,LC,40311,EAST - Commissioning - Supported Residents Care Team,R570204,201711
28/02/2018,Adults & Housing Department,G B Care Ltd,Residential Permanent,"1,938.00",0.00,Residential Care,41551714,A,R5701,107800,LC,40329,Health Transfers - Commissioning - Discharge Team 1,R570104,201711
28/02/2018,Adults & Housing Department,G B Care Ltd,Nursing Permanent,"1,889.04",0.00,Nursing Care,41551716,A,R5702,107800,LC,40311,EAST - Commissioning - Supported Residents Care Team,R570204,201711
28/02/2018,Adults & Housing Department,CLARENDON MEWS CARE LIMITED,Residential Permanent,"1,938.00",0.00,Residential Care,41551985,A,R5701,107802,LC,40311,EAST - Commissioning - Supported Residents Care Team,R570104,201711
28/02/2018,Adults & Housing Department,CLARENDON MEWS CARE LIMITED,Residential Permanent,"1,938.00",0.00,Residential Care,41551986,A,R5701,107802,LC,40873,LOC WEST - Reablement - Team 1  - Sulgrave Road - Commissioning,R570104,201711
28/02/2018,Adults & Housing Department,CLARENDON MEWS CARE LIMITED,Residential Permanent,"1,938.00",0.00,Residential Care,41551990,A,R5701,107802,LC,40319,WEST - Comm'g - Paisley Road - Team 3,R570104,201711
28/02/2018,Adults & Housing Department,CLARENDON MEWS CARE LIMITED,Residential Permanent,"1,738.08",0.00,Residential Care,41551970,A,R5701,107802,LC,40303,EAST - Comm'g - Merlyn Vaz HC and St Peters - East 1,R570104,201711
28/02/2018,Adults & Housing Department,Marston Court Ltd T/a Marston Court,Residential Permanent,"1,766.64",0.00,Residential Care,41552415,A,R5701,107843,LC,41152,LD Team 2 -Commissioning,R570104,201711
28/02/2018,Adults & Housing Department,Marston Court Ltd T/a Marston Court,Residential Short Stay,920.00,0.00,Residential Care,41552431,A,R5701,107843,LC,40905,LOC South - Transitions Team - Commissioning,R570103,201711
28/02/2018,Adults & Housing Department,Marston Court Ltd T/a Marston Court,Residential Permanent,"1,839.56",0.00,Residential Care,41552421,A,R5701,107843,LC,41152,LD Team 2 -Commissioning,R570104,201711
28/02/2018,Adults & Housing Department,Marston Court Ltd T/a Marston Court,Residential Permanent,"2,130.00",0.00,Residential Care,41552427,A,R5701,107843,LC,41152,LD Team 2 -Commissioning,R570104,201711
28/02/2018,Adults & Housing Department,Marston Court Ltd T/a Marston Court,Residential Short Stay,"1,938.00",0.00,Residential Care,41552431,A,R5701,107843,LC,40905,LOC South - Transitions Team - Commissioning,R570103,201711
28/02/2018,Adults & Housing Department,Marston Court Ltd T/a Marston Court,Residential Short Stay,920.00,0.00,Residential Care,41552433,A,R5701,107843,LC,40905,LOC South - Transitions Team - Commissioning,R570103,201711
28/02/2018,Adults & Housing Department,Marston Court Ltd T/a Marston Court,Residential Short Stay,"1,938.00",0.00,Residential Care,41552435,A,R5701,107843,LC,40905,LOC South - Transitions Team - Commissioning,R570103,201711
28/02/2018,Adults & Housing Department,Hartington Road Care Home,Residential Permanent,"1,766.64",0.00,Residential Care,41552218,A,R5701,107852,LC,41152,LD Team 2 -Commissioning,R570104,201711
28/02/2018,Adults & Housing Department,Deafway,Residential Permanent,"3,260.00",0.00,Residential Care,41552008,A,R5701,107858,LC,40321,West - Commissioning - Westcotes Team 4,R570104,201711
28/02/2018,Adults & Housing Department,Craegmoor Facilities Co. Ltd t/a Craegmoor Halifax Drive,Residential Permanent,"1,766.64",0.00,Residential Care,41552178,A,R5701,107866,LC,41152,LD Team 2 -Commissioning,R570104,201711
28/02/2018,Adults & Housing Department,Craegmoor Facilities Co. Ltd t/a Craegmoor Halifax Drive,Residential Permanent,"1,766.64",0.00,Residential Care,41552159,A,R5701,107866,LC,41152,LD Team 2 -Commissioning,R570104,201711
28/02/2018,Adults & Housing Department,Craegmoor Facilities Co. Ltd t/a Craegmoor Halifax Drive,Residential Permanent,"1,152.52",0.00,Residential Care,41552165,A,R5701,107866,LC,41151,LD Team 1-Commissioning,R570104,201711
28/02/2018,Adults & Housing Department,Ark Home Healthcare Ltd,Personal Care / Generic,"1,526.81",0.00,Home Care,41547121,A,R5705,107901,LC,40319,WEST - Comm'g - Paisley Road - Team 3,R570502,201711
28/02/2018,Adults & Housing Department,Ark Home Healthcare Ltd,Personal Care / Generic,517.95,0.00,Home Care,41547099,A,R5705,107901,LC,40315,WEST - Comm'g - Belgrave - Team 1,R570502,201711
28/02/2018,Adults & Housing Department,Ark Home Healthcare Ltd,Personal Care / Generic,559.21,0.00,Home Care,41547220,A,R5705,107901,LC,40321,West - Commissioning - Westcotes Team 4,R570502,201711
28/02/2018,Adults & Housing Department,Ark Home Healthcare Ltd,Personal Care / Generic,712.80,0.00,Home Care,41547124,A,R5705,107901,LC,40305,EAST - Comm'g - Rushey Mead - East 2,R570502,201711
28/02/2018,Adults & Housing Department,Ark Home Healthcare Ltd,Personal Care / Generic,"1,136.87",0.00,Home Care,41547170,A,R5705,107901,LC,40321,West - Commissioning - Westcotes Team 4,R570502,201711
28/02/2018,Adults & Housing Department,Ark Home Healthcare Ltd,Personal Care / Generic,606.34,0.00,Home Care,41547175,A,R5705,107901,LC,40329,Health Transfers - Commissioning - Discharge Team 1,R570502,201711
28/02/2018,Adults & Housing Department,Ark Home Healthcare Ltd,Personal Care / Generic,"1,205.32",0.00,Home Care,41547108,A,R5705,107901,LC,40329,Health Transfers - Commissioning - Discharge Team 1,R570502,201711
28/02/2018,Adults & Housing Department,Ark Home Healthcare Ltd,Personal Care / Generic,532.71,0.00,Home Care,41547108,A,R5705,107901,LC,40321,West - Commissioning - Westcotes Team 4,R570502,201711
28/02/2018,Adults & Housing Department,Ark Home Healthcare Ltd,Personal Care / Generic,"1,326.03",0.00,Home Care,41547110,A,R5705,107901,LC,40329,Health Transfers - Commissioning - Discharge Team 1,R570502,201711
28/02/2018,Adults & Housing Department,MHA-Foxton Grange,Residential Permanent,"1,096.00",0.00,Residential Care,41552092,A,R5701,107974,LC,40311,EAST - Commissioning - Supported Residents Care Team,R570104,201711
27/02/2018,Adults & Housing Department,MHA-Foxton Grange,Nursing Permanent,"16,722.24",0.00,Nursing Care,63630579,A,R5702,107974,LC,40807,LOC EAST - TEAM 2  - Eastern Lodge - Commissioning,R570204,201711
28/02/2018,Adults & Housing Department,Rushey Mead Manor Care Home,Nursing Permanent,"1,889.04",0.00,Nursing Care,41552593,A,R5702,107984,LC,40311,EAST - Commissioning - Supported Residents Care Team,R570204,201711
28/02/2018,Adults & Housing Department,Hicare Ltd,Residential Permanent,"1,738.08",0.00,Residential Care,41552741,A,R5701,107985,LC,40873,LOC WEST - Reablement - Team 1  - Sulgrave Road - Commissioning,R570104,201711
28/02/2018,Adults & Housing Department,Hicare Ltd,Residential Permanent,"1,938.00",0.00,Residential Care,41552734,A,R5701,107985,LC,40311,EAST - Commissioning - Supported Residents Care Team,R570104,201711
28/02/2018,Adults & Housing Department,Hicare Ltd,Residential Permanent,"1,938.00",0.00,Residential Care,41552715,A,R5701,107985,LC,40311,EAST - Commissioning - Supported Residents Care Team,R570104,201711
28/02/2018,Adults & Housing Department,Hicare Ltd,Residential Permanent,"1,738.08",0.00,Residential Care,41552724,A,R5701,107985,LC,40311,EAST - Commissioning - Supported Residents Care Team,R570104,201711
28/02/2018,Adults & Housing Department,Hicare Ltd,Residential Short Stay,"1,868.79",0.00,Residential Care,41552745,A,R5701,107985,LC,40305,EAST - Comm'g - Rushey Mead - East 2,R570103,201711
28/02/2018,Adults & Housing Department,Hicare Ltd,Residential Permanent,"1,738.08",0.00,Residential Care,41552747,A,R5701,107985,LC,40321,West - Commissioning - Westcotes Team 4,R570104,201711
28/02/2018,Adults & Housing Department,Hicare Ltd,Residential Permanent,"1,938.00",0.00,Residential Care,41552458,A,R5701,107985,LC,40321,West - Commissioning - Westcotes Team 4,R570104,201711
28/02/2018,Adults & Housing Department,Hicare Ltd,Residential Permanent,"1,938.00",0.00,Residential Care,41552466,A,R5701,107985,LC,40311,EAST - Commissioning - Supported Residents Care Team,R570104,201711
28/02/2018,Adults & Housing Department,Hicare Ltd,Residential Permanent,"1,938.00",0.00,Residential Care,41552464,A,R5701,107985,LC,40311,EAST - Commissioning - Supported Residents Care Team,R570104,201711
28/02/2018,Adults & Housing Department,Hicare Ltd,Residential Permanent,"1,738.08",0.00,Residential Care,41552472,A,R5701,107985,LC,40311,EAST - Commissioning - Supported Residents Care Team,R570104,201711
28/02/2018,Adults & Housing Department,Mauricare Ltd,Residential Permanent,"1,938.00",0.00,Residential Care,41552441,A,R5701,108048,LC,40229,Commissioning - Braunstone Health & Social Care Centre - Adult Mental Health,R570104,201711
28/02/2018,Adults & Housing Department,Mauricare Ltd,Residential Permanent,"1,489.78",0.00,Residential Care,41552443,A,R5701,108048,LC,40321,West - Commissioning - Westcotes Team 4,R570104,201711
28/02/2018,Adults & Housing Department,Prime Life Ltd,Residential Permanent,"1,938.00",0.00,Residential Care,41552283,A,R5701,108139,LC,40229,Commissioning - Braunstone Health & Social Care Centre - Adult Mental Health,R570104,201711
28/02/2018,Adults & Housing Department,Sanctuary Home Care Limited T/a Skelton Court,Residential Permanent,"1,766.64",0.00,Residential Care,41552695,A,R5701,108206,LC,41152,LD Team 2 -Commissioning,R570104,201711
28/02/2018,Adults & Housing Department,Sanctuary Home Care Limited T/a Skelton Court,Residential Permanent,"1,766.64",0.00,Residential Care,41552697,A,R5701,108206,LC,41152,LD Team 2 -Commissioning,R570104,201711
28/02/2018,Adults & Housing Department,Langdale View,Residential Permanent,"1,938.00",0.00,Residential Care,41552345,A,R5701,108374,LC,40311,EAST - Commissioning - Supported Residents Care Team,R570104,201711
28/02/2018,Adults & Housing Department,Barkby Road Residential Home,Residential Permanent,"3,697.68",0.00,Residential Care,41551845,A,R5701,108378,LC,41152,LD Team 2 -Commissioning,R570104,201711
28/02/2018,Adults & Housing Department,Barkby Road Residential Home,Residential Permanent,"7,521.08",0.00,Residential Care,41551849,A,R5701,108378,LC,41152,LD Team 2 -Commissioning,R570104,201711
28/02/2018,Adults & Housing Department,Mercia Care Homes Ltd,Residential Short Stay,"1,432.00",0.00,Residential Care,41552672,A,R5701,108402,LC,40903,LOC South -  Substance Misuse  - Commissioning,R570103,201711
